Dept/Family,Entity,Expense Type,Expense Area,Supplier,Payment Date, Amount ,SME,UNSPCC Code,UNSPCC Description
"Ministry of Housing, Communities and Local Government",Homes England,ESTATE GENERAL MAINTENANCE,North West,BARTON GRANGE LANDSCAPES,02/04/2019,2254.86,L,72101500,Building maintenance and repair services
"Ministry of Housing, Communities and Local Government",Homes England,ESTATE GENERAL MAINTENANCE,North West,BARTON GRANGE LANDSCAPES,05/04/2019,400,L,72101500,Building maintenance and repair services
"Ministry of Housing, Communities and Local Government",Homes England,ESTATE GENERAL MAINTENANCE,North West,BARTON GRANGE LANDSCAPES,05/04/2019,475,L,72101500,Building maintenance and repair services
"Ministry of Housing, Communities and Local Government",Homes England,ESTATE GENERAL MAINTENANCE,North West,BARTON GRANGE LANDSCAPES,05/04/2019,750,L,72101500,Building maintenance and repair services
"Ministry of Housing, Communities and Local Government",Homes England,CAPITAL GRANTS TO LOCAL AUTHORITIES,"North East, Yorkshire & the Humber",BARNSLEY METROPOLITAN BOROUGH COUNCIL,12/04/2019,6250,G,,Grants
"Ministry of Housing, Communities and Local Government",Homes England,CAPITAL GRANTS TO LOCAL AUTHORITIES,"North East, Yorkshire & the Humber",BARNSLEY METROPOLITAN BOROUGH COUNCIL,17/04/2019,6250,G,,Grants
"Ministry of Housing, Communities and Local Government",Homes England,CAPITAL GRANTS TO LOCAL AUTHORITIES,"North East, Yorkshire & the Humber",BARNSLEY METROPOLITAN BOROUGH COUNCIL,29/04/2019,6250,G,,Grants
"Ministry of Housing, Communities and Local Government",Homes England,CAPITAL GRANTS TO LOCAL AUTHORITIES,"North East, Yorkshire & the Humber",DONCASTER METROPOLITAN BOROUGH COUNCIL,,69999,G,,Grants
"Ministry of Housing, Communities and Local Government",Homes England,Help To Buy Additions,"North East, Yorkshire & the Humber",ROTHERHAM METROPOLITAN BOROUGH COUNCIL,11/04/2019,45000,G,,Grants
"Ministry of Housing, Communities and Local Government",Homes England,Help To Buy Additions,"North East, Yorkshire & the Humber",ROTHERHAM METROPOLITAN BOROUGH COUNCIL,29/04/2019,45000,G,,Grants
"Ministry of Housing, Communities and Local Government",Homes England,Help To Buy Additions,"North East, Yorkshire & the Humber",ROTHERHAM METROPOLITAN BOROUGH COUNCIL,29/04/2019,32000,G,,Grants
"Ministry of Housing, Communities and Local Government",Homes England,CAPITAL GRANTS TO LOCAL AUTHORITIES,"North East, Yorkshire & the Humber",SHEFFIELD CITY COUNCIL,,3132142,G,,Grants
"Ministry of Housing, Communities and Local Government",Homes England,COST OF ACQUISITION,Midlands,BIRMINGHAM CITY COUNCIL,10/04/2019,4200000,G,,Grants
"Ministry of Housing, Communities and Local Government",Homes England,CAPITAL GRANTS TO LOCAL AUTHORITIES,"North East, Yorkshire & the Humber",MIDDLEBROUGH COUNCIL,12/04/2019,8253,G,,Grants
"Ministry of Housing, Communities and Local Government",Homes England,CAPITAL GRANTS TO LOCAL AUTHORITIES,"North East, Yorkshire & the Humber",EAST RIDING OF YORKSHIRE COUNCIL,,8750,G,,Grants
"Ministry of Housing, Communities and Local Government",Homes England,CAPITAL GRANTS TO LOCAL AUTHORITIES,"North East, Yorkshire & the Humber",EAST RIDING OF YORKSHIRE COUNCIL,,7500,G,,Grants
"Ministry of Housing, Communities and Local Government",Homes England,CAPITAL GRANTS TO LOCAL AUTHORITIES,"North East, Yorkshire & the Humber",CITY OF YORK COUNCIL,,10625,G,,Grants
"Ministry of Housing, Communities and Local Government",Homes England,CAPITAL GRANTS TO LOCAL AUTHORITIES,"North East, Yorkshire & the Humber",CITY OF YORK COUNCIL,,10625,G,,Grants
"Ministry of Housing, Communities and Local Government",Homes England,REVENUE GRANTS TO LOCAL AUTHORITIES,Programmes,NORTH SOMERSET COUNCIL,26/04/2019,110000,G,,Grants
"Ministry of Housing, Communities and Local Government",Homes England,ESTATE GENERAL MAINTENANCE,Programmes,R D LANDSCAPES LTD,03/04/2019,870,S,72101500,Building maintenance and repair services
"Ministry of Housing, Communities and Local Government",Homes England,ESTATE GENERAL MAINTENANCE,Programmes,R D LANDSCAPES LTD,03/04/2019,1475,S,72101500,Building maintenance and repair services
"Ministry of Housing, Communities and Local Government",Homes England,ST Fund Loans Additions,Economic Assets Hub,CHRISTIAN GRANT PROPERTIES,15/04/2019,271792,,,Loans
"Ministry of Housing, Communities and Local Government",Homes England,PLANNED PREVENTATIVE MAINTENANCE,Finance & Corporate Services,OTIS LIFTS LIMITED,15/04/2019,798.71,L,72102900,Facility maintenance and repair services
"Ministry of Housing, Communities and Local Government",Homes England,PLANNED PREVENTATIVE MAINTENANCE,Finance & Corporate Services,OTIS LIFTS LIMITED,15/04/2019,1937.52,L,72102900,Facility maintenance and repair services
"Ministry of Housing, Communities and Local Government",Homes England,SITE SUPERVISION,North East And Yorkshire,NORTHUMBRIAN WATER,15/04/2019,6029,L,77101500,Environmental auditing
"Ministry of Housing, Communities and Local Government",Homes England,SITE SUPERVISION,North East And Yorkshire,NORTHUMBRIAN WATER,17/04/2019,7683,L,77101500,Environmental auditing
"Ministry of Housing, Communities and Local Government",Homes England,ENGINEERING FEES,North East And Yorkshire,NORTHUMBRIAN WATER,18/04/2019,5000,L,77101500,Environmental auditing
"Ministry of Housing, Communities and Local Government",Homes England,ESTATE GENERAL MAINTENANCE,Programmes,SIMON TRANTER LANDSCAPE CONTRACTORS,30/04/2019,891,S,72101500,Building maintenance and repair services
"Ministry of Housing, Communities and Local Government",Homes England,ESTATE GENERAL MAINTENANCE,Programmes,SIMON TRANTER LANDSCAPE CONTRACTORS,30/04/2019,2605,S,72101500,Building maintenance and repair services
"Ministry of Housing, Communities and Local Government",Homes England,ESTATE GENERAL MAINTENANCE,Programmes,SIMON TRANTER LANDSCAPE CONTRACTORS,30/04/2019,4795,S,72101500,Building maintenance and repair services
"Ministry of Housing, Communities and Local Government",Homes England,Fix & Fit - Additions,Finance & Corporate Services,OFFICE TEAM LIMITED,05/04/2019,1836.56,L,44120000,Office supplies
"Ministry of Housing, Communities and Local Government",Homes England,Fix & Fit - Additions,Finance & Corporate Services,OFFICE TEAM LIMITED,05/04/2019,1836.56,L,44120000,Office supplies
"Ministry of Housing, Communities and Local Government",Homes England,Fix & Fit - Additions,Finance & Corporate Services,OFFICE TEAM LIMITED,05/04/2019,1836.56,L,44120000,Office supplies
"Ministry of Housing, Communities and Local Government",Homes England,Fix & Fit - Additions,Finance & Corporate Services,OFFICE TEAM LIMITED,05/04/2019,1836.56,L,44120000,Office supplies
"Ministry of Housing, Communities and Local Government",Homes England,Fix & Fit - Additions,Finance & Corporate Services,OFFICE TEAM LIMITED,05/04/2019,1836.56,L,44120000,Office supplies
"Ministry of Housing, Communities and Local Government",Homes England,FURNITURE & EQUIPMENT-PURCHASE,Finance & Corporate Services,OFFICE TEAM LIMITED,15/04/2019,10024,L,44120000,Office supplies
"Ministry of Housing, Communities and Local Government",Homes England,LANDSCAPE ARCHITECT FEES,Programmes,IDVERDE LIMITED,05/04/2019,458.71,L,72101500,Building maintenance and repair services
"Ministry of Housing, Communities and Local Government",Homes England,ESTATE GENERAL MAINTENANCE,East And South East,ENVIRONMENT AGENCY,08/04/2019,362.68,G,72101500,Building maintenance and repair services
"Ministry of Housing, Communities and Local Government",Homes England,DRAINS & SEWERS,North West,ENVIRONMENT AGENCY,24/04/2019,3269,G,72101500,Building maintenance and repair services
"Ministry of Housing, Communities and Local Government",Homes England,ESTATE GENERAL MAINTENANCE,North West,LOWTHER FORESTRY GROUP,24/04/2019,285,L,72101500,Building maintenance and repair services
"Ministry of Housing, Communities and Local Government",Homes England,ESTATE GENERAL MAINTENANCE,North West,LOWTHER FORESTRY GROUP,24/04/2019,585,L,72101500,Building maintenance and repair services
"Ministry of Housing, Communities and Local Government",Homes England,ESTATE GENERAL MAINTENANCE,North West,LOWTHER FORESTRY GROUP,24/04/2019,995,L,72101500,Building maintenance and repair services
"Ministry of Housing, Communities and Local Government",Homes England,BUILDINGS-VACANT RATES,East And South East,FAREHAM BOROUGH COUNCIL,23/04/2019,144900,G,80131500,Lease and rental of property or building
"Ministry of Housing, Communities and Local Government",Homes England,IRON-MOUNTAIN ARCHIVE STORAGE ,Finance & Corporate Services,IRON MOUNTAIN (UK) LTD,08/04/2019,6570.79,L,78131800,Specialized warehousing and storage
"Ministry of Housing, Communities and Local Government",Homes England,HEALTH & SAFETY SURVEYS,North West,BRODEX TRIDENT LIMITED,15/04/2019,350,S,77101500,Environmental auditing
"Ministry of Housing, Communities and Local Government",Homes England,CAPITAL GRANTS TO LOCAL AUTHORITIES,East & South East,DOVER DISTRICT COUNCIL,23/04/2019,870000,G,,Grants
"Ministry of Housing, Communities and Local Government",Homes England,CAPITAL GRANTS TO LOCAL AUTHORITIES,East & South East,THANET DISTRICT COUNCIL,,187455,G,,Grants
"Ministry of Housing, Communities and Local Government",Homes England,CAPITAL GRANTS TO LOCAL AUTHORITIES,East & South East,THANET DISTRICT COUNCIL,,44558,G,,Grants
"Ministry of Housing, Communities and Local Government",Homes England,CAPITAL GRANTS TO LOCAL AUTHORITIES,East & South East,THANET DISTRICT COUNCIL,,64511,G,,Grants
"Ministry of Housing, Communities and Local Government",Homes England,POSTAGE/COURIERS,Finance & Corporate Services,MK LONDON LINK,05/04/2019,1890.45,S,78102200,Postal and small parcel and courier services
"Ministry of Housing, Communities and Local Government",Homes England,MISC PROFESSIONAL FEES,Programmes,ESRI (UK) LTD,08/04/2019,2831.95,M,81112300,Computer hardware maintenance and support
"Ministry of Housing, Communities and Local Government",Homes England,DEVELOPMENT MANAGEMENT,Programmes,ESRI (UK) LTD,09/04/2019,20000,M,81112300,Computer hardware maintenance and support
"Ministry of Housing, Communities and Local Government",Homes England,MISC PROFESSIONAL FEES,Programmes,ESRI (UK) LTD,15/04/2019,3467.5,M,81112300,Computer hardware maintenance and support
"Ministry of Housing, Communities and Local Government",Homes England,MORTGAGE ADMINISTRATION,Finance & Corporate Services,RSM UK AUDIT LLP,05/04/2019,4600,L,84111700,Corporate Finance
"Ministry of Housing, Communities and Local Government",Homes England,REVENUE GRANTS TO LOCAL AUTHORITIES,Programmes,CORNWALL COUNCIL,15/04/2019,89500,G,,Grants
"Ministry of Housing, Communities and Local Government",Homes England,COURSES & CONFERENCES,North East And Yorkshire,ASHRIDGE EXECUTIVE EDUCATION,01/04/2019,7500,L,86101800,In service training and manpower development
"Ministry of Housing, Communities and Local Government",Homes England,PLANNING APPLICATIONS,East And South East,CAMBRIDGESHIRE COUNTY COUNCIL,23/04/2019,2934.09,G,80131500,Lease and rental of property or building
"Ministry of Housing, Communities and Local Government",Homes England,PROPERTY SERVICES,East And South East,HAMPSHIRE COUNTY COUNCIL,11/04/2019,1166,G,,Grants
"Ministry of Housing, Communities and Local Government",Homes England,CONTRACT WORKS,South West,HAMPSHIRE COUNTY COUNCIL,24/04/2019,1111.2,G,,Grants
"Ministry of Housing, Communities and Local Government",Homes England,REVENUE GRANTS TO LOCAL AUTHORITIES,Programmes,HERTFORDSHIRE COUNTY COUNCIL,04/04/2019,135683,G,,Grants
"Ministry of Housing, Communities and Local Government",Homes England,CAPITAL GRANTS TO RPs (NOT LA),North West,FIRST CHOICE HOMES OLDHAM LIMITED,10/04/2019,9000,,,Grants
"Ministry of Housing, Communities and Local Government",Homes England,CAPITAL GRANTS TO RPs (NOT LA),North West,FIRST CHOICE HOMES OLDHAM LIMITED,10/04/2019,9000,,,Grants
"Ministry of Housing, Communities and Local Government",Homes England,CAPITAL GRANTS TO RPs (NOT LA),North West,FIRST CHOICE HOMES OLDHAM LIMITED,15/04/2019,52500,,,Grants
"Ministry of Housing, Communities and Local Government",Homes England,CAPITAL GRANTS TO RPs (NOT LA),North West,FIRST CHOICE HOMES OLDHAM LIMITED,15/04/2019,68000,,,Grants
"Ministry of Housing, Communities and Local Government",Homes England,CAPITAL GRANTS TO RPs (NOT LA),South West,GLOUCESTER CITY HOMES,26/04/2019,297600,,,Grants
"Ministry of Housing, Communities and Local Government",Homes England,CAPITAL GRANTS TO RPs (NOT LA),"North East, Yorkshire & the Humber",TRISTAR HOMES LIMITED,23/04/2019,9000,,,Grants
"Ministry of Housing, Communities and Local Government",Homes England,CAPITAL GRANTS TO RPs (NOT LA),"North East, Yorkshire & the Humber",KEELMAN HOMES,26/04/2019,30000,,,Grants
"Ministry of Housing, Communities and Local Government",Homes England,CAPITAL GRANTS TO RPs (NOT LA),East & South East,THE EXTRACARE CHARITABLE TRUST,,644000,,,Grants
"Ministry of Housing, Communities and Local Government",Homes England,CAPITAL GRANTS TO RPs (NOT LA),"North East, Yorkshire & the Humber",HUMANKIND CHARITY,26/04/2019,16875,,,Grants
"Ministry of Housing, Communities and Local Government",Homes England,CAPITAL GRANTS TO RPs (NOT LA),"North East, Yorkshire & the Humber",HUMANKIND CHARITY,26/04/2019,7154,,,Grants
"Ministry of Housing, Communities and Local Government",Homes England,CAPITAL GRANTS TO RPs (NOT LA),"North East, Yorkshire & the Humber",HUMANKIND CHARITY,26/04/2019,16875,,,Grants
"Ministry of Housing, Communities and Local Government",Homes England,CAPITAL GRANTS TO RPs (NOT LA),East & South East,THE GUINNESS PARTNERSHIP LIMITED,26/04/2019,67500,,,Grants
"Ministry of Housing, Communities and Local Government",Homes England,CAPITAL GRANTS TO RPs (NOT LA),North West,THE GUINNESS PARTNERSHIP LIMITED,,9000,,,Grants
"Ministry of Housing, Communities and Local Government",Homes England,CAPITAL GRANTS TO RPs (NOT LA),North West,THE GUINNESS PARTNERSHIP LIMITED,,9000,,,Grants
"Ministry of Housing, Communities and Local Government",Homes England,CAPITAL GRANTS TO RPs (NOT LA),South West,THE GUINNESS PARTNERSHIP LIMITED,,10000,,,Grants
"Ministry of Housing, Communities and Local Government",Homes England,CAPITAL GRANTS TO RPs (NOT LA),North West,THE GUINNESS PARTNERSHIP LIMITED,,35000,,,Grants
"Ministry of Housing, Communities and Local Government",Homes England,CAPITAL GRANTS TO RPs (NOT LA),North West,THE GUINNESS PARTNERSHIP LIMITED,,9000,,,Grants
"Ministry of Housing, Communities and Local Government",Homes England,CAPITAL GRANTS TO RPs (NOT LA),North West,THE GUINNESS PARTNERSHIP LIMITED,,32500,,,Grants
"Ministry of Housing, Communities and Local Government",Homes England,CAPITAL GRANTS TO RPs (NOT LA),North West,J & M RESIDENTIAL LETTINGS LIMITED,15/04/2019,5000,,,Grants
"Ministry of Housing, Communities and Local Government",Homes England,CAPITAL GRANTS TO RPs (NOT LA),North West,J & M RESIDENTIAL LETTINGS LIMITED,26/04/2019,5000,,,Grants
"Ministry of Housing, Communities and Local Government",Homes England,CAPITAL GRANTS TO RPs (NOT LA),Midlands,PLATFORM HOUSING GROUP LIMITED,26/04/2019,13000,,,Grants
"Ministry of Housing, Communities and Local Government",Homes England,CAPITAL GRANTS TO RPs (NOT LA),Midlands,PLATFORM HOUSING GROUP LIMITED,29/04/2019,39000,,,Grants
"Ministry of Housing, Communities and Local Government",Homes England,CAPITAL GRANTS TO RPs (NOT LA),Midlands,PLATFORM HOUSING GROUP LIMITED,,13000,,,Grants
"Ministry of Housing, Communities and Local Government",Homes England,CAPITAL GRANTS TO RPs (NOT LA),Midlands,PLATFORM HOUSING GROUP LIMITED,,13000,,,Grants
"Ministry of Housing, Communities and Local Government",Homes England,CAPITAL GRANTS TO RPs (NOT LA),Midlands,PLATFORM HOUSING GROUP LIMITED,,13000,,,Grants
"Ministry of Housing, Communities and Local Government",Homes England,CAPITAL GRANTS TO RPs (NOT LA),Midlands,PLATFORM HOUSING GROUP LIMITED,,13000,,,Grants
"Ministry of Housing, Communities and Local Government",Homes England,CAPITAL GRANTS TO RPs (NOT LA),South West,LODDON HOMES LIMITED,29/04/2019,26333,,,Grants
"Ministry of Housing, Communities and Local Government",Homes England,CAPITAL GRANTS TO RPs (NOT LA),South West,LODDON HOMES LIMITED,29/04/2019,30875,,,Grants
"Ministry of Housing, Communities and Local Government",Homes England,CAPITAL GRANTS TO RPs (NOT LA),Midlands,FORTIS LIVING LIMITED,15/04/2019,11000,,,Grants
"Ministry of Housing, Communities and Local Government",Homes England,CONTRACT WORKS,South West,DYER & BUTLER LTD,02/04/2019,4500,L,811001500,Civil Engineering
"Ministry of Housing, Communities and Local Government",Homes England,MISC PROFESSIONAL FEES,Programmes,AMION CONSULTING LTD,16/04/2019,7553.33,S,81121500,Economic analysis
"Ministry of Housing, Communities and Local Government",Homes England,LEGAL FEES,Programmes,AMION CONSULTING LTD,16/04/2019,3000,S,81121500,Economic analysis
"Ministry of Housing, Communities and Local Government",Homes England,LEGAL FEES,Programmes,AMION CONSULTING LTD,16/04/2019,1000,S,81121500,Economic analysis
"Ministry of Housing, Communities and Local Government",Homes England,ECONOMIC CONSULTANCY PANEL,Programmes,AMION CONSULTING LTD,16/04/2019,3000,S,81121500,Economic analysis
"Ministry of Housing, Communities and Local Government",Homes England,AGENCY STAFF,Programmes,ADECCO UK LTD,01/04/2019,756.38,L,80111600,Temporary personnel services
"Ministry of Housing, Communities and Local Government",Homes England,AGENCY STAFF,Programmes,ADECCO UK LTD,08/04/2019,695.87,L,80111600,Temporary personnel services
"Ministry of Housing, Communities and Local Government",Homes England,AGENCY STAFF,Programmes,ADECCO UK LTD,15/04/2019,734.3,L,80111600,Temporary personnel services
"Ministry of Housing, Communities and Local Government",Homes England,AGENCY STAFF,Programmes,ADECCO UK LTD,29/04/2019,734.3,L,80111600,Temporary personnel services
"Ministry of Housing, Communities and Local Government",Homes England,AGENCY STAFF,Programmes,ADECCO UK LTD,29/04/2019,356.66,L,80111600,Temporary personnel services
"Ministry of Housing, Communities and Local Government",Homes England,OTHER PROFESSIONAL FEES,Programmes,ALLIES AND MORRISON,01/04/2019,28000,L,80131800,Real estate management services
"Ministry of Housing, Communities and Local Government",Homes England,OTHER PROFESSIONAL FEES,Programmes,ALLIES AND MORRISON,01/04/2019,5800,L,80131800,Real estate management services
"Ministry of Housing, Communities and Local Government",Homes England,CONTRACT WORKS,South West,ALUN GRIFFITHS (CONTRACTORS) LTD,02/04/2019,106010.62,L,72141000,Highway and road construction services
"Ministry of Housing, Communities and Local Government",Homes England,RESERVOIRS REPAIR & MAINTENANCE,Programmes,ATKINS LTD,16/04/2019,929.87,L,80131800,Real estate management services
"Ministry of Housing, Communities and Local Government",Homes England,OTHER PROFESSIONAL FEES,North West,ATKINS LTD,30/04/2019,15000,L,80131800,Real estate management services
"Ministry of Housing, Communities and Local Government",Homes England,PACKAGE MAINTENANCE & SUBSCRIPTIONS,Finance & Corporate Services,AUDITWARE SYSTEMS LIMITED,30/04/2019,750,S,43231500,Business function specific software
"Ministry of Housing, Communities and Local Government",Homes England,CAR LEASING - HIRE CHARGES,Programmes,ALPHABET (GB) LTD,08/04/2019,1923.43,L,25101500,Passenger motor vehicles
"Ministry of Housing, Communities and Local Government",Homes England,CAR LEASING - HIRE CHARGES,Programmes,ALPHABET (GB) LTD,08/04/2019,2521.66,L,25101500,Passenger motor vehicles
"Ministry of Housing, Communities and Local Government",Homes England,CAR LEASING - HIRE CHARGES,East And South East,ALPHABET (GB) LTD,08/04/2019,2374.08,L,25101500,Passenger motor vehicles
"Ministry of Housing, Communities and Local Government",Homes England,CAR LEASING - HIRE CHARGES,East And South East,ALPHABET (GB) LTD,08/04/2019,2783.62,L,25101500,Passenger motor vehicles
"Ministry of Housing, Communities and Local Government",Homes England,MISC PROFESSIONAL FEES,Midlands,ELIZABETH AINGE,05/04/2019,250,S,81112103,World wide web WWW site design services�
"Ministry of Housing, Communities and Local Government",Homes England,CONTRACT WORKS,South East,ARMAC DEMOLITION LTD,18/04/2019,131300,M,72141500,Land preparation services
"Ministry of Housing, Communities and Local Government",Homes England,CAR LEASING - HIRE CHARGES,Finance & Corporate Services,ARVAL UK LIMITED,05/04/2019,2189.66,L,25101500,Passenger motor vehicles
"Ministry of Housing, Communities and Local Government",Homes England,CAR LEASING - HIRE CHARGES,Finance & Corporate Services,ARVAL UK LIMITED,05/04/2019,2787.98,L,25101500,Passenger motor vehicles
"Ministry of Housing, Communities and Local Government",Homes England,CAR LEASING - HIRE CHARGES,Programmes,ARVAL UK LIMITED,15/04/2019,310,L,25101500,Passenger motor vehicles
"Ministry of Housing, Communities and Local Government",Homes England,CAR LEASING - HIRE CHARGES,North East And Yorkshire,ARVAL UK LIMITED,15/04/2019,310,L,25101500,Passenger motor vehicles
"Ministry of Housing, Communities and Local Government",Homes England,CAR LEASING - HIRE CHARGES,North East And Yorkshire,ARVAL UK LIMITED,15/04/2019,310,L,25101500,Passenger motor vehicles
"Ministry of Housing, Communities and Local Government",Homes England,CAR LEASING - OTHER COSTS,South West,ARVAL UK LIMITED,15/04/2019,346.26,L,25101500,Passenger motor vehicles
"Ministry of Housing, Communities and Local Government",Homes England,CAR LEASING - OTHER COSTS,North West,ARVAL UK LIMITED,15/04/2019,306,L,25101500,Passenger motor vehicles
"Ministry of Housing, Communities and Local Government",Homes England,ST Fund Loans Additions,Economic Assets Hub,ADVENT DEVELOPMENTS PUDSEY LIMITED,18/04/2019,156909,,,Loans
"Ministry of Housing, Communities and Local Government",Homes England,LEASE BREAK PENALTY,North East And Yorkshire,ASPIRE LEEDS LTD,26/04/2019,3196,S,86101800,In service training and manpower development
"Ministry of Housing, Communities and Local Government",Homes England,ST Fund Loans Additions,Economic Assets Hub,ALPS DEVELOPMENTS MIDLANDS LIMITED,24/04/2019,171272.14,,,Loans
"Ministry of Housing, Communities and Local Government",Homes England,MISC PROFESSIONAL FEES,South West,AURORA HEALTH PHYSICS SERVICES LTD,12/04/2019,2994,S,77101500,Environmental auditing
"Ministry of Housing, Communities and Local Government",Homes England,ESTATE GENERAL MAINTENANCE,North East And Yorkshire,AIREDALE FORESTRY,15/04/2019,413.13,S,72101500,Building maintenance and repair services
"Ministry of Housing, Communities and Local Government",Homes England,ESTATE GENERAL MAINTENANCE,North East And Yorkshire,AIREDALE FORESTRY,15/04/2019,413.13,S,72101500,Building maintenance and repair services
"Ministry of Housing, Communities and Local Government",Homes England,PUBLICATIONS,Executive Office,AURORA DIGITAL PRINT LTD,30/04/2019,1616,S,82121500,Printing
"Ministry of Housing, Communities and Local Government",Homes England,CAR LEASING - HIRE CHARGES,Programmes,ALD AUTOMOTIVE,05/04/2019,2064.58,L,25101500,Passenger motor vehicles
"Ministry of Housing, Communities and Local Government",Homes England,CAR LEASING - HIRE CHARGES,Programmes,ALD AUTOMOTIVE,05/04/2019,2562.58,L,25101500,Passenger motor vehicles
"Ministry of Housing, Communities and Local Government",Homes England,Professional Fees Loans Capitalised,Economic Assets Hub,ASHFORDS,03/04/2019,7200,L,80121600,Business law services
"Ministry of Housing, Communities and Local Government",Homes England,DISPOSAL FEES - LEGAL,South West,ASHFORDS,18/04/2019,8819,L,80121600,Business law services
"Ministry of Housing, Communities and Local Government",Homes England,PACKAGE MAINTENANCE & SUBSCRIPTIONS,Finance & Corporate Services,ANDERSEN PARTNERS,18/04/2019,2600.19,S,80121600,Business law services
"Ministry of Housing, Communities and Local Government",Homes England,SECURITY (Incl Fire Prevention),Finance & Corporate Services,ADT FIRE AND SECURITY PLC,11/04/2019,324.74,L,72102900,Facility maintenance and repair services
"Ministry of Housing, Communities and Local Government",Homes England,SECURITY (Incl Fire Prevention),Finance & Corporate Services,ADT FIRE AND SECURITY PLC,11/04/2019,426.26,L,72102900,Facility maintenance and repair services
"Ministry of Housing, Communities and Local Government",Homes England,SECURITY (Incl Fire Prevention),Finance & Corporate Services,ADT FIRE AND SECURITY PLC,11/04/2019,923.95,L,72102900,Facility maintenance and repair services
"Ministry of Housing, Communities and Local Government",Homes England,SECURITY (Incl Fire Prevention),Finance & Corporate Services,ADT FIRE AND SECURITY PLC,11/04/2019,309.26,L,72102900,Facility maintenance and repair services
"Ministry of Housing, Communities and Local Government",Homes England,SECURITY (Incl Fire Prevention),Finance & Corporate Services,ADT FIRE AND SECURITY PLC,11/04/2019,670.33,L,72102900,Facility maintenance and repair services
"Ministry of Housing, Communities and Local Government",Homes England,SECURITY (Incl Fire Prevention),Finance & Corporate Services,ADT FIRE AND SECURITY PLC,11/04/2019,255.21,L,72102900,Facility maintenance and repair services
"Ministry of Housing, Communities and Local Government",Homes England,CAR LEASING - HIRE CHARGES,North East And Yorkshire,ARNOLD CLARK FINANCE LIMITED,15/04/2019,2185.56,L,25101500,Passenger motor vehicles
"Ministry of Housing, Communities and Local Government",Homes England,CAR LEASING - HIRE CHARGES,North East And Yorkshire,ARNOLD CLARK FINANCE LIMITED,15/04/2019,2748.24,L,25101500,Passenger motor vehicles
"Ministry of Housing, Communities and Local Government",Homes England,CAR LEASING - HIRE CHARGES,East And South East,ARNOLD CLARK FINANCE LIMITED,17/04/2019,1911.78,L,25101500,Passenger motor vehicles
"Ministry of Housing, Communities and Local Government",Homes England,CAR LEASING - HIRE CHARGES,East And South East,ARNOLD CLARK FINANCE LIMITED,17/04/2019,2179.86,L,25101500,Passenger motor vehicles
"Ministry of Housing, Communities and Local Government",Homes England,CAR LEASING - HIRE CHARGES,North East And Yorkshire,ARNOLD CLARK FINANCE LIMITED,18/04/2019,1901.34,L,25101500,Passenger motor vehicles
"Ministry of Housing, Communities and Local Government",Homes England,CAR LEASING - HIRE CHARGES,North East And Yorkshire,ARNOLD CLARK FINANCE LIMITED,18/04/2019,2279.7,L,25101500,Passenger motor vehicles
"Ministry of Housing, Communities and Local Government",Homes England,CAR LEASING - HIRE CHARGES,Programmes,ARNOLD CLARK FINANCE LIMITED,23/04/2019,2291.82,L,25101500,Passenger motor vehicles
"Ministry of Housing, Communities and Local Government",Homes England,CAR LEASING - HIRE CHARGES,Programmes,ARNOLD CLARK FINANCE LIMITED,23/04/2019,3055.02,L,25101500,Passenger motor vehicles
"Ministry of Housing, Communities and Local Government",Homes England,BUILDINGS-FIRE PREVENTION,South West,ALPHA FIRE AND SECURITY SOLUTIONS LTD,09/04/2019,309,S,72102900,Facility maintenance and repair services
"Ministry of Housing, Communities and Local Government",Homes England,BUILDINGS-FIRE PREVENTION,South West,ALPHA FIRE AND SECURITY SOLUTIONS LTD,18/04/2019,1540,S,72102900,Facility maintenance and repair services
"Ministry of Housing, Communities and Local Government",Homes England,ESTATE GENERAL MAINTENANCE,Midlands,AYLESBURY MAINS LTD,10/04/2019,491,S,72101500,Building maintenance and repair services
"Ministry of Housing, Communities and Local Government",Homes England,BUILDINGS-VACANT RATES,Programmes,BASILDON DISTRICT COUNCIL,04/04/2019,2621.32,G,80131500,Lease and rental of property or building
"Ministry of Housing, Communities and Local Government",Homes England,Professional Fees Loans Capitalised,Economic Assets Hub,BERWIN LEIGHTON PAISNER,03/04/2019,2500,L,80121600,Business law services
"Ministry of Housing, Communities and Local Government",Homes England,LEGAL FEES (ADMIN ONLY),Finance & Corporate Services,BERWIN LEIGHTON PAISNER,09/04/2019,2534.5,L,80121600,Business law services
"Ministry of Housing, Communities and Local Government",Homes England,Professional Fees Equity Capitalised,Economic Assets Hub,BERWIN LEIGHTON PAISNER,10/04/2019,80000,L,80121600,Business law services
"Ministry of Housing, Communities and Local Government",Homes England,LEGAL FEES,South West,BERWIN LEIGHTON PAISNER,12/04/2019,2854.38,L,80121600,Business law services
"Ministry of Housing, Communities and Local Government",Homes England,DISPOSAL FEES - LEGAL,East And South East,BERWIN LEIGHTON PAISNER,12/04/2019,1122,L,80121600,Business law services
"Ministry of Housing, Communities and Local Government",Homes England,LEGAL FEES,Programmes,BERWIN LEIGHTON PAISNER,12/04/2019,17500,L,80121600,Business law services
"Ministry of Housing, Communities and Local Government",Homes England,Professional Fees Equity Capitalised,Economic Assets Hub,BERWIN LEIGHTON PAISNER,15/04/2019,30000,L,80121600,Business law services
"Ministry of Housing, Communities and Local Government",Homes England,DISPOSAL FEES - LEGAL,East And South East,BERWIN LEIGHTON PAISNER,17/04/2019,10865,L,80121600,Business law services
"Ministry of Housing, Communities and Local Government",Homes England,DISPOSAL FEES - LEGAL,East And South East,BERWIN LEIGHTON PAISNER,17/04/2019,4821.1,L,80121600,Business law services
"Ministry of Housing, Communities and Local Government",Homes England,DISPOSAL FEES - LEGAL,East And South East,BERWIN LEIGHTON PAISNER,17/04/2019,10768.5,L,80121600,Business law services
"Ministry of Housing, Communities and Local Government",Homes England,DISPOSAL FEES - LEGAL,East And South East,BERWIN LEIGHTON PAISNER,17/04/2019,6829,L,80121600,Business law services
"Ministry of Housing, Communities and Local Government",Homes England,LEGAL FEES,Economic Assets Hub,BERWIN LEIGHTON PAISNER,30/04/2019,7500,L,80121600,Business law services
"Ministry of Housing, Communities and Local Government",Homes England,LEGAL FEES,South West,BROWNE JACOBSON LLP,03/04/2019,2000,L,80121600,Business law services
"Ministry of Housing, Communities and Local Government",Homes England,LEGAL FEES,North East And Yorkshire,BROWNE JACOBSON LLP,04/04/2019,3500,L,80121600,Business law services
"Ministry of Housing, Communities and Local Government",Homes England,LEGAL FEES,Midlands,BROWNE JACOBSON LLP,04/04/2019,455,L,80121600,Business law services
"Ministry of Housing, Communities and Local Government",Homes England,DISPOSAL FEES - LEGAL,Midlands,BROWNE JACOBSON LLP,04/04/2019,6509,L,80121600,Business law services
"Ministry of Housing, Communities and Local Government",Homes England,DISPOSAL FEES - LEGAL,North West,BROWNE JACOBSON LLP,04/04/2019,8564.06,L,80121600,Business law services
"Ministry of Housing, Communities and Local Government",Homes England,LEGAL FEES,North East And Yorkshire,BROWNE JACOBSON LLP,05/04/2019,1200,L,80121600,Business law services
"Ministry of Housing, Communities and Local Government",Homes England,DISPOSAL FEES - LEGAL,Midlands,BROWNE JACOBSON LLP,05/04/2019,950,L,80121600,Business law services
"Ministry of Housing, Communities and Local Government",Homes England,LEGAL FEES,East And South East,BROWNE JACOBSON LLP,05/04/2019,2950,L,80121600,Business law services
"Ministry of Housing, Communities and Local Government",Homes England,LEGAL FEES,East And South East,BROWNE JACOBSON LLP,05/04/2019,2950,L,80121600,Business law services
"Ministry of Housing, Communities and Local Government",Homes England,LEGAL FEES,Programmes,BROWNE JACOBSON LLP,05/04/2019,3312,L,80121600,Business law services
"Ministry of Housing, Communities and Local Government",Homes England,LEGAL FEES,East And South East,BROWNE JACOBSON LLP,05/04/2019,500,L,80121600,Business law services
"Ministry of Housing, Communities and Local Government",Homes England,DISPOSAL FEES - LEGAL,East And South East,BROWNE JACOBSON LLP,08/04/2019,5000,L,80121600,Business law services
"Ministry of Housing, Communities and Local Government",Homes England,LEGAL FEES,South West,BROWNE JACOBSON LLP,09/04/2019,2000,L,80121600,Business law services
"Ministry of Housing, Communities and Local Government",Homes England,LEGAL FEES,South West,BROWNE JACOBSON LLP,09/04/2019,900,L,80121600,Business law services
"Ministry of Housing, Communities and Local Government",Homes England,LEGAL FEES,Programmes,BROWNE JACOBSON LLP,10/04/2019,2100,L,80121600,Business law services
"Ministry of Housing, Communities and Local Government",Homes England,LEGAL FEES,South West,BROWNE JACOBSON LLP,10/04/2019,1500,L,80121600,Business law services
"Ministry of Housing, Communities and Local Government",Homes England,Professional Fees Loans Capitalised,Economic Assets Hub,BROWNE JACOBSON LLP,11/04/2019,19507.8,L,80121600,Business law services
"Ministry of Housing, Communities and Local Government",Homes England,Professional Fees Loans Capitalised,Economic Assets Hub,BROWNE JACOBSON LLP,12/04/2019,19206.5,L,80121600,Business law services
"Ministry of Housing, Communities and Local Government",Homes England,DISPOSAL FEES - LEGAL,South West,BROWNE JACOBSON LLP,12/04/2019,9221.8,L,80121600,Business law services
"Ministry of Housing, Communities and Local Government",Homes England,DISPOSAL FEES - LEGAL,Midlands,BROWNE JACOBSON LLP,15/04/2019,2249,L,80121600,Business law services
"Ministry of Housing, Communities and Local Government",Homes England,DISPOSAL FEES - LEGAL,Midlands,BROWNE JACOBSON LLP,15/04/2019,3799,L,80121600,Business law services
"Ministry of Housing, Communities and Local Government",Homes England,DISPOSAL FEES - LEGAL,North West,BROWNE JACOBSON LLP,15/04/2019,3478,L,80121600,Business law services
"Ministry of Housing, Communities and Local Government",Homes England,DISPOSAL FEES - LEGAL,Midlands,BROWNE JACOBSON LLP,17/04/2019,656,L,80121600,Business law services
"Ministry of Housing, Communities and Local Government",Homes England,LEGAL FEES,North West,BROWNE JACOBSON LLP,24/04/2019,4009,L,80121600,Business law services
"Ministry of Housing, Communities and Local Government",Homes England,DISPOSAL FEES - LEGAL,South West,BROWNE JACOBSON LLP,24/04/2019,396,L,80121600,Business law services
"Ministry of Housing, Communities and Local Government",Homes England,DISPOSAL FEES - LEGAL,Midlands,BROWNE JACOBSON LLP,25/04/2019,6000,L,80121600,Business law services
"Ministry of Housing, Communities and Local Government",Homes England,DISPOSAL FEES - LEGAL,Midlands,BROWNE JACOBSON LLP,25/04/2019,9006,L,80121600,Business law services
"Ministry of Housing, Communities and Local Government",Homes England,LEGAL FEES,Midlands,BROWNE JACOBSON LLP,26/04/2019,1500,L,80121600,Business law services
"Ministry of Housing, Communities and Local Government",Homes England,LEGAL FEES,North East And Yorkshire,BROWNE JACOBSON LLP,26/04/2019,1750,L,80121600,Business law services
"Ministry of Housing, Communities and Local Government",Homes England,DISPOSAL FEES - LEGAL,Midlands,BROWNE JACOBSON LLP,29/04/2019,9000,L,80121600,Business law services
"Ministry of Housing, Communities and Local Government",Homes England,LEGAL FEES,Economic Assets Hub,BROWNE JACOBSON LLP,29/04/2019,903.9,L,80121600,Business law services
"Ministry of Housing, Communities and Local Government",Homes England,LEGAL FEES,Midlands,BROWNE JACOBSON LLP,29/04/2019,600,L,80121600,Business law services
"Ministry of Housing, Communities and Local Government",Homes England,LEGAL FEES,Midlands,BROWNE JACOBSON LLP,29/04/2019,950,L,80121600,Business law services
"Ministry of Housing, Communities and Local Government",Homes England,DISPOSAL FEES - LEGAL,Midlands,BROWNE JACOBSON LLP,30/04/2019,1500,L,80121600,Business law services
"Ministry of Housing, Communities and Local Government",Homes England,Professional Fees Loans Capitalised,Economic Assets Hub,BROWNE JACOBSON LLP,30/04/2019,8157.5,L,80121600,Business law services
"Ministry of Housing, Communities and Local Government",Homes England,MISC PROFESSIONAL FEES,Programmes,BUILDING DESIGN PARTNERSHIP,04/04/2019,33350,L,80131800,Real estate management services
"Ministry of Housing, Communities and Local Government",Homes England,MISC PROFESSIONAL FEES,Programmes,BUILDING DESIGN PARTNERSHIP,04/04/2019,33350,L,80131800,Real estate management services
"Ministry of Housing, Communities and Local Government",Homes England,MISC PROFESSIONAL FEES,North West,BUILDING DESIGN PARTNERSHIP,05/04/2019,6825,L,80131800,Real estate management services
"Ministry of Housing, Communities and Local Government",Homes England,MISC PROFESSIONAL FEES,North West,BUILDING DESIGN PARTNERSHIP,29/04/2019,5454,L,80131800,Real estate management services
"Ministry of Housing, Communities and Local Government",Homes England,MASTERPLANNING FEES,North West,BUILDING DESIGN PARTNERSHIP,29/04/2019,7660.62,L,80131800,Real estate management services
"Ministry of Housing, Communities and Local Government",Homes England,MISC PROFESSIONAL FEES (ADMIN ONLY),Executive Office,THE BOSTON CONSULTING GROUP UK LLP,03/04/2019,26997,L,80101500,Business and corporate management consultation services 
"Ministry of Housing, Communities and Local Government",Homes England,MISC PROFESSIONAL FEES (ADMIN ONLY),Executive Office,THE BOSTON CONSULTING GROUP UK LLP,03/04/2019,43440,L,80101500,Business and corporate management consultation services 
"Ministry of Housing, Communities and Local Government",Homes England,BUILDINGS-VACANT RATES,Midlands,BASSETLAW DISTRICT COUNCIL (NNDR),03/04/2019,19026.25,G,80131500,Lease and rental of property or building
"Ministry of Housing, Communities and Local Government",Homes England,MASTERPLANNING FEES,East And South East,PETER BRETT ASSOCIATES LLP,03/04/2019,26939.49,L,80131800,Real estate management services
"Ministry of Housing, Communities and Local Government",Homes England,ENVIRONMENTAL IMPACT ASSESMENTS,East And South East,PETER BRETT ASSOCIATES LLP,04/04/2019,900,L,80131800,Real estate management services
"Ministry of Housing, Communities and Local Government",Homes England,OTHER PROFESSIONAL FEES,East And South East,PETER BRETT ASSOCIATES LLP,05/04/2019,1200,L,80131800,Real estate management services
"Ministry of Housing, Communities and Local Government",Homes England,MASTERPLANNING FEES,South West,PETER BRETT ASSOCIATES LLP,08/04/2019,27117.93,L,80131800,Real estate management services
"Ministry of Housing, Communities and Local Government",Homes England,MASTERPLANNING FEES,East And South East,PETER BRETT ASSOCIATES LLP,10/04/2019,16371.04,L,80131800,Real estate management services
"Ministry of Housing, Communities and Local Government",Homes England,PROPERTY SERVICES,Programmes,PETER BRETT ASSOCIATES LLP,29/04/2019,10471.48,L,80131800,Real estate management services
"Ministry of Housing, Communities and Local Government",Homes England,ENGINEERING CONSULTANTS,South West,PETER BRETT ASSOCIATES LLP,29/04/2019,2000,L,80131800,Real estate management services
"Ministry of Housing, Communities and Local Government",Homes England,PROJECT MANAGEMENT,South West,PETER BRETT ASSOCIATES LLP,29/04/2019,2365,L,80131800,Real estate management services
"Ministry of Housing, Communities and Local Government",Homes England,ENGINEERING CONSULTANTS,South West,PETER BRETT ASSOCIATES LLP,29/04/2019,1000,L,80131800,Real estate management services
"Ministry of Housing, Communities and Local Government",Homes England,ENGINEERING CONSULTANTS,South West,PETER BRETT ASSOCIATES LLP,29/04/2019,1500,L,80131800,Real estate management services
"Ministry of Housing, Communities and Local Government",Homes England,ENGINEERING CONSULTANTS,South West,PETER BRETT ASSOCIATES LLP,29/04/2019,1500,L,80131800,Real estate management services
"Ministry of Housing, Communities and Local Government",Homes England,ENGINEERING FEES,South West,PETER BRETT ASSOCIATES LLP,29/04/2019,1260,L,80131800,Real estate management services
"Ministry of Housing, Communities and Local Government",Homes England,MISC PROFESSIONAL FEES,South West,PETER BRETT ASSOCIATES LLP,29/04/2019,860,L,80131800,Real estate management services
"Ministry of Housing, Communities and Local Government",Homes England,OTHER PROFESSIONAL FEES,South West,RIDER LEVETT BUCKNALL UK LTD,16/04/2019,510,L,80131800,Real estate management services
"Ministry of Housing, Communities and Local Government",Homes England,TELEPHONES,Finance & Corporate Services,BRITISH TELECOMMUNICATIONS PLC,09/04/2019,345.43,L,83111500,Local and long distance telephone communications
"Ministry of Housing, Communities and Local Government",Homes England,TELEPHONES,Finance & Corporate Services,BRITISH TELECOMMUNICATIONS PLC,29/04/2019,357.18,L,83111500,Local and long distance telephone communications
"Ministry of Housing, Communities and Local Government",Homes England,TELEPHONES,Finance & Corporate Services,BRITISH TELECOMMUNICATIONS PLC,29/04/2019,1046,L,83111500,Local and long distance telephone communications
"Ministry of Housing, Communities and Local Government",Homes England,BUILDINGS-VACANT RATES,South East,BOLSOVER DISTRICT COUNCIL,02/04/2019,1258.54,G,80131500,Lease and rental of property or building
"Ministry of Housing, Communities and Local Government",Homes England,STAFF RECRUITMENT COSTS,Finance & Corporate Services,BE APPLIED LTD,03/04/2019,36000,S,80111700,Personnel recruitment
"Ministry of Housing, Communities and Local Government",Homes England,STREET LIGHTING,East And South East,BRITISH GAS BUSINESS,04/04/2019,826.95,L,83101800,Electric utilities
"Ministry of Housing, Communities and Local Government",Homes England,BUILDINGS-ELECTRICITY,North East And Yorkshire,BRITISH GAS BUSINESS,16/04/2019,324.41,L,83101800,Electric utilities
"Ministry of Housing, Communities and Local Government",Homes England,BUILDINGS-ELECTRICITY,East And South East,BRITISH GAS BUSINESS,17/04/2019,1696.76,L,83101800,Electric utilities
"Ministry of Housing, Communities and Local Government",Homes England,BUILDINGS-ELECTRICITY,East And South East,BRITISH GAS BUSINESS,17/04/2019,1484.82,L,83101800,Electric utilities
"Ministry of Housing, Communities and Local Government",Homes England,BUILDINGS-ELECTRICITY,South West,BRITISH GAS BUSINESS,29/04/2019,297.66,L,83101800,Electric utilities
"Ministry of Housing, Communities and Local Government",Homes England,BUILDINGS-VACANT RATES,Midlands,BIRMINGHAM CITY COUNCIL,16/04/2019,6678,G,80131500,Lease and rental of property or building
"Ministry of Housing, Communities and Local Government",Homes England,BUILDINGS-VACANT RATES,Midlands,BIRMINGHAM CITY COUNCIL,16/04/2019,9954,G,80131500,Lease and rental of property or building
"Ministry of Housing, Communities and Local Government",Homes England,CONTRACT WORKS,South West,KNIGHTS BROWN CONSTRUCTION LIMITED,09/04/2019,414004.04,M,72141500,Land preparation services
"Ministry of Housing, Communities and Local Government",Homes England,CONTRACT WORKS,South West,KNIGHTS BROWN CONSTRUCTION LIMITED,11/04/2019,171869.25,M,72141500,Land preparation services
"Ministry of Housing, Communities and Local Government",Homes England,ST Fund Loans Additions,Economic Assets Hub,BAGNALL HEIGHTS LTD,26/04/2019,169844,,,Loans
"Ministry of Housing, Communities and Local Government",Homes England,COMPENSATION,East And South East,BERRYS,30/04/2019,30045,S,80131800,Real estate management services
"Ministry of Housing, Communities and Local Government",Homes England,ECONOMIC APPRAISAL,East And South East,BBP REGENERATION LTD,01/04/2019,26307,S,81121500,Economic analysis
"Ministry of Housing, Communities and Local Government",Homes England,ECONOMIC APPRAISAL,East And South East,BBP REGENERATION LTD,01/04/2019,7500,S,81121500,Economic analysis
"Ministry of Housing, Communities and Local Government",Homes England,MISC PROFESSIONAL FEES,Programmes,BBP REGENERATION LTD,04/04/2019,800,S,81121500,Economic analysis
"Ministry of Housing, Communities and Local Government",Homes England,STAMP DUTY,Midlands,BROWNE JACOBSON,08/04/2019,199500,,,Acquisition
"Ministry of Housing, Communities and Local Government",Homes England,BUILDINGS-VACANT RATES,Midlands,BROMSGROVE DISTRICT COUNCIL,23/04/2019,4334.4,G,80131500,Lease and rental of property or building
"Ministry of Housing, Communities and Local Government",Homes England,BUILDINGS-VACANT RATES,Midlands,BROMSGROVE DISTRICT COUNCIL,23/04/2019,11466,G,80131500,Lease and rental of property or building
"Ministry of Housing, Communities and Local Government",Homes England,OTHER PROFESSIONAL FEES,South West,BARTON WILLMORE,18/04/2019,6991.42,L,80131800,Real estate management services
"Ministry of Housing, Communities and Local Government",Homes England,OPEN MARKET VALUATION FEE,North East And Yorkshire,BRADLEY HALL LIMITED,03/04/2019,1500,S,80131800,Real estate management services
"Ministry of Housing, Communities and Local Government",Homes England,OPEN MARKET VALUATION FEE,Programmes,BRADLEY HALL LIMITED,15/04/2019,27538,S,80131800,Real estate management services
"Ministry of Housing, Communities and Local Government",Homes England,OPEN MARKET VALUATION FEE,North East And Yorkshire,BRADLEY HALL LIMITED,17/04/2019,1500,S,80131800,Real estate management services
"Ministry of Housing, Communities and Local Government",Homes England,SUBSISTENCE-ACCOMODATION,Executive Office,THE BRISTOL,16/04/2019,2660.83,L,90111800,Hotel rooms
"Ministry of Housing, Communities and Local Government",Homes England,ST Fund Loans Additions,Economic Assets Hub,BARTHOLOMEW HOMES LIMITED,04/04/2019,63074.65,,,Loans
"Ministry of Housing, Communities and Local Government",Homes England,ST Fund Loans Additions,Economic Assets Hub,BARTHOLOMEW HOMES LIMITED,25/04/2019,105493.29,,,Loans
"Ministry of Housing, Communities and Local Government",Homes England,OTHER PROFESSIONAL FEES,East And South East,BERWIN LEIGHTON PAISNER,30/04/2019,20000,L,80121600,Business law services
"Ministry of Housing, Communities and Local Government",Homes England,RENT PAYABLE,Programmes,BASILDON RUGBY FOOTBALL CLUB,02/04/2019,2705,S,80131500,Lease and rental of property or building
"Ministry of Housing, Communities and Local Government",Homes England,RI - MONITORING SURVEYOR FEES,Economic Assets Hub,BNP PARIBAS REAL ESTATE,01/04/2019,2203.5,L,80131800,Real estate management services
"Ministry of Housing, Communities and Local Government",Homes England,RI - MONITORING SURVEYOR FEES,Programmes,BNP PARIBAS REAL ESTATE,01/04/2019,650,L,80131800,Real estate management services
"Ministry of Housing, Communities and Local Government",Homes England,RI - MONITORING SURVEYOR FEES,Programmes,BNP PARIBAS REAL ESTATE,03/04/2019,600,L,80131800,Real estate management services
"Ministry of Housing, Communities and Local Government",Homes England,Professional Fees Loans Capitalised,Programmes,BNP PARIBAS REAL ESTATE,03/04/2019,600,L,80131800,Real estate management services
"Ministry of Housing, Communities and Local Government",Homes England,RI - MONITORING SURVEYOR FEES,Programmes,BNP PARIBAS REAL ESTATE,03/04/2019,500,L,80131800,Real estate management services
"Ministry of Housing, Communities and Local Government",Homes England,Professional Fees Loans Capitalised,Programmes,BNP PARIBAS REAL ESTATE,03/04/2019,600,L,80131800,Real estate management services
"Ministry of Housing, Communities and Local Government",Homes England,Professional Fees Loans Capitalised,Programmes,BNP PARIBAS REAL ESTATE,04/04/2019,500,L,80131800,Real estate management services
"Ministry of Housing, Communities and Local Government",Homes England,MISC PROFESSIONAL FEES,Programmes,BNP PARIBAS REAL ESTATE,04/04/2019,500,L,80131800,Real estate management services
"Ministry of Housing, Communities and Local Government",Homes England,Professional Fees Loans Capitalised,Programmes,BNP PARIBAS REAL ESTATE,11/04/2019,1822.5,L,80131800,Real estate management services
"Ministry of Housing, Communities and Local Government",Homes England,RI - MONITORING SURVEYOR FEES,Programmes,BNP PARIBAS REAL ESTATE,15/04/2019,600,L,80131800,Real estate management services
"Ministry of Housing, Communities and Local Government",Homes England,DISPOSAL FEES - PROPERTY AGENTS & ADVERTISING,South West,BNP PARIBAS REAL ESTATE,18/04/2019,2000,L,80131800,Real estate management services
"Ministry of Housing, Communities and Local Government",Homes England,RI - MONITORING SURVEYOR FEES,Programmes,BNP PARIBAS REAL ESTATE,29/04/2019,700,L,80131800,Real estate management services
"Ministry of Housing, Communities and Local Government",Homes England,RI - MONITORING SURVEYOR FEES,Programmes,BNP PARIBAS REAL ESTATE,29/04/2019,850,L,80131800,Real estate management services
"Ministry of Housing, Communities and Local Government",Homes England,Professional Fees Equity Capitalised,Economic Assets Hub,BOND DICKINSON LLP,02/04/2019,11117.5,L,80121600,Business law services
"Ministry of Housing, Communities and Local Government",Homes England,LEGAL FEES,South West,BOND DICKINSON LLP,09/04/2019,2017,L,80121600,Business law services
"Ministry of Housing, Communities and Local Government",Homes England,DISPOSAL FEES - LEGAL,South West,BOND DICKINSON LLP,09/04/2019,3037.45,L,80121600,Business law services
"Ministry of Housing, Communities and Local Government",Homes England,LEGAL FEES,South West,BOND DICKINSON LLP,23/04/2019,850,L,80121600,Business law services
"Ministry of Housing, Communities and Local Government",Homes England,ROADS & CAR PARKS,East And South East,G BURLEY & SONS LTD,11/04/2019,3430,S,72101500,Building maintenance and repair services
"Ministry of Housing, Communities and Local Government",Homes England,OTHER PROFESSIONAL FEES,Midlands,BERRYS,01/04/2019,2500,S,80131800,Real estate management services
"Ministry of Housing, Communities and Local Government",Homes England,PROPERTY SERVICES,North East And Yorkshire,BERRYS,01/04/2019,2500,S,80131800,Real estate management services
"Ministry of Housing, Communities and Local Government",Homes England,PROPERTY SERVICES,North East And Yorkshire,BERRYS,01/04/2019,1000,S,80131800,Real estate management services
"Ministry of Housing, Communities and Local Government",Homes England,PROPERTY SERVICES,North East And Yorkshire,BERRYS,01/04/2019,1500,S,80131800,Real estate management services
"Ministry of Housing, Communities and Local Government",Homes England,PROPERTY SERVICES,Programmes,BERRYS,03/04/2019,2000,S,80131800,Real estate management services
"Ministry of Housing, Communities and Local Government",Homes England,MANAGEMENT COSTS,North West,BERRYS,10/04/2019,1584.7,S,80131800,Real estate management services
"Ministry of Housing, Communities and Local Government",Homes England,PLANNING APPLICATIONS,North West,CAMPBELL REITH,05/04/2019,819,M,77101500,Environmental auditing
"Ministry of Housing, Communities and Local Government",Homes England,LEGAL FEES,South West,CAMPBELL REITH,09/04/2019,55044.55,M,77101500,Environmental auditing
"Ministry of Housing, Communities and Local Government",Homes England,LEGAL FEES,South West,CAMPBELL REITH,09/04/2019,5052,M,77101500,Environmental auditing
"Ministry of Housing, Communities and Local Government",Homes England,LEGAL FEES,South West,CAMPBELL REITH,09/04/2019,3900,M,77101500,Environmental auditing
"Ministry of Housing, Communities and Local Government",Homes England,ENGINEERING CONSULTANTS,East And South East,CAMPBELL REITH,10/04/2019,250,M,77101500,Environmental auditing
"Ministry of Housing, Communities and Local Government",Homes England,ENGINEERING CONSULTANTS,South West,CAMPBELL REITH,11/04/2019,11895.03,M,77101500,Environmental auditing
"Ministry of Housing, Communities and Local Government",Homes England,LEGAL FEES,North West,CAMPBELL REITH,15/04/2019,2000,M,77101500,Environmental auditing
"Ministry of Housing, Communities and Local Government",Homes England,ENGINEERING FEES,North West,CAMPBELL REITH,15/04/2019,2000,M,77101500,Environmental auditing
"Ministry of Housing, Communities and Local Government",Homes England,ENGINEERING FEES,North West,CAMPBELL REITH,15/04/2019,2000,M,77101500,Environmental auditing
"Ministry of Housing, Communities and Local Government",Homes England,ENGINEERING CONSULTANTS,Midlands,CAMPBELL REITH,15/04/2019,6250,M,77101500,Environmental auditing
"Ministry of Housing, Communities and Local Government",Homes England,PROPERTY SERVICES,North West,CAMPBELL REITH,15/04/2019,540.2,M,77101500,Environmental auditing
"Ministry of Housing, Communities and Local Government",Homes England,RI - MONITORING SURVEYOR FEES,Economic Assets Hub,CAMPBELL REITH,16/04/2019,1200,M,77101500,Environmental auditing
"Ministry of Housing, Communities and Local Government",Homes England,Professional Fees Loans Capitalised,Economic Assets Hub,CAMPBELL REITH,16/04/2019,3250,M,77101500,Environmental auditing
"Ministry of Housing, Communities and Local Government",Homes England,Professional Fees Loans Capitalised,Economic Assets Hub,CAMPBELL REITH,16/04/2019,1250,M,77101500,Environmental auditing
"Ministry of Housing, Communities and Local Government",Homes England,PLANNING APPLICATIONS,East And South East,CAMPBELL REITH,23/04/2019,8918.71,M,77101500,Environmental auditing
"Ministry of Housing, Communities and Local Government",Homes England,OTHER PROFESSIONAL FEES,North West,CAMPBELL REITH,24/04/2019,9145.54,M,77101500,Environmental auditing
"Ministry of Housing, Communities and Local Government",Homes England,MISC PROFESSIONAL FEES,Midlands,CAMPBELL REITH,26/04/2019,3480,M,77101500,Environmental auditing
"Ministry of Housing, Communities and Local Government",Homes England,PROPERTY SERVICES,Programmes,CAMPBELL REITH,26/04/2019,2900,M,77101500,Environmental auditing
"Ministry of Housing, Communities and Local Government",Homes England,PROPERTY SERVICES,Programmes,CAMPBELL REITH,26/04/2019,5327,M,77101500,Environmental auditing
"Ministry of Housing, Communities and Local Government",Homes England,OTHER PROFESSIONAL FEES,East And South East,CARTER JONAS,08/04/2019,5300,L,80131800,Real estate management services
"Ministry of Housing, Communities and Local Government",Homes England,Professional Fees Loans Capitalised,Programmes,CARTER JONAS,15/04/2019,1050,L,80131800,Real estate management services
"Ministry of Housing, Communities and Local Government",Homes England,MISC PROFESSIONAL FEES,South West,CARTER JONAS,23/04/2019,2100,L,80131800,Real estate management services
"Ministry of Housing, Communities and Local Government",Homes England,PROPERTY SERVICES,East And South East,CARTER JONAS,29/04/2019,3201.5,L,80131800,Real estate management services
"Ministry of Housing, Communities and Local Government",Homes England,DISPOSAL FEES - PROPERTY AGENTS & ADVERTISING,Midlands,CARTER JONAS,30/04/2019,2000,L,80131800,Real estate management services
"Ministry of Housing, Communities and Local Government",Homes England,BUILDINGS-GAS,North East And Yorkshire,CORONA ENERGY,12/04/2019,265.45,L,83101600,Oil and gas utilities
"Ministry of Housing, Communities and Local Government",Homes England,GAS,Finance & Corporate Services,CORONA ENERGY,15/04/2019,306.06,L,83101600,Oil and gas utilities
"Ministry of Housing, Communities and Local Government",Homes England,GAS,Finance & Corporate Services,CORONA ENERGY,15/04/2019,663.41,L,83101600,Oil and gas utilities
"Ministry of Housing, Communities and Local Government",Homes England,GAS,Finance & Corporate Services,CORONA ENERGY,15/04/2019,300.44,L,83101600,Oil and gas utilities
"Ministry of Housing, Communities and Local Government",Homes England,GAS,Finance & Corporate Services,CORONA ENERGY,15/04/2019,728.83,L,83101600,Oil and gas utilities
"Ministry of Housing, Communities and Local Government",Homes England,BUILDINGS-GAS,North East And Yorkshire,CORONA ENERGY,15/04/2019,1428.8,L,83101800,Electric utilities
"Ministry of Housing, Communities and Local Government",Homes England,BUILDINGS-GAS,Midlands,CORONA ENERGY,16/04/2019,290.2,L,83101600,Oil and gas utilities
"Ministry of Housing, Communities and Local Government",Homes England,BUILDINGS-GAS,South West,CORONA ENERGY,24/04/2019,297.29,L,83101800,Electric utilities
"Ministry of Housing, Communities and Local Government",Homes England,BUILDINGS-GAS,South West,CORONA ENERGY,24/04/2019,897.73,L,83101600,Oil and gas utilities
"Ministry of Housing, Communities and Local Government",Homes England,BUILDINGS-GAS,South West,CORONA ENERGY,24/04/2019,384.66,L,83101800,Electric utilities
"Ministry of Housing, Communities and Local Government",Homes England,LEASE BREAK PENALTY,North East And Yorkshire,CLAYTON HOTELS,18/04/2019,950,L,80131500,Lease and rental of property or building
"Ministry of Housing, Communities and Local Government",Homes England,ST Fund Loans Additions,Economic Assets Hub,CHIPPING HOMES LIMITED,16/04/2019,323144.34,,,Loans
"Ministry of Housing, Communities and Local Government",Homes England,LAND REMEDIATION,East And South East,CAMBRIDGE ARCHAEOLOGY UNIT,04/04/2019,34655.16,L,80131800,Real estate management services
"Ministry of Housing, Communities and Local Government",Homes England,LAND REMEDIATION,East And South East,CAMBRIDGE ARCHAEOLOGY UNIT,04/04/2019,18385.4,L,80131800,Real estate management services
"Ministry of Housing, Communities and Local Government",Homes England,ST Fund Loans Additions,Economic Assets Hub,CHIPRO DEVELOPMENTS,03/04/2019,159481,,,Loans
"Ministry of Housing, Communities and Local Government",Homes England,MANAGEMENT COSTS,South West,COAST 2 COAST SECURITY LTD,24/04/2019,350,M,92121500,Guard services
"Ministry of Housing, Communities and Local Government",Homes England,MANAGEMENT COSTS,South West,COAST 2 COAST SECURITY LTD,25/04/2019,350,M,92121500,Guard services
"Ministry of Housing, Communities and Local Government",Homes England,MANAGEMENT COSTS,South West,COAST 2 COAST SECURITY LTD,29/04/2019,3531,M,92121500,Guard services
"Ministry of Housing, Communities and Local Government",Homes England,ST Fund Loans Additions,Economic Assets Hub,C & S HOMES LLP,26/04/2019,105694.11,,,Loans
"Ministry of Housing, Communities and Local Government",Homes England,SERVICE CHARGE,East And South East,CHATHAM MARITIME TRUST,02/04/2019,3294,S,80131500,Lease and rental of property or building
"Ministry of Housing, Communities and Local Government",Homes England,SERVICE CHARGE,East And South East,CHATHAM MARITIME TRUST,02/04/2019,4243,S,80131500,Lease and rental of property or building
"Ministry of Housing, Communities and Local Government",Homes England,SERVICE CHARGE,East And South East,CHATHAM MARITIME TRUST,02/04/2019,30588,S,80131500,Lease and rental of property or building
"Ministry of Housing, Communities and Local Government",Homes England,LEGAL FEES,South West,CLARKE WILLMOTT LLP,10/04/2019,1750,M,80121600,Business law services
"Ministry of Housing, Communities and Local Government",Homes England,LEGAL FEES,Economic Assets Hub,CLARKE WILLMOTT LLP,16/04/2019,407.9,M,80121600,Business law services
"Ministry of Housing, Communities and Local Government",Homes England,LEGAL FEES,Economic Assets Hub,CLARKE WILLMOTT LLP,23/04/2019,400,M,80121600,Business law services
"Ministry of Housing, Communities and Local Government",Homes England,COURSES & CONFERENCES,South West,CHARTERED INSTITUTE OF HOUSING,18/04/2019,3190.5,L,94101600,Professional associations
"Ministry of Housing, Communities and Local Government",Homes England,TEAM MEETINGS,Executive Office,THE COACHING ACADEMY UK LTD,17/04/2019,2997,S,86101800,In service training and manpower development
"Ministry of Housing, Communities and Local Government",Homes England,BUILDINGS-VACANT RATES,East And South East,CENTRAL BEDFORDSHIRE COUNCIL,02/04/2019,2465.44,G,80131500,Lease and rental of property or building
"Ministry of Housing, Communities and Local Government",Homes England,BUILDINGS-VACANT RATES,East And South East,CENTRAL BEDFORDSHIRE COUNCIL,02/04/2019,2465.44,G,80131500,Lease and rental of property or building
"Ministry of Housing, Communities and Local Government",Homes England,BUILDINGS-VACANT RATES,East And South East,CENTRAL BEDFORDSHIRE COUNCIL,02/04/2019,2465.44,G,80131500,Lease and rental of property or building
"Ministry of Housing, Communities and Local Government",Homes England,BUILDINGS-VACANT RATES,East And South East,CENTRAL BEDFORDSHIRE COUNCIL,02/04/2019,2465.44,G,80131500,Lease and rental of property or building
"Ministry of Housing, Communities and Local Government",Homes England,BUILDINGS-VACANT RATES,East And South East,CENTRAL BEDFORDSHIRE COUNCIL,02/04/2019,2465.44,G,80131500,Lease and rental of property or building
"Ministry of Housing, Communities and Local Government",Homes England,BUILDINGS-VACANT RATES,East And South East,CENTRAL BEDFORDSHIRE COUNCIL,02/04/2019,2465.44,G,80131500,Lease and rental of property or building
"Ministry of Housing, Communities and Local Government",Homes England,BUILDINGS-VACANT RATES,East And South East,CENTRAL BEDFORDSHIRE COUNCIL,02/04/2019,1643.63,G,80131500,Lease and rental of property or building
"Ministry of Housing, Communities and Local Government",Homes England,BUILDINGS-VACANT RATES,North West,CHESHIRE EAST BOROUGH COUNCIL,02/04/2019,17514,G,80131500,Lease and rental of property or building
"Ministry of Housing, Communities and Local Government",Homes England,ST Fund Loans Additions,Economic Assets Hub,CLL (WHINNEY LANE) LIMITED,26/04/2019,146087.74,,,Loans
"Ministry of Housing, Communities and Local Government",Homes England,MANAGEMENT COSTS,South West,C.M.A. (NEMESIS) LTD,11/04/2019,294,S,72102100,Pest control
"Ministry of Housing, Communities and Local Government",Homes England,MANAGEMENT COSTS,South West,C.M.A. (NEMESIS) LTD,11/04/2019,285,S,72102100,Pest control
"Ministry of Housing, Communities and Local Government",Homes England,MANAGEMENT COSTS,South West,C.M.A. (NEMESIS) LTD,25/04/2019,260,S,72102100,Pest control
"Ministry of Housing, Communities and Local Government",Homes England,ESTATE GENERAL MAINTENANCE,Programmes,FRANK COOPER & SON LIMITED,12/04/2019,2354,M,76121500,Refuse collection and disposal
"Ministry of Housing, Communities and Local Government",Homes England,LANDSCAPE MAINT-BUILT ESTATE,South West,CLAPHAMS LANDSCAPE SERVICES LTD,11/04/2019,567.66,S,72101500,Building maintenance and repair services
"Ministry of Housing, Communities and Local Government",Homes England,MANAGEMENT COSTS,South West,CONCEPT BUILDING SERVICES  (SOUTHERN) LTD,24/04/2019,839.4,M,72101500,Building maintenance and repair services
"Ministry of Housing, Communities and Local Government",Homes England,ESTATE GENERAL MAINTENANCE,Midlands,K D CHILDS STONEWORK DEVELOPMENTS,10/04/2019,5500,S,72101500,Building maintenance and repair services
"Ministry of Housing, Communities and Local Government",Homes England,ESTATE GENERAL MAINTENANCE,Midlands,K D CHILDS STONEWORK DEVELOPMENTS,10/04/2019,4500,S,72101500,Building maintenance and repair services
"Ministry of Housing, Communities and Local Government",Homes England,FENCE MAINTENANCE,Midlands,K D CHILDS STONEWORK DEVELOPMENTS,18/04/2019,540,S,72101500,Building maintenance and repair services
"Ministry of Housing, Communities and Local Government",Homes England,PROPERTY MAINTENANCE,East And South East,C-ELECT ASSOCIATES LIMITED,01/04/2019,739,S,72101500,Building maintenance and repair services
"Ministry of Housing, Communities and Local Government",Homes England,BUILDINGS-ELECTRICITY,East And South East,C-ELECT ASSOCIATES LIMITED,04/04/2019,829.5,S,72101500,Building maintenance and repair services
"Ministry of Housing, Communities and Local Government",Homes England,PROPERTY MAINTENANCE,North East And Yorkshire,C-ELECT ASSOCIATES LIMITED,05/04/2019,350,S,72101500,Building maintenance and repair services
"Ministry of Housing, Communities and Local Government",Homes England,PROPERTY MAINTENANCE,North East And Yorkshire,C-ELECT ASSOCIATES LIMITED,05/04/2019,570,S,72101500,Building maintenance and repair services
"Ministry of Housing, Communities and Local Government",Homes England,PROPERTY MAINTENANCE,East And South East,C-ELECT ASSOCIATES LIMITED,05/04/2019,702.8,S,72101500,Building maintenance and repair services
"Ministry of Housing, Communities and Local Government",Homes England,PROPERTY MAINTENANCE,North East And Yorkshire,C-ELECT ASSOCIATES LIMITED,05/04/2019,818,S,72101500,Building maintenance and repair services
"Ministry of Housing, Communities and Local Government",Homes England,PROPERTY MAINTENANCE,North East And Yorkshire,C-ELECT ASSOCIATES LIMITED,08/04/2019,312,S,72101500,Building maintenance and repair services
"Ministry of Housing, Communities and Local Government",Homes England,ESTATE GENERAL MAINTENANCE,East And South East,C-ELECT ASSOCIATES LIMITED,08/04/2019,485,S,72101500,Building maintenance and repair services
"Ministry of Housing, Communities and Local Government",Homes England,ESTATE GENERAL MAINTENANCE,East And South East,C-ELECT ASSOCIATES LIMITED,25/04/2019,875,S,72101500,Building maintenance and repair services
"Ministry of Housing, Communities and Local Government",Homes England,FENCE MAINTENANCE,East And South East,C-ELECT ASSOCIATES LIMITED,30/04/2019,300,S,72101500,Building maintenance and repair services
"Ministry of Housing, Communities and Local Government",Homes England,FENCE MAINTENANCE,East And South East,C-ELECT ASSOCIATES LIMITED,30/04/2019,1871.55,S,72101500,Building maintenance and repair services
"Ministry of Housing, Communities and Local Government",Homes England,BUILDINGS-WATER,South West,CASTLE WATER LTD,24/04/2019,1177.32,M,77101500,Environmental auditing
"Ministry of Housing, Communities and Local Government",Homes England,LANDSCAPE MAINT-BUILT ESTATE,North West,CONTINENTAL LANDSCAPES - GREENHAND,01/04/2019,360.08,L,72101500,Building maintenance and repair services
"Ministry of Housing, Communities and Local Government",Homes England,LANDSCAPE MAINT-BUILT ESTATE,Programmes,CONTINENTAL LANDSCAPES - GREENHAND,01/04/2019,390.96,L,72101500,Building maintenance and repair services
"Ministry of Housing, Communities and Local Government",Homes England,LANDSCAPE MAINT-BUILT ESTATE,North West,CONTINENTAL LANDSCAPES - GREENHAND,01/04/2019,685.34,L,72101500,Building maintenance and repair services
"Ministry of Housing, Communities and Local Government",Homes England,BUILDINGS-VACANT RATES,South West,CORNWALL COUNCIL,04/04/2019,17010,G,80131500,Lease and rental of property or building
"Ministry of Housing, Communities and Local Government",Homes England,BUILDINGS-VACANT RATES,South West,CB RICHARD ELLIS,03/04/2019,2860,L,80131800,Real estate management services
"Ministry of Housing, Communities and Local Government",Homes England,Professional Fees Loans Capitalised,Economic Assets Hub,CB RICHARD ELLIS,08/04/2019,9500,L,80131800,Real estate management services
"Ministry of Housing, Communities and Local Government",Homes England,RI - MONITORING SURVEYOR FEES,Economic Assets Hub,CB RICHARD ELLIS,09/04/2019,4900,L,80131800,Real estate management services
"Ministry of Housing, Communities and Local Government",Homes England,MISC PROFESSIONAL FEES,Programmes,CB RICHARD ELLIS,09/04/2019,69829,L,80131800,Real estate management services
"Ministry of Housing, Communities and Local Government",Homes England,RI - SITE VALUATION FEES,Economic Assets Hub,CB RICHARD ELLIS,17/04/2019,20000,L,80131800,Real estate management services
"Ministry of Housing, Communities and Local Government",Homes England,BUILDINGS-VACANT RATES,South West,COTSWOLD DISTRICT COUNCIL,02/04/2019,3514.42,G,80131500,Lease and rental of property or building
"Ministry of Housing, Communities and Local Government",Homes England,BUILDINGS-VACANT RATES,South West,COTSWOLD DISTRICT COUNCIL,02/04/2019,3514.42,G,80131500,Lease and rental of property or building
"Ministry of Housing, Communities and Local Government",Homes England,BUILDINGS-VACANT RATES,South West,COTSWOLD DISTRICT COUNCIL,02/04/2019,3514.42,G,80131500,Lease and rental of property or building
"Ministry of Housing, Communities and Local Government",Homes England,BUILDINGS-VACANT RATES,South West,COTSWOLD DISTRICT COUNCIL,02/04/2019,3514.42,G,80131500,Lease and rental of property or building
"Ministry of Housing, Communities and Local Government",Homes England,BUILDINGS-VACANT RATES,South West,COTSWOLD DISTRICT COUNCIL,02/04/2019,3514.42,G,80131500,Lease and rental of property or building
"Ministry of Housing, Communities and Local Government",Homes England,BUILDINGS-VACANT RATES,South West,COTSWOLD DISTRICT COUNCIL,02/04/2019,3514.42,G,80131500,Lease and rental of property or building
"Ministry of Housing, Communities and Local Government",Homes England,MISC PROFESSIONAL FEES,North West,CELL:CM CHARTERED SURVEYORS,01/04/2019,2301,S,80131800,Real estate management services
"Ministry of Housing, Communities and Local Government",Homes England,MISC PROFESSIONAL FEES,North West,CELL:CM CHARTERED SURVEYORS,02/04/2019,3107,S,80131800,Real estate management services
"Ministry of Housing, Communities and Local Government",Homes England,LAND REMEDIATION,South West,CONNELL BROTHERS  LTD,15/04/2019,93722.47,S,72141500,Land preparation services
"Ministry of Housing, Communities and Local Government",Homes England,LAND RENTS,South West,THE CROWN ESTATE,09/04/2019,12827.5,G,80131500,Lease and rental of property or building
"Ministry of Housing, Communities and Local Government",Homes England,BUILDINGS-VACANT RATES,East And South East,CHERWELL DISTRICT COUNCIL,29/04/2019,16254,G,80131500,Lease and rental of property or building
"Ministry of Housing, Communities and Local Government",Homes England,PROPERTY MAINTENANCE,East And South East,CHANNEL ENGINEERING LTD,09/04/2019,975,S,72101500,Building maintenance and repair services
"Ministry of Housing, Communities and Local Government",Homes England,ESTATE GENERAL MAINTENANCE,East And South East,CHANNEL ENGINEERING LTD,09/04/2019,350,S,72101500,Building maintenance and repair services
"Ministry of Housing, Communities and Local Government",Homes England,PROPERTY MAINTENANCE,East And South East,CHANNEL ENGINEERING LTD,09/04/2019,640,S,72101500,Building maintenance and repair services
"Ministry of Housing, Communities and Local Government",Homes England,PROPERTY MAINTENANCE,East And South East,CHANNEL ENGINEERING LTD,09/04/2019,900,S,72101500,Building maintenance and repair services
"Ministry of Housing, Communities and Local Government",Homes England,FENCE MAINTENANCE,East And South East,CHANNEL ENGINEERING LTD,09/04/2019,4740,S,72101500,Building maintenance and repair services
"Ministry of Housing, Communities and Local Government",Homes England,PROPERTY MAINTENANCE,East And South East,CHANNEL ENGINEERING LTD,17/04/2019,548,S,72101500,Building maintenance and repair services
"Ministry of Housing, Communities and Local Government",Homes England,FENCE MAINTENANCE,East And South East,CHANNEL ENGINEERING LTD,17/04/2019,458,S,72101500,Building maintenance and repair services
"Ministry of Housing, Communities and Local Government",Homes England,ESTATE GENERAL MAINTENANCE,East And South East,CHANNEL ENGINEERING LTD,17/04/2019,255,S,72101500,Building maintenance and repair services
"Ministry of Housing, Communities and Local Government",Homes England,ESTATE GENERAL MAINTENANCE,East And South East,CHANNEL ENGINEERING LTD,17/04/2019,1327,S,72101500,Building maintenance and repair services
"Ministry of Housing, Communities and Local Government",Homes England,PROPERTY MAINTENANCE,East And South East,CHANNEL ENGINEERING LTD,17/04/2019,268,S,72101500,Building maintenance and repair services
"Ministry of Housing, Communities and Local Government",Homes England,ESTATE GENERAL MAINTENANCE,East And South East,CHANNEL ENGINEERING LTD,18/04/2019,1973,S,72101500,Building maintenance and repair services
"Ministry of Housing, Communities and Local Government",Homes England,PROPERTY MAINTENANCE,East And South East,CHANNEL ENGINEERING LTD,29/04/2019,632.25,S,72101500,Building maintenance and repair services
"Ministry of Housing, Communities and Local Government",Homes England,ESTATE GENERAL MAINTENANCE,East And South East,CHANNEL ENGINEERING LTD,29/04/2019,1208,S,72101500,Building maintenance and repair services
"Ministry of Housing, Communities and Local Government",Homes England,ESTATE GENERAL MAINTENANCE,East And South East,CHANNEL ENGINEERING LTD,29/04/2019,375,S,72101500,Building maintenance and repair services
"Ministry of Housing, Communities and Local Government",Homes England,ESTATE GENERAL MAINTENANCE,East And South East,CHANNEL ENGINEERING LTD,30/04/2019,1565,S,72101500,Building maintenance and repair services
"Ministry of Housing, Communities and Local Government",Homes England,STAFF RECRUITMENT COSTS,Finance & Corporate Services,CABINET OFFICE HM SHARED SERVICES,09/04/2019,2950,G,82101500,Print advertising
"Ministry of Housing, Communities and Local Government",Homes England,STAFF RECRUITMENT COSTS,Finance & Corporate Services,CABINET OFFICE HM SHARED SERVICES,29/04/2019,1000,G,82101500,Print advertising
"Ministry of Housing, Communities and Local Government",Homes England,LAND REMEDIATION,East And South East,COMPLETE GROUND MANAGEMENT LTD,25/04/2019,3550,L,72101500,Building maintenance and repair services
"Ministry of Housing, Communities and Local Government",Homes England,LAND REMEDIATION,East And South East,COMPLETE GROUND MANAGEMENT LTD,25/04/2019,4050,L,72101500,Building maintenance and repair services
"Ministry of Housing, Communities and Local Government",Homes England,LAND REMEDIATION,East And South East,COMPLETE GROUND MANAGEMENT LTD,25/04/2019,7800,L,72101500,Building maintenance and repair services
"Ministry of Housing, Communities and Local Government",Homes England,PLANNED PREVENTATIVE MAINTENANCE,Finance & Corporate Services,ENGIE FM LIMITED,03/04/2019,365.61,L,72102900,Facility maintenance and repair services
"Ministry of Housing, Communities and Local Government",Homes England,PLANNED PREVENTATIVE MAINTENANCE,Finance & Corporate Services,ENGIE FM LIMITED,03/04/2019,886.92,L,72102900,Facility maintenance and repair services
"Ministry of Housing, Communities and Local Government",Homes England,PLANNED PREVENTATIVE MAINTENANCE,Finance & Corporate Services,ENGIE FM LIMITED,03/04/2019,926.93,L,72102900,Facility maintenance and repair services
"Ministry of Housing, Communities and Local Government",Homes England,PLANNED PREVENTATIVE MAINTENANCE,Finance & Corporate Services,ENGIE FM LIMITED,03/04/2019,2009.19,L,72102900,Facility maintenance and repair services
"Ministry of Housing, Communities and Local Government",Homes England,PLANNED PREVENTATIVE MAINTENANCE,Finance & Corporate Services,ENGIE FM LIMITED,04/04/2019,950.85,L,72102900,Facility maintenance and repair services
"Ministry of Housing, Communities and Local Government",Homes England,PLANNED PREVENTATIVE MAINTENANCE,Finance & Corporate Services,ENGIE FM LIMITED,04/04/2019,2306.61,L,72102900,Facility maintenance and repair services
"Ministry of Housing, Communities and Local Government",Homes England,PLANNED PREVENTATIVE MAINTENANCE,Finance & Corporate Services,ENGIE FM LIMITED,04/04/2019,950.85,L,72102900,Facility maintenance and repair services
"Ministry of Housing, Communities and Local Government",Homes England,PLANNED PREVENTATIVE MAINTENANCE,Finance & Corporate Services,ENGIE FM LIMITED,04/04/2019,2306.61,L,72102900,Facility maintenance and repair services
"Ministry of Housing, Communities and Local Government",Homes England,PLANNED PREVENTATIVE MAINTENANCE,Finance & Corporate Services,ENGIE FM LIMITED,09/04/2019,343.34,L,72102900,Facility maintenance and repair services
"Ministry of Housing, Communities and Local Government",Homes England,OFFICE FACILITIES DILAPIDATIONS,Finance & Corporate Services,ENGIE FM LIMITED,23/04/2019,8216.43,L,72102900,Facility maintenance and repair services
"Ministry of Housing, Communities and Local Government",Homes England,PLANNED PREVENTATIVE MAINTENANCE,Finance & Corporate Services,ENGIE FM LIMITED,26/04/2019,736.33,L,72102900,Facility maintenance and repair services
"Ministry of Housing, Communities and Local Government",Homes England,LEGAL FEES,Programmes,MILLS & REEVE,10/04/2019,6088.74,S,80121600,Business law services
"Ministry of Housing, Communities and Local Government",Homes England,ESTATE GENERAL MAINTENANCE,Programmes,CR BUILDING SERVICES LIMITED,05/04/2019,345,S,72101500,Building maintenance and repair services
"Ministry of Housing, Communities and Local Government",Homes England,ESTATE GENERAL MAINTENANCE,Programmes,CR BUILDING SERVICES LIMITED,05/04/2019,390,S,72101500,Building maintenance and repair services
"Ministry of Housing, Communities and Local Government",Homes England,ESTATE GENERAL MAINTENANCE,Programmes,CR BUILDING SERVICES LIMITED,05/04/2019,956.35,S,72101500,Building maintenance and repair services
"Ministry of Housing, Communities and Local Government",Homes England,PROPERTY MAINTENANCE,North West,CR BUILDING SERVICES LIMITED,09/04/2019,696,S,72101500,Building maintenance and repair services
"Ministry of Housing, Communities and Local Government",Homes England,PROPERTY MAINTENANCE,North West,CR BUILDING SERVICES LIMITED,09/04/2019,816,S,72101500,Building maintenance and repair services
"Ministry of Housing, Communities and Local Government",Homes England,PROPERTY MAINTENANCE,North West,CR BUILDING SERVICES LIMITED,09/04/2019,1729,S,72101500,Building maintenance and repair services
"Ministry of Housing, Communities and Local Government",Homes England,PROPERTY MAINTENANCE,North West,CR BUILDING SERVICES LIMITED,09/04/2019,3875,S,72101500,Building maintenance and repair services
"Ministry of Housing, Communities and Local Government",Homes England,MISC PROFESSIONAL FEES,Programmes,DRIVERS JONAS DELOITTE,08/04/2019,975,L,80131800,Real estate management services
"Ministry of Housing, Communities and Local Government",Homes England,MISC PROFESSIONAL FEES,Programmes,DRIVERS JONAS DELOITTE,08/04/2019,6825,L,80131800,Real estate management services
"Ministry of Housing, Communities and Local Government",Homes England,MISC PROFESSIONAL FEES,Programmes,DRIVERS JONAS DELOITTE,08/04/2019,515677.02,L,80131800,Real estate management services
"Ministry of Housing, Communities and Local Government",Homes England,MISC PROFESSIONAL FEES,Programmes,DRIVERS JONAS DELOITTE,12/04/2019,32399.33,L,80131800,Real estate management services
"Ministry of Housing, Communities and Local Government",Homes England,MISC PROFESSIONAL FEES,Programmes,DRIVERS JONAS DELOITTE,12/04/2019,10725,L,80131800,Real estate management services
"Ministry of Housing, Communities and Local Government",Homes England,MISC PROFESSIONAL FEES,Programmes,DRIVERS JONAS DELOITTE,12/04/2019,16087.5,L,80131800,Real estate management services
"Ministry of Housing, Communities and Local Government",Homes England,MISC PROFESSIONAL FEES,Programmes,DRIVERS JONAS DELOITTE,12/04/2019,14259.38,L,80131800,Real estate management services
"Ministry of Housing, Communities and Local Government",Homes England,MISC PROFESSIONAL FEES,Programmes,DRIVERS JONAS DELOITTE,12/04/2019,26482.88,L,80131800,Real estate management services
"Ministry of Housing, Communities and Local Government",Homes England,MISC PROFESSIONAL FEES,Programmes,DRIVERS JONAS DELOITTE,12/04/2019,42441.65,L,80131800,Real estate management services
"Ministry of Housing, Communities and Local Government",Homes England,MISC PROFESSIONAL FEES,Programmes,DRIVERS JONAS DELOITTE,17/04/2019,74179.15,L,80131800,Real estate management services
"Ministry of Housing, Communities and Local Government",Homes England,MISC PROFESSIONAL FEES,Programmes,DRIVERS JONAS DELOITTE,18/04/2019,183023.6,L,80131800,Real estate management services
"Ministry of Housing, Communities and Local Government",Homes England,PROPERTY SERVICES,East And South East,DRIVERS JONAS DELOITTE,29/04/2019,7560,L,80131800,Real estate management services
"Ministry of Housing, Communities and Local Government",Homes England,PLANNING APPLICATIONS,East And South East,DOVER DISTRICT COUNCIL,02/04/2019,23948,G,80131500,Lease and rental of property or building
"Ministry of Housing, Communities and Local Government",Homes England,PRESS CUTTINGS,Executive Office,GORKANA GROUP LTD,08/04/2019,1324.3,L,82101500,Print advertising
"Ministry of Housing, Communities and Local Government",Homes England,PROPERTY SERVICES,Programmes,CUSHMAN & WAKEFIELD DEBENHAM TIE LEUNG,02/04/2019,250,L,80131800,Real estate management services
"Ministry of Housing, Communities and Local Government",Homes England,RI - MONITORING SURVEYOR FEES,Economic Assets Hub,CUSHMAN & WAKEFIELD DEBENHAM TIE LEUNG,03/04/2019,1400,L,80131800,Real estate management services
"Ministry of Housing, Communities and Local Government",Homes England,RI - MONITORING SURVEYOR FEES,Programmes,CUSHMAN & WAKEFIELD DEBENHAM TIE LEUNG,03/04/2019,700,L,80131800,Real estate management services
"Ministry of Housing, Communities and Local Government",Homes England,RI - MONITORING SURVEYOR FEES,Economic Assets Hub,CUSHMAN & WAKEFIELD DEBENHAM TIE LEUNG,03/04/2019,700,L,80131800,Real estate management services
"Ministry of Housing, Communities and Local Government",Homes England,RI - MONITORING SURVEYOR FEES,Programmes,CUSHMAN & WAKEFIELD DEBENHAM TIE LEUNG,03/04/2019,700,L,80131800,Real estate management services
"Ministry of Housing, Communities and Local Government",Homes England,RI - MONITORING SURVEYOR FEES,Programmes,CUSHMAN & WAKEFIELD DEBENHAM TIE LEUNG,03/04/2019,750,L,80131800,Real estate management services
"Ministry of Housing, Communities and Local Government",Homes England,RI - MONITORING SURVEYOR FEES,Programmes,CUSHMAN & WAKEFIELD DEBENHAM TIE LEUNG,03/04/2019,750,L,80131800,Real estate management services
"Ministry of Housing, Communities and Local Government",Homes England,RI - MONITORING SURVEYOR FEES,Programmes,CUSHMAN & WAKEFIELD DEBENHAM TIE LEUNG,03/04/2019,750,L,80131800,Real estate management services
"Ministry of Housing, Communities and Local Government",Homes England,RI - MONITORING SURVEYOR FEES,Programmes,CUSHMAN & WAKEFIELD DEBENHAM TIE LEUNG,03/04/2019,750,L,80131800,Real estate management services
"Ministry of Housing, Communities and Local Government",Homes England,RI - MONITORING SURVEYOR FEES,Economic Assets Hub,CUSHMAN & WAKEFIELD DEBENHAM TIE LEUNG,03/04/2019,800,L,80131800,Real estate management services
"Ministry of Housing, Communities and Local Government",Homes England,Professional Fees Loans Capitalised,Economic Assets Hub,CUSHMAN & WAKEFIELD DEBENHAM TIE LEUNG,03/04/2019,800,L,80131800,Real estate management services
"Ministry of Housing, Communities and Local Government",Homes England,MISC PROFESSIONAL FEES,Programmes,CUSHMAN & WAKEFIELD DEBENHAM TIE LEUNG,03/04/2019,800,L,80131800,Real estate management services
"Ministry of Housing, Communities and Local Government",Homes England,RI - MONITORING SURVEYOR FEES,Economic Assets Hub,CUSHMAN & WAKEFIELD DEBENHAM TIE LEUNG,03/04/2019,700,L,80131800,Real estate management services
"Ministry of Housing, Communities and Local Government",Homes England,RI - MONITORING SURVEYOR FEES,Economic Assets Hub,CUSHMAN & WAKEFIELD DEBENHAM TIE LEUNG,04/04/2019,800,L,80131800,Real estate management services
"Ministry of Housing, Communities and Local Government",Homes England,RI - MONITORING SURVEYOR FEES,Economic Assets Hub,CUSHMAN & WAKEFIELD DEBENHAM TIE LEUNG,04/04/2019,700,L,80131800,Real estate management services
"Ministry of Housing, Communities and Local Government",Homes England,RI - MONITORING SURVEYOR FEES,Economic Assets Hub,CUSHMAN & WAKEFIELD DEBENHAM TIE LEUNG,05/04/2019,700,L,80131800,Real estate management services
"Ministry of Housing, Communities and Local Government",Homes England,PROPERTY SERVICES,North East And Yorkshire,CUSHMAN & WAKEFIELD DEBENHAM TIE LEUNG,08/04/2019,1500,L,80131800,Real estate management services
"Ministry of Housing, Communities and Local Government",Homes England,RI - MONITORING SURVEYOR FEES,Economic Assets Hub,CUSHMAN & WAKEFIELD DEBENHAM TIE LEUNG,08/04/2019,700,L,80131800,Real estate management services
"Ministry of Housing, Communities and Local Government",Homes England,RI - MONITORING SURVEYOR FEES,Economic Assets Hub,CUSHMAN & WAKEFIELD DEBENHAM TIE LEUNG,08/04/2019,700,L,80131800,Real estate management services
"Ministry of Housing, Communities and Local Government",Homes England,RI - MONITORING SURVEYOR FEES,Economic Assets Hub,CUSHMAN & WAKEFIELD DEBENHAM TIE LEUNG,09/04/2019,650,L,80131800,Real estate management services
"Ministry of Housing, Communities and Local Government",Homes England,RI - MONITORING SURVEYOR FEES,Economic Assets Hub,CUSHMAN & WAKEFIELD DEBENHAM TIE LEUNG,09/04/2019,650,L,80131800,Real estate management services
"Ministry of Housing, Communities and Local Government",Homes England,RI - MONITORING SURVEYOR FEES,Economic Assets Hub,CUSHMAN & WAKEFIELD DEBENHAM TIE LEUNG,09/04/2019,700,L,80131800,Real estate management services
"Ministry of Housing, Communities and Local Government",Homes England,RI - MONITORING SURVEYOR FEES,Economic Assets Hub,CUSHMAN & WAKEFIELD DEBENHAM TIE LEUNG,09/04/2019,650,L,80131800,Real estate management services
"Ministry of Housing, Communities and Local Government",Homes England,MISC PROFESSIONAL FEES,Programmes,CUSHMAN & WAKEFIELD DEBENHAM TIE LEUNG,10/04/2019,16500,L,80131800,Real estate management services
"Ministry of Housing, Communities and Local Government",Homes England,MISC PROFESSIONAL FEES,Programmes,CUSHMAN & WAKEFIELD DEBENHAM TIE LEUNG,10/04/2019,16500,L,80131800,Real estate management services
"Ministry of Housing, Communities and Local Government",Homes England,MASTERPLANNING FEES,Midlands,CUSHMAN & WAKEFIELD DEBENHAM TIE LEUNG,10/04/2019,5750,L,80131800,Real estate management services
"Ministry of Housing, Communities and Local Government",Homes England,MISC PROFESSIONAL FEES,Programmes,CUSHMAN & WAKEFIELD DEBENHAM TIE LEUNG,10/04/2019,8250,L,80131800,Real estate management services
"Ministry of Housing, Communities and Local Government",Homes England,MISC PROFESSIONAL FEES,Programmes,CUSHMAN & WAKEFIELD DEBENHAM TIE LEUNG,10/04/2019,16500,L,80131800,Real estate management services
"Ministry of Housing, Communities and Local Government",Homes England,RI - MONITORING SURVEYOR FEES,Economic Assets Hub,CUSHMAN & WAKEFIELD DEBENHAM TIE LEUNG,11/04/2019,750,L,80131800,Real estate management services
"Ministry of Housing, Communities and Local Government",Homes England,RI - MONITORING SURVEYOR FEES,Economic Assets Hub,CUSHMAN & WAKEFIELD DEBENHAM TIE LEUNG,11/04/2019,700,L,80131800,Real estate management services
"Ministry of Housing, Communities and Local Government",Homes England,RI - MONITORING SURVEYOR FEES,Economic Assets Hub,CUSHMAN & WAKEFIELD DEBENHAM TIE LEUNG,11/04/2019,750,L,80131800,Real estate management services
"Ministry of Housing, Communities and Local Government",Homes England,MISC PROFESSIONAL FEES,Programmes,CUSHMAN & WAKEFIELD DEBENHAM TIE LEUNG,11/04/2019,1872,L,80131800,Real estate management services
"Ministry of Housing, Communities and Local Government",Homes England,OPEN MARKET VALUATION FEE,North East And Yorkshire,CUSHMAN & WAKEFIELD DEBENHAM TIE LEUNG,11/04/2019,2500,L,80131800,Real estate management services
"Ministry of Housing, Communities and Local Government",Homes England,MISC PROFESSIONAL FEES,Programmes,CUSHMAN & WAKEFIELD DEBENHAM TIE LEUNG,18/04/2019,16500,L,80131800,Real estate management services
"Ministry of Housing, Communities and Local Government",Homes England,MISC PROFESSIONAL FEES,Programmes,CUSHMAN & WAKEFIELD DEBENHAM TIE LEUNG,18/04/2019,17900,L,80131800,Real estate management services
"Ministry of Housing, Communities and Local Government",Homes England,PROPERTY SERVICES,East And South East,CUSHMAN & WAKEFIELD DEBENHAM TIE LEUNG,18/04/2019,1000,L,80131800,Real estate management services
"Ministry of Housing, Communities and Local Government",Homes England,DISPOSAL FEES - PROPERTY AGENTS & ADVERTISING,East And South East,CUSHMAN & WAKEFIELD DEBENHAM TIE LEUNG,18/04/2019,7500,L,80131800,Real estate management services
"Ministry of Housing, Communities and Local Government",Homes England,OTHER PROFESSIONAL FEES,Midlands,CUSHMAN & WAKEFIELD DEBENHAM TIE LEUNG,23/04/2019,8200,L,80131800,Real estate management services
"Ministry of Housing, Communities and Local Government",Homes England,PROPERTY SERVICES,East And South East,CUSHMAN & WAKEFIELD DEBENHAM TIE LEUNG,29/04/2019,2400,L,80131800,Real estate management services
"Ministry of Housing, Communities and Local Government",Homes England,PROPERTY SERVICES,South West,CUSHMAN & WAKEFIELD DEBENHAM TIE LEUNG,30/04/2019,1275.9,L,80131800,Real estate management services
"Ministry of Housing, Communities and Local Government",Homes England,PROPERTY SERVICES,Programmes,CUSHMAN & WAKEFIELD DEBENHAM TIE LEUNG,30/04/2019,750,L,80131800,Real estate management services
"Ministry of Housing, Communities and Local Government",Homes England,RENT PAYABLE,Midlands,DERBY CITY COUNCIL,11/04/2019,2875,G,80131500,Lease and rental of property or building
"Ministry of Housing, Communities and Local Government",Homes England,RENT PAYABLE,Midlands,DERBY CITY COUNCIL,11/04/2019,812.5,G,80131500,Lease and rental of property or building
"Ministry of Housing, Communities and Local Government",Homes England,RENT PAYABLE,Midlands,DERBY CITY COUNCIL,11/04/2019,362.5,G,80131500,Lease and rental of property or building
"Ministry of Housing, Communities and Local Government",Homes England,RENT PAYABLE,Midlands,DERBY CITY COUNCIL,11/04/2019,775,G,80131500,Lease and rental of property or building
"Ministry of Housing, Communities and Local Government",Homes England,BUILDINGS-VACANT RATES,South West,DORSET COUNTY COUNCIL,11/04/2019,3255.78,G,80121600,Business law services
"Ministry of Housing, Communities and Local Government",Homes England,LEGAL FEES,Programmes,DWF LLP,01/04/2019,1650,L,80121600,Business law services
"Ministry of Housing, Communities and Local Government",Homes England,DISPOSAL FEES - LEGAL,North East And Yorkshire,DWF LLP,02/04/2019,1750,L,80121600,Business law services
"Ministry of Housing, Communities and Local Government",Homes England,LEGAL FEES,Midlands,DWF LLP,02/04/2019,1305,L,80121600,Business law services
"Ministry of Housing, Communities and Local Government",Homes England,DISPOSAL FEES - LEGAL,North East And Yorkshire,DWF LLP,03/04/2019,2250,L,80121600,Business law services
"Ministry of Housing, Communities and Local Government",Homes England,LEGAL FEES,Programmes,DWF LLP,03/04/2019,2006,L,80121600,Business law services
"Ministry of Housing, Communities and Local Government",Homes England,DISPOSAL FEES - LEGAL,North East And Yorkshire,DWF LLP,03/04/2019,1515,L,80121600,Business law services
"Ministry of Housing, Communities and Local Government",Homes England,LEGAL FEES,North East And Yorkshire,DWF LLP,03/04/2019,3000,L,80121600,Business law services
"Ministry of Housing, Communities and Local Government",Homes England,DISPOSAL FEES - LEGAL,North East And Yorkshire,DWF LLP,03/04/2019,350,L,80121600,Business law services
"Ministry of Housing, Communities and Local Government",Homes England,Professional Fees Loans Capitalised,Economic Assets Hub,DWF LLP,04/04/2019,9725.49,L,80121600,Business law services
"Ministry of Housing, Communities and Local Government",Homes England,LEGAL FEES,Economic Assets Hub,DWF LLP,04/04/2019,500,L,80121600,Business law services
"Ministry of Housing, Communities and Local Government",Homes England,DISPOSAL FEES - LEGAL,North West,DWF LLP,05/04/2019,3857,L,80121600,Business law services
"Ministry of Housing, Communities and Local Government",Homes England,LEGAL FEES,Economic Assets Hub,DWF LLP,10/04/2019,500,L,80121600,Business law services
"Ministry of Housing, Communities and Local Government",Homes England,LEGAL FEES,Midlands,DWF LLP,10/04/2019,1551.5,L,80121600,Business law services
"Ministry of Housing, Communities and Local Government",Homes England,DISPOSAL FEES - LEGAL,North West,DWF LLP,10/04/2019,9730,L,80121600,Business law services
"Ministry of Housing, Communities and Local Government",Homes England,LEGAL FEES,Economic Assets Hub,DWF LLP,11/04/2019,650,L,80121600,Business law services
"Ministry of Housing, Communities and Local Government",Homes England,LEGAL FEES,Economic Assets Hub,DWF LLP,12/04/2019,650,L,80121600,Business law services
"Ministry of Housing, Communities and Local Government",Homes England,LEGAL FEES,Midlands,DWF LLP,12/04/2019,3420,L,80121600,Business law services
"Ministry of Housing, Communities and Local Government",Homes England,DISPOSAL FEES - LEGAL,Midlands,DWF LLP,12/04/2019,1995,L,80121600,Business law services
"Ministry of Housing, Communities and Local Government",Homes England,DISPOSAL FEES - LEGAL,North West,DWF LLP,15/04/2019,756,L,80121600,Business law services
"Ministry of Housing, Communities and Local Government",Homes England,LEGAL FEES,North East And Yorkshire,DWF LLP,15/04/2019,850,L,80121600,Business law services
"Ministry of Housing, Communities and Local Government",Homes England,LEGAL FEES,Midlands,DWF LLP,16/04/2019,347,L,80121600,Business law services
"Ministry of Housing, Communities and Local Government",Homes England,LEGAL FEES,Midlands,DWF LLP,16/04/2019,981.05,L,80121600,Business law services
"Ministry of Housing, Communities and Local Government",Homes England,LEGAL FEES,Economic Assets Hub,DWF LLP,18/04/2019,814.9,L,80121600,Business law services
"Ministry of Housing, Communities and Local Government",Homes England,LEGAL FEES,East And South East,DWF LLP,18/04/2019,450,L,80121600,Business law services
"Ministry of Housing, Communities and Local Government",Homes England,LEGAL FEES,South West,DWF LLP,18/04/2019,460,L,80121600,Business law services
"Ministry of Housing, Communities and Local Government",Homes England,LEGAL FEES,East And South East,DWF LLP,23/04/2019,450,L,80121600,Business law services
"Ministry of Housing, Communities and Local Government",Homes England,LEGAL FEES,East And South East,DWF LLP,24/04/2019,980,L,80121600,Business law services
"Ministry of Housing, Communities and Local Government",Homes England,LEGAL FEES,Midlands,DWF LLP,25/04/2019,1149.43,L,80121600,Business law services
"Ministry of Housing, Communities and Local Government",Homes England,LEGAL FEES,North East And Yorkshire,DWF LLP,25/04/2019,270,L,80121600,Business law services
"Ministry of Housing, Communities and Local Government",Homes England,LEGAL FEES,North East And Yorkshire,DWF LLP,25/04/2019,2399.03,L,80121600,Business law services
"Ministry of Housing, Communities and Local Government",Homes England,LEGAL FEES,North East And Yorkshire,DWF LLP,25/04/2019,4396.36,L,80121600,Business law services
"Ministry of Housing, Communities and Local Government",Homes England,LEGAL FEES,Midlands,DWF LLP,30/04/2019,310,L,80121600,Business law services
"Ministry of Housing, Communities and Local Government",Homes England,DISPOSAL FEES - LEGAL,Programmes,DWF LLP,30/04/2019,1077,L,80121600,Business law services
"Ministry of Housing, Communities and Local Government",Homes England,CAR LEASING - HIRE CHARGES,North East And Yorkshire,DAIMLER FLEET MANAGEMENT,11/04/2019,1933.65,M,25101500,Passenger motor vehicles
"Ministry of Housing, Communities and Local Government",Homes England,CAR LEASING - HIRE CHARGES,North East And Yorkshire,DAIMLER FLEET MANAGEMENT,11/04/2019,2566.46,M,25101500,Passenger motor vehicles
"Ministry of Housing, Communities and Local Government",Homes England,TAXIS,Finance & Corporate Services,DEAN TAXI LIMITED,03/04/2019,1021.6,S,78111800,Passenger road transportation
"Ministry of Housing, Communities and Local Government",Homes England,TAXIS,Finance & Corporate Services,DEAN TAXI LIMITED,11/04/2019,1206.4,S,78111800,Passenger road transportation
"Ministry of Housing, Communities and Local Government",Homes England,ESTATE GENERAL MAINTENANCE,Programmes,DANAHER & WALSH (CIVIL ENGINEERING) LTD,12/04/2019,3898.69,S,80131800,Real estate management services
"Ministry of Housing, Communities and Local Government",Homes England,ESTATE GENERAL MAINTENANCE,East And South East,DANAHER & WALSH (CIVIL ENGINEERING) LTD,12/04/2019,51292.81,S,80131800,Real estate management services
"Ministry of Housing, Communities and Local Government",Homes England,BUILDINGS-VACANT RATES,North East And Yorkshire,DURHAM COUNTY COUNCIL,08/04/2019,3981.6,G,80131500,Lease and rental of property or building
"Ministry of Housing, Communities and Local Government",Homes England,DRAINS & SEWERS,North East And Yorkshire,DARCY SPILLCARE,30/04/2019,750,M,72102900,Facility maintenance and repair services
"Ministry of Housing, Communities and Local Government",Homes England,OCCUPIED RATES,North East And Yorkshire,DONCASTER METROPOLITAN BOROUGH COUNCIL,02/04/2019,14868,G,80131500,Lease and rental of property or building
"Ministry of Housing, Communities and Local Government",Homes England,Software - Additions,Finance & Corporate Services,DB GROUP LTD T/A ESUASIVE,09/04/2019,4950,S,43231500,Business function specific software
"Ministry of Housing, Communities and Local Government",Homes England,PROPERTY SERVICES,Programmes,WOOD ENVIRONMENT & INFRASTRUCTURE SOLUTIONS,01/04/2019,30000,L,80131800,Real estate management services
"Ministry of Housing, Communities and Local Government",Homes England,MASTERPLANNING FEES,East And South East,WOOD ENVIRONMENT & INFRASTRUCTURE SOLUTIONS,04/04/2019,4900,L,80131800,Real estate management services
"Ministry of Housing, Communities and Local Government",Homes England,ENGINEERING FEES,Midlands,WOOD ENVIRONMENT & INFRASTRUCTURE SOLUTIONS,09/04/2019,887.5,L,80131800,Real estate management services
"Ministry of Housing, Communities and Local Government",Homes England,ENGINEERING FEES,Programmes,WOOD ENVIRONMENT & INFRASTRUCTURE SOLUTIONS,09/04/2019,1127.58,L,80131800,Real estate management services
"Ministry of Housing, Communities and Local Government",Homes England,ENGINEERING FEES,Programmes,WOOD ENVIRONMENT & INFRASTRUCTURE SOLUTIONS,09/04/2019,1389.37,L,80131800,Real estate management services
"Ministry of Housing, Communities and Local Government",Homes England,ENGINEERING FEES,Programmes,WOOD ENVIRONMENT & INFRASTRUCTURE SOLUTIONS,10/04/2019,791.48,L,80131800,Real estate management services
"Ministry of Housing, Communities and Local Government",Homes England,ENGINEERING FEES,Programmes,WOOD ENVIRONMENT & INFRASTRUCTURE SOLUTIONS,11/04/2019,3784.89,L,80131800,Real estate management services
"Ministry of Housing, Communities and Local Government",Homes England,ENGINEERING FEES,Midlands,WOOD ENVIRONMENT & INFRASTRUCTURE SOLUTIONS,11/04/2019,1648.5,L,80131800,Real estate management services
"Ministry of Housing, Communities and Local Government",Homes England,MISC PROFESSIONAL FEES,Midlands,WOOD ENVIRONMENT & INFRASTRUCTURE SOLUTIONS,12/04/2019,8497.5,L,80131800,Real estate management services
"Ministry of Housing, Communities and Local Government",Homes England,SITE SUPERVISION,Midlands,WOOD ENVIRONMENT & INFRASTRUCTURE SOLUTIONS,12/04/2019,603.13,L,80131800,Real estate management services
"Ministry of Housing, Communities and Local Government",Homes England,ENGINEERING FEES,Midlands,WOOD ENVIRONMENT & INFRASTRUCTURE SOLUTIONS,15/04/2019,903.9,L,80131800,Real estate management services
"Ministry of Housing, Communities and Local Government",Homes England,OFFICE RELOCATION COSTS,Finance & Corporate Services,EDE'S (UK) LTD.,15/04/2019,423,L,72102900,Facility maintenance and repair services
"Ministry of Housing, Communities and Local Government",Homes England,ST Fund Loans Additions,Economic Assets Hub,EAST WICK AND SWEETWATER PROJECTS (PHASE 1) L,12/04/2019,3199226.24,,,Loans
"Ministry of Housing, Communities and Local Government",Homes England,PUBLICATIONS,Finance & Corporate Services,REED BUSINESS INFORMATION LIMITED,24/04/2019,1047.5,M,82101500,Print advertising
"Ministry of Housing, Communities and Local Government",Homes England,PUBLICATIONS,Finance & Corporate Services,REED BUSINESS INFORMATION LIMITED,24/04/2019,3594.5,M,82101500,Print advertising
"Ministry of Housing, Communities and Local Government",Homes England,MISC PROFESSIONAL FEES,Programmes,ERNST & YOUNG,26/04/2019,78885,S,80131800,Real estate management services
"Ministry of Housing, Communities and Local Government",Homes England,BUILDINGS-VACANT RATES,South West,EAST DEVON DISTRICT COUNCIL,17/04/2019,57960,G,80131500,Lease and rental of property or building
"Ministry of Housing, Communities and Local Government",Homes England,PACKAGE MAINTENANCE & SUBSCRIPTIONS,Finance & Corporate Services,ELOOMI A/S,11/04/2019,9235.14,S,86101800,In service training and manpower development
"Ministry of Housing, Communities and Local Government",Homes England,PEOPLE PLAN / INSTANT RECOGNITION,Finance & Corporate Services,EDENRED (UK GROUP) LTD,02/04/2019,1300,L,14111803,Vouchers
"Ministry of Housing, Communities and Local Government",Homes England,TELEPHONES,Finance & Corporate Services,EE LTD,12/04/2019,13085.38,L,83101600,Mobile communications services
"Ministry of Housing, Communities and Local Government",Homes England,DISPOSAL FEES - LEGAL,East And South East,EVERSHEDS CLIENT ACCOUNT,01/04/2019,12000,L,80121600,Business law services
"Ministry of Housing, Communities and Local Government",Homes England,LEGAL FEES,East And South East,EVERSHEDS CLIENT ACCOUNT,02/04/2019,500,L,80121600,Business law services
"Ministry of Housing, Communities and Local Government",Homes England,LEGAL FEES,East And South East,EVERSHEDS CLIENT ACCOUNT,03/04/2019,70352,L,80121600,Business law services
"Ministry of Housing, Communities and Local Government",Homes England,LEGAL FEES,East And South East,EVERSHEDS CLIENT ACCOUNT,05/04/2019,9000,L,80121600,Business law services
"Ministry of Housing, Communities and Local Government",Homes England,LEGAL FEES,Programmes,EVERSHEDS CLIENT ACCOUNT,05/04/2019,29750,L,80121600,Business law services
"Ministry of Housing, Communities and Local Government",Homes England,LEGAL FEES,North West,EVERSHEDS CLIENT ACCOUNT,05/04/2019,14664,L,80121600,Business law services
"Ministry of Housing, Communities and Local Government",Homes England,LEGAL FEES,Programmes,EVERSHEDS CLIENT ACCOUNT,09/04/2019,1260,L,80121600,Business law services
"Ministry of Housing, Communities and Local Government",Homes England,LEGAL FEES,Midlands,EVERSHEDS CLIENT ACCOUNT,15/04/2019,720,L,80121600,Business law services
"Ministry of Housing, Communities and Local Government",Homes England,LEGAL FEES,East And South East,EVERSHEDS CLIENT ACCOUNT,24/04/2019,1200,L,80121600,Business law services
"Ministry of Housing, Communities and Local Government",Homes England,LEGAL FEES,Programmes,EVERSHEDS CLIENT ACCOUNT,26/04/2019,850,L,80121600,Business law services
"Ministry of Housing, Communities and Local Government",Homes England,DISPOSAL FEES - LEGAL,Midlands,EVERSHEDS CLIENT ACCOUNT,29/04/2019,3299.17,L,80121600,Business law services
"Ministry of Housing, Communities and Local Government",Homes England,LEGAL FEES,Midlands,EVERSHEDS CLIENT ACCOUNT,30/04/2019,8600,L,80121600,Business law services
"Ministry of Housing, Communities and Local Government",Homes England,LEGAL FEES,East And South East,EVERSHEDS CLIENT ACCOUNT,30/04/2019,3395.09,L,80121600,Business law services
"Ministry of Housing, Communities and Local Government",Homes England,LEGAL FEES,North West,EVERSHEDS CLIENT ACCOUNT,30/04/2019,9634,L,80121600,Business law services
"Ministry of Housing, Communities and Local Government",Homes England,ESTATE GENERAL MAINTENANCE,Programmes,EA FORMBY (NW) LIMITED,08/04/2019,388,S,72101500,Building maintenance and repair services
"Ministry of Housing, Communities and Local Government",Homes England,ESTATE GENERAL MAINTENANCE,Programmes,EA FORMBY (NW) LIMITED,08/04/2019,709.2,S,72101500,Building maintenance and repair services
"Ministry of Housing, Communities and Local Government",Homes England,CONTRACT WORKS,North West,ERIC WRIGHT CIVIL ENGINEERING LIMITED,03/04/2019,46578.64,S,811001500,Civil Engineering
"Ministry of Housing, Communities and Local Government",Homes England,ST Fund Loans Additions,Economic Assets Hub,ENJOY BUILDING LIMITED,04/04/2019,50000,,,Loans
"Ministry of Housing, Communities and Local Government",Homes England,ST Fund Loans Additions,Economic Assets Hub,EDG PROPERTY COVENTRY LTD,23/04/2019,737081,,,Loans
"Ministry of Housing, Communities and Local Government",Homes England,ST Fund Loans Additions,Economic Assets Hub,ERRIS HOMES (BARNSLEY)LTD,30/04/2019,104201.16,,,Loans
"Ministry of Housing, Communities and Local Government",Homes England,LT Fund Loans (Ps) Additions,Economic Assets Hub,EARLS COURT PARTNERSHIP LIMITED,29/04/2019,4000730,,,Loans
"Ministry of Housing, Communities and Local Government",Homes England,OTHER PROFESSIONAL FEES,Midlands,EAST STAFFORDSHIRE BOROUGH COUNCIL,10/04/2019,2250,G,,Grants
"Ministry of Housing, Communities and Local Government",Homes England,ENGINEERING FEES,South West,AECOM LIMITED,03/04/2019,1077.56,L,72101500,Building maintenance and repair services
"Ministry of Housing, Communities and Local Government",Homes England,PROJECT SPECIFIC FEES & PRELIM EXPENDITURE,South West,AECOM LIMITED,03/04/2019,9423.83,L,72101500,Building maintenance and repair services
"Ministry of Housing, Communities and Local Government",Homes England,OTHER PROFESSIONAL FEES,North East And Yorkshire,AECOM LIMITED,04/04/2019,1562.25,L,72101500,Building maintenance and repair services
"Ministry of Housing, Communities and Local Government",Homes England,Professional Fees Loans Capitalised,Programmes,AECOM LIMITED,04/04/2019,1550,L,72101500,Building maintenance and repair services
"Ministry of Housing, Communities and Local Government",Homes England,RI - MONITORING SURVEYOR FEES,Programmes,AECOM LIMITED,04/04/2019,2271,L,72101500,Building maintenance and repair services
"Ministry of Housing, Communities and Local Government",Homes England,MISC PROFESSIONAL FEES,Executive Office,AECOM LIMITED,04/04/2019,98932,L,72101500,Building maintenance and repair services
"Ministry of Housing, Communities and Local Government",Homes England,MASTERPLANNING FEES,South West,AECOM LIMITED,05/04/2019,3006.57,L,72101500,Building maintenance and repair services
"Ministry of Housing, Communities and Local Government",Homes England,Professional Fees Equity Capitalised,Economic Assets Hub,AECOM LIMITED,05/04/2019,9996.32,L,72101500,Building maintenance and repair services
"Ministry of Housing, Communities and Local Government",Homes England,PROJECT MANAGEMENT,South West,AECOM LIMITED,08/04/2019,20000,L,72101500,Building maintenance and repair services
"Ministry of Housing, Communities and Local Government",Homes England,RI - MONITORING SURVEYOR FEES,Programmes,AECOM LIMITED,09/04/2019,3217.37,L,72101500,Building maintenance and repair services
"Ministry of Housing, Communities and Local Government",Homes England,ENGINEERING CONSULTANTS,North West,AECOM LIMITED,23/04/2019,31070.31,L,72101500,Building maintenance and repair services
"Ministry of Housing, Communities and Local Government",Homes England,RI - MONITORING SURVEYOR FEES,Programmes,AECOM LIMITED,23/04/2019,2271,L,72101500,Building maintenance and repair services
"Ministry of Housing, Communities and Local Government",Homes England,OTHER PROFESSIONAL FEES,East And South East,AECOM LIMITED,26/04/2019,40000,L,72101500,Building maintenance and repair services
"Ministry of Housing, Communities and Local Government",Homes England,OTHER PROFESSIONAL FEES,North West,SAVILLS UK LIMITED,02/04/2019,33695.5,L,80131800,Real estate management services
"Ministry of Housing, Communities and Local Government",Homes England,DISPOSAL FEES - PROPERTY AGENTS & ADVERTISING,South West,SAVILLS UK LIMITED,02/04/2019,16000,L,80131800,Real estate management services
"Ministry of Housing, Communities and Local Government",Homes England,MISC PROFESSIONAL FEES,Programmes,SAVILLS UK LIMITED,05/04/2019,350,L,80131800,Real estate management services
"Ministry of Housing, Communities and Local Government",Homes England,PROPERTY SERVICES,East And South East,SAVILLS UK LIMITED,08/04/2019,2500,L,80131800,Real estate management services
"Ministry of Housing, Communities and Local Government",Homes England,DISPOSAL FEES - PROPERTY AGENTS & ADVERTISING,East And South East,SAVILLS UK LIMITED,09/04/2019,4000,L,80131800,Real estate management services
"Ministry of Housing, Communities and Local Government",Homes England,DISPOSAL FEES - PROPERTY AGENTS & ADVERTISING,East And South East,SAVILLS UK LIMITED,09/04/2019,5750,L,80131800,Real estate management services
"Ministry of Housing, Communities and Local Government",Homes England,OTHER PROFESSIONAL FEES,Midlands,SAVILLS UK LIMITED,09/04/2019,4500,L,80131800,Real estate management services
"Ministry of Housing, Communities and Local Government",Homes England,OPEN MARKET VALUATION FEE,East And South East,SAVILLS UK LIMITED,15/04/2019,2550,L,80131800,Real estate management services
"Ministry of Housing, Communities and Local Government",Homes England,PROPERTY SERVICES,North East And Yorkshire,SAVILLS UK LIMITED,23/04/2019,9843,L,80131800,Real estate management services
"Ministry of Housing, Communities and Local Government",Homes England,COURSES & CONFERENCES,North East And Yorkshire,FLINT SPARK LTD T/A FLINT SPARK CONSULTING,05/04/2019,1725,S,86101800,In service training and manpower development
"Ministry of Housing, Communities and Local Government",Homes England,MANAGEMENT COSTS,South West,R FOX T/A SOUTHCOAST MAINTENANCE,24/04/2019,4500,S,72101500,Building maintenance and repair services
"Ministry of Housing, Communities and Local Government",Homes England,MANAGEMENT COSTS,South West,R FOX T/A SOUTHCOAST MAINTENANCE,24/04/2019,3500,S,72101500,Building maintenance and repair services
"Ministry of Housing, Communities and Local Government",Homes England,ESTATE GENERAL MAINTENANCE,South West,R FOX T/A SOUTHCOAST MAINTENANCE,24/04/2019,660,S,72101500,Building maintenance and repair services
"Ministry of Housing, Communities and Local Government",Homes England,MANAGEMENT COSTS,South West,R FOX T/A SOUTHCOAST MAINTENANCE,24/04/2019,700,S,72101500,Building maintenance and repair services
"Ministry of Housing, Communities and Local Government",Homes England,MANAGEMENT COSTS,South West,R FOX T/A SOUTHCOAST MAINTENANCE,24/04/2019,650,S,72101500,Building maintenance and repair services
"Ministry of Housing, Communities and Local Government",Homes England,SECURITY,Midlands,FALCON SECURITY,05/04/2019,1120,M,92121500,Guard services
"Ministry of Housing, Communities and Local Government",Homes England,BUILDINGS-VACANT RATES,South West,FOREST OF DEAN DISTRICT COUNCIL,15/04/2019,36540,G,80131500,Lease and rental of property or building
"Ministry of Housing, Communities and Local Government",Homes England,BUILDINGS-VACANT RATES,South West,FOREST OF DEAN DISTRICT COUNCIL,15/04/2019,138600,G,80131500,Lease and rental of property or building
"Ministry of Housing, Communities and Local Government",Homes England,MISC PROFESSIONAL FEES (ADMIN ONLY),Executive Office,FUTUREGOV LTD,25/04/2019,238853,S,80101500,Business and corporate management consultation services�
"Ministry of Housing, Communities and Local Government",Homes England,MISC PROFESSIONAL FEES (ADMIN ONLY),Executive Office,FUTUREGOV LTD,25/04/2019,5978.62,S,80101500,Business and corporate management consultation services�
"Ministry of Housing, Communities and Local Government",Homes England,PROPERTY MAINTENANCE,South West,FPCR ENVIRONMENT & DESIGN LIMITED,15/04/2019,1224,M,77101500,Environmental auditing
"Ministry of Housing, Communities and Local Government",Homes England,PROPERTY MAINTENANCE,Midlands,FIRST NATIONAL SERVICES LTD,08/04/2019,486,S,72102900,Facility maintenance and repair services
"Ministry of Housing, Communities and Local Government",Homes England,PROPERTY MAINTENANCE,Midlands,FIRST NATIONAL SERVICES LTD,08/04/2019,3807,S,72102900,Facility maintenance and repair services
"Ministry of Housing, Communities and Local Government",Homes England,PROPERTY MAINTENANCE,Midlands,FIRST NATIONAL SERVICES LTD,11/04/2019,1029.37,S,72102900,Facility maintenance and repair services
"Ministry of Housing, Communities and Local Government",Homes England,PROPERTY MAINTENANCE,Midlands,FIRST NATIONAL SERVICES LTD,17/04/2019,695,S,72102900,Facility maintenance and repair services
"Ministry of Housing, Communities and Local Government",Homes England,PROPERTY MAINTENANCE,Midlands,FIRST NATIONAL SERVICES LTD,23/04/2019,359.05,S,72102900,Facility maintenance and repair services
"Ministry of Housing, Communities and Local Government",Homes England,LANDSCAPE MAINT-BUILT ESTATE,South West,FALCON PEST CONTROL,24/04/2019,425,S,72102100,Pest control
"Ministry of Housing, Communities and Local Government",Homes England,LEGAL FEES,East And South East,FALCON CHAMBERS,03/04/2019,1000,S,80121600,Business law services
"Ministry of Housing, Communities and Local Government",Homes England,BUILDINGS-ELECTRICITY,South West,GOOD ENERGY LTD,17/04/2019,341.26,M,83101800,Electric utilities
"Ministry of Housing, Communities and Local Government",Homes England,RI - MONITORING SURVEYOR FEES,Economic Assets Hub,GVA GRIMLEY T/A AVISON YOUNG,03/04/2019,1450,L,80131800,Real estate management services
"Ministry of Housing, Communities and Local Government",Homes England,Professional Fees Loans Capitalised,Economic Assets Hub,GVA GRIMLEY T/A AVISON YOUNG,08/04/2019,750,L,80131800,Real estate management services
"Ministry of Housing, Communities and Local Government",Homes England,PROPERTY SERVICES,Midlands,GVA GRIMLEY T/A AVISON YOUNG,12/04/2019,3000,L,80131800,Real estate management services
"Ministry of Housing, Communities and Local Government",Homes England,DISPOSAL FEES - PROPERTY AGENTS & ADVERTISING,South West,GVA GRIMLEY T/A AVISON YOUNG,12/04/2019,2495,L,80131800,Real estate management services
"Ministry of Housing, Communities and Local Government",Homes England,PROPERTY SERVICES,Programmes,GVA GRIMLEY T/A AVISON YOUNG,12/04/2019,5000,L,80131800,Real estate management services
"Ministry of Housing, Communities and Local Government",Homes England,MANAGEMENT COSTS,Midlands,GVA GRIMLEY T/A AVISON YOUNG,15/04/2019,500,L,80131800,Real estate management services
"Ministry of Housing, Communities and Local Government",Homes England,MANAGEMENT COSTS,Midlands,GVA GRIMLEY T/A AVISON YOUNG,15/04/2019,2375,L,80131800,Real estate management services
"Ministry of Housing, Communities and Local Government",Homes England,RI - MONITORING SURVEYOR FEES,Programmes,GVA GRIMLEY T/A AVISON YOUNG,15/04/2019,950,L,80131800,Real estate management services
"Ministry of Housing, Communities and Local Government",Homes England,MISC PROFESSIONAL FEES (ADMIN ONLY),Finance & Corporate Services,GVA GRIMLEY T/A AVISON YOUNG,15/04/2019,1000,L,80131800,Real estate management services
"Ministry of Housing, Communities and Local Government",Homes England,Professional Fees Loans Capitalised,Economic Assets Hub,GVA GRIMLEY T/A AVISON YOUNG,17/04/2019,5000,L,80131800,Real estate management services
"Ministry of Housing, Communities and Local Government",Homes England,QUANTITY SURVEYORS FEES,North East And Yorkshire,GVA GRIMLEY T/A AVISON YOUNG,17/04/2019,1113,L,80131800,Real estate management services
"Ministry of Housing, Communities and Local Government",Homes England,RI - MONITORING SURVEYOR FEES,Economic Assets Hub,GVA GRIMLEY T/A AVISON YOUNG,24/04/2019,800,L,80131800,Real estate management services
"Ministry of Housing, Communities and Local Government",Homes England,RI - MONITORING SURVEYOR FEES,Economic Assets Hub,GVA GRIMLEY T/A AVISON YOUNG,24/04/2019,800,L,80131800,Real estate management services
"Ministry of Housing, Communities and Local Government",Homes England,PROPERTY SERVICES,North East And Yorkshire,GVA GRIMLEY T/A AVISON YOUNG,25/04/2019,3500,L,80131800,Real estate management services
"Ministry of Housing, Communities and Local Government",Homes England,DISPOSAL FEES - PROPERTY AGENTS & ADVERTISING,East And South East,GVA GRIMLEY T/A AVISON YOUNG,26/04/2019,15000,L,80131800,Real estate management services
"Ministry of Housing, Communities and Local Government",Homes England,RI - MONITORING SURVEYOR FEES,Economic Assets Hub,GVA GRIMLEY T/A AVISON YOUNG,29/04/2019,1026.95,L,80131800,Real estate management services
"Ministry of Housing, Communities and Local Government",Homes England,RI - MONITORING SURVEYOR FEES,Programmes,GVA GRIMLEY T/A AVISON YOUNG,29/04/2019,950,L,80131800,Real estate management services
"Ministry of Housing, Communities and Local Government",Homes England,RI - MONITORING SURVEYOR FEES,Programmes,GVA GRIMLEY T/A AVISON YOUNG,29/04/2019,918.25,L,80131800,Real estate management services
"Ministry of Housing, Communities and Local Government",Homes England,RATES,Finance & Corporate Services,GATESHEAD COUNCIL,03/04/2019,12013.02,G,80131500,Lease and rental of property or building
"Ministry of Housing, Communities and Local Government",Homes England,RATES,Finance & Corporate Services,GATESHEAD COUNCIL,03/04/2019,26038.98,G,80131500,Lease and rental of property or building
"Ministry of Housing, Communities and Local Government",Homes England,RATES,Finance & Corporate Services,GATESHEAD COUNCIL,03/04/2019,3829.8,G,80131500,Lease and rental of property or building
"Ministry of Housing, Communities and Local Government",Homes England,RATES,Finance & Corporate Services,GATESHEAD COUNCIL,03/04/2019,4032,G,80131500,Lease and rental of property or building
"Ministry of Housing, Communities and Local Government",Homes England,ESTATE GENERAL MAINTENANCE,Midlands,GRUNDON WASTE MANAGEMENT LTD,,650,L,76121500,Refuse collection and disposal
"Ministry of Housing, Communities and Local Government",Homes England,ESTATE GENERAL MAINTENANCE,Midlands,GRUNDON WASTE MANAGEMENT LTD,,4620,L,76121500,Refuse collection and disposal
"Ministry of Housing, Communities and Local Government",Homes England,ESTATE GENERAL MAINTENANCE,Midlands,GRUNDON WASTE MANAGEMENT LTD,,4740,L,76121500,Refuse collection and disposal
"Ministry of Housing, Communities and Local Government",Homes England,ESTATE GENERAL MAINTENANCE,Midlands,GRUNDON WASTE MANAGEMENT LTD,,3950,L,76121500,Refuse collection and disposal
"Ministry of Housing, Communities and Local Government",Homes England,ESTATE GENERAL MAINTENANCE,Midlands,GRUNDON WASTE MANAGEMENT LTD,,3768,L,76121500,Refuse collection and disposal
"Ministry of Housing, Communities and Local Government",Homes England,BRANDING & REPORTS,Executive Office,GILES ROCHOLL PHOTOGRAPHY LTD,01/04/2019,2345,S,82131600,Photographers and cinematographers
"Ministry of Housing, Communities and Local Government",Homes England,ESTATE GENERAL MAINTENANCE,East And South East,GLENDALE COUNTRYSIDE LIMITED,05/04/2019,32646.03,L,72101500,Building maintenance and repair services
"Ministry of Housing, Communities and Local Government",Homes England,Build To Rent Loans Additions,Economic Assets Hub,GLASS DEVELOPMENTS LIMITED,26/04/2019,301806.24,,,Loans
"Ministry of Housing, Communities and Local Government",Homes England,ST Fund Loans Additions,Economic Assets Hub,GLASSHOUSES123 LIMITED,30/04/2019,188014,,,Loans
"Ministry of Housing, Communities and Local Government",Homes England,MEETING ROOM HIRE,Executive Office,GREATER MANCHESTER CHAMBER OF COMMERCE,02/04/2019,254,L,90111600,Meeting facilities
"Ministry of Housing, Communities and Local Government",Homes England,MISC PROFESSIONAL FEES,Programmes,GERALD EVE LLP,01/04/2019,45000,L,80131800,Real estate management services
"Ministry of Housing, Communities and Local Government",Homes England,OPEN MARKET VALUATION FEE,Programmes,GERALD EVE LLP,05/04/2019,8500,L,80131800,Real estate management services
"Ministry of Housing, Communities and Local Government",Homes England,SECURITY,South West,GUARDING UK LTD,25/04/2019,932.5,L,92121500,Guard services
"Ministry of Housing, Communities and Local Government",Homes England,SECURITY,South West,GUARDING UK LTD,25/04/2019,932.5,L,92121500,Guard services
"Ministry of Housing, Communities and Local Government",Homes England,SECURITY,South West,GUARDING UK LTD,25/04/2019,932.5,L,92121500,Guard services
"Ministry of Housing, Communities and Local Government",Homes England,REVENUE GRANTS TO LOCAL AUTHORITIES,Programmes,GLOUCESTERSHIRE COUNTY COUNCIL,08/04/2019,150000,G,,Grants
"Ministry of Housing, Communities and Local Government",Homes England,ESTATE GENERAL MAINTENANCE,South West,GRITIT LTD,04/04/2019,808.2,M,72153501,Building exterior cleaning service  
"Ministry of Housing, Communities and Local Government",Homes England,ESTATE GENERAL MAINTENANCE,South West,GRITIT LTD,04/04/2019,467.82,M,72153501,Building exterior cleaning service  
"Ministry of Housing, Communities and Local Government",Homes England,SERVICE CHARGE,North West,GVA (PMA321),15/04/2019,2520,L,80131500,Lease and rental of property or building
"Ministry of Housing, Communities and Local Government",Homes England,SERVICE CHARGE,North West,GVA (PMA321),15/04/2019,697,L,80131500,Lease and rental of property or building
"Ministry of Housing, Communities and Local Government",Homes England,SERVICE CHARGES,Finance & Corporate Services,GOVERNMENT PROPERTY AGENCY,03/04/2019,611571.85,G,80131500,Lease and rental of property or building
"Ministry of Housing, Communities and Local Government",Homes England,BUILDINGS-VACANT RATES,South West,GOSPORT BOROUGH COUNCIL,03/04/2019,626.03,G,80131500,Lease and rental of property or building
"Ministry of Housing, Communities and Local Government",Homes England,BUILDINGS-VACANT RATES,South West,GOSPORT BOROUGH COUNCIL,03/04/2019,2160.4,G,80131500,Lease and rental of property or building
"Ministry of Housing, Communities and Local Government",Homes England,BUILDINGS-VACANT RATES,South West,GOSPORT BOROUGH COUNCIL,03/04/2019,2016,G,80131500,Lease and rental of property or building
"Ministry of Housing, Communities and Local Government",Homes England,BUILDINGS-VACANT RATES,South West,GOSPORT BOROUGH COUNCIL,03/04/2019,5544,G,80131500,Lease and rental of property or building
"Ministry of Housing, Communities and Local Government",Homes England,BUILDINGS-VACANT RATES,South West,GOSPORT BOROUGH COUNCIL,03/04/2019,4888.8,G,80131500,Lease and rental of property or building
"Ministry of Housing, Communities and Local Government",Homes England,BUILDINGS-VACANT RATES,South West,GOSPORT BOROUGH COUNCIL,03/04/2019,2923.2,G,80131500,Lease and rental of property or building
"Ministry of Housing, Communities and Local Government",Homes England,BUILDINGS-VACANT RATES,South West,GOSPORT BOROUGH COUNCIL,03/04/2019,7434,G,80131500,Lease and rental of property or building
"Ministry of Housing, Communities and Local Government",Homes England,BUILDINGS-VACANT RATES,South West,GOSPORT BOROUGH COUNCIL,03/04/2019,1764,G,80131500,Lease and rental of property or building
"Ministry of Housing, Communities and Local Government",Homes England,BUILDINGS-VACANT RATES,South West,GOSPORT BOROUGH COUNCIL,03/04/2019,16380,G,80131500,Lease and rental of property or building
"Ministry of Housing, Communities and Local Government",Homes England,BUILDINGS-VACANT RATES,South West,GOSPORT BOROUGH COUNCIL,03/04/2019,2318.4,G,80131500,Lease and rental of property or building
"Ministry of Housing, Communities and Local Government",Homes England,BUILDINGS-VACANT RATES,South West,GOSPORT BOROUGH COUNCIL,03/04/2019,2444.4,G,80131500,Lease and rental of property or building
"Ministry of Housing, Communities and Local Government",Homes England,BUILDINGS-VACANT RATES,South West,GOSPORT BOROUGH COUNCIL,03/04/2019,3477.6,G,80131500,Lease and rental of property or building
"Ministry of Housing, Communities and Local Government",Homes England,BUILDINGS-VACANT RATES,South West,GOSPORT BOROUGH COUNCIL,03/04/2019,2651.4,G,80131500,Lease and rental of property or building
"Ministry of Housing, Communities and Local Government",Homes England,BUILDINGS-VACANT RATES,South West,GOSPORT BOROUGH COUNCIL,03/04/2019,1276.6,G,80131500,Lease and rental of property or building
"Ministry of Housing, Communities and Local Government",Homes England,BUILDINGS-VACANT RATES,South West,GOSPORT BOROUGH COUNCIL,29/04/2019,6927.16,G,80131500,Lease and rental of property or building
"Ministry of Housing, Communities and Local Government",Homes England,BUILDINGS-VACANT RATES,South West,GOSPORT BOROUGH COUNCIL,29/04/2019,6927.16,G,80131500,Lease and rental of property or building
"Ministry of Housing, Communities and Local Government",Homes England,BUILDINGS-VACANT RATES,South West,GOSPORT BOROUGH COUNCIL,29/04/2019,6927.16,G,80131500,Lease and rental of property or building
"Ministry of Housing, Communities and Local Government",Homes England,BUILDINGS-VACANT RATES,South West,GOSPORT BOROUGH COUNCIL,29/04/2019,6927.16,G,80131500,Lease and rental of property or building
"Ministry of Housing, Communities and Local Government",Homes England,MANAGEMENT DEVELOPMENT,Finance & Corporate Services,PARTNERSHIP MEDIA GROUP LTD T/A GOVNET COMMUN,02/04/2019,4750,M,86101800,In service training and manpower development
"Ministry of Housing, Communities and Local Government",Homes England,ESTATE GENERAL MAINTENANCE,South West,GREENFIELDS GARDEN SERVICES LTD,15/04/2019,669.19,S,72101500,Building maintenance and repair services
"Ministry of Housing, Communities and Local Government",Homes England,STAFF RECRUITMENT COSTS,Finance & Corporate Services,GREEN PARK INTERIM & EXECUTIVE LTD,25/04/2019,6147,,80111600,Temporary personnel services
"Ministry of Housing, Communities and Local Government",Homes England,STAFF RECRUITMENT COSTS,Finance & Corporate Services,GREEN PARK INTERIM & EXECUTIVE LTD,25/04/2019,24588,,80111600,Temporary personnel services
"Ministry of Housing, Communities and Local Government",Homes England,AGENCY STAFF,Programmes,HAYS ACCOUNTANCY & FINANCE,01/04/2019,2884.45,L,80111600,Temporary personnel services
"Ministry of Housing, Communities and Local Government",Homes England,AGENCY STAFF,Programmes,HAYS ACCOUNTANCY & FINANCE,08/04/2019,2884.45,L,80111600,Temporary personnel services
"Ministry of Housing, Communities and Local Government",Homes England,AGENCY STAFF,Programmes,HAYS ACCOUNTANCY & FINANCE,11/04/2019,4710.38,L,80111600,Temporary personnel services
"Ministry of Housing, Communities and Local Government",Homes England,AGENCY STAFF,Programmes,HAYS ACCOUNTANCY & FINANCE,11/04/2019,1570.13,L,80111600,Temporary personnel services
"Ministry of Housing, Communities and Local Government",Homes England,AGENCY STAFF,Finance & Corporate Services,HAYS ACCOUNTANCY & FINANCE,17/04/2019,1338.48,L,80111600,Temporary personnel services
"Ministry of Housing, Communities and Local Government",Homes England,AGENCY STAFF,South West,HAYS ACCOUNTANCY & FINANCE,18/04/2019,1553.54,L,80111600,Temporary personnel services
"Ministry of Housing, Communities and Local Government",Homes England,STAFF RECRUITMENT COSTS,Programmes,HAYS ACCOUNTANCY & FINANCE,25/04/2019,6583.5,L,80111600,Temporary personnel services
"Ministry of Housing, Communities and Local Government",Homes England,STAFF RECRUITMENT COSTS,Programmes,HAYS ACCOUNTANCY & FINANCE,25/04/2019,3291.75,L,80111600,Temporary personnel services
"Ministry of Housing, Communities and Local Government",Homes England,OTHER PROFESSIONAL FEES,East And South East,ARCADIS CONSULTING (UK) LIMITED,03/04/2019,283536.29,L,811001500,Civil Engineering
"Ministry of Housing, Communities and Local Government",Homes England,PLANNING APPLICATIONS,East And South East,ARCADIS CONSULTING (UK) LIMITED,08/04/2019,142843.61,L,811001500,Civil Engineering
"Ministry of Housing, Communities and Local Government",Homes England,ENGINEERING FEES,East And South East,ARCADIS CONSULTING (UK) LIMITED,25/04/2019,32751.33,L,811001500,Civil Engineering
"Ministry of Housing, Communities and Local Government",Homes England,DEVELOPMENT MANAGEMENT,Programmes,ARCADIS CONSULTING (UK) LIMITED,26/04/2019,3250,L,811001500,Civil Engineering
"Ministry of Housing, Communities and Local Government",Homes England,MISC PROFESSIONAL FEES,North East And Yorkshire,HARRISONHIX ARCHITECTURE & SURVEYORS LTD,16/04/2019,968.75,S,80131800,Real estate management services
"Ministry of Housing, Communities and Local Government",Homes England,MISC PROFESSIONAL FEES,North East And Yorkshire,HARRISONHIX ARCHITECTURE & SURVEYORS LTD,29/04/2019,968.75,S,80131800,Real estate management services
"Ministry of Housing, Communities and Local Government",Homes England,LEGAL FEES,South West,POLICE & CRIME COMMISSIONER FOR HAMPSHIRE,08/04/2019,2076464,G,,Grants
"Ministry of Housing, Communities and Local Government",Homes England,PROPERTY MAINTENANCE,South West,HARTNELL TAYLOR COOK LLP,24/04/2019,3500,M,80131800,Real estate management services
"Ministry of Housing, Communities and Local Government",Homes England,ENGINEERING CONSULTANTS,South West,HARTNELL TAYLOR COOK LLP,25/04/2019,1850,M,80131800,Real estate management services
"Ministry of Housing, Communities and Local Government",Homes England,ENGINEERING CONSULTANTS,South West,HARTNELL TAYLOR COOK LLP,25/04/2019,1850,M,80131800,Real estate management services
"Ministry of Housing, Communities and Local Government",Homes England,PROJECT MANAGEMENT,South West,HARTNELL TAYLOR COOK LLP,25/04/2019,2337.5,M,80131800,Real estate management services
"Ministry of Housing, Communities and Local Government",Homes England,PROJECT MANAGEMENT,South West,HARTNELL TAYLOR COOK LLP,25/04/2019,2475,M,80131800,Real estate management services
"Ministry of Housing, Communities and Local Government",Homes England,BRANDING & REPORTS,Executive Office,HIGH PEAK PRODUCTIONS,29/04/2019,4999,S,82131600,Photographers and cinematographers
"Ministry of Housing, Communities and Local Government",Homes England,ST Fund Loans Additions,Economic Assets Hub,HEMISPHERE HOMES LIMITED,23/04/2019,150305,,,Loans
"Ministry of Housing, Communities and Local Government",Homes England,ST Fund Loans Additions,Economic Assets Hub,HOLROYD HOMES (YORKSHIRE) LTD,18/04/2019,171431.04,,,Loans
"Ministry of Housing, Communities and Local Government",Homes England,PUBLICATIONS,Finance & Corporate Services,HAYMARKET MEDIA GROUP,01/04/2019,3120,L,55101500,Printed publications
"Ministry of Housing, Communities and Local Government",Homes England,PLANNING APPLICATIONS,Programmes,HARROGATE BOROUGH COUNCIL,09/04/2019,2395,G,80131500,Lease and rental of property or building
"Ministry of Housing, Communities and Local Government",Homes England,PENSION SCHEME FEES,Finance & Corporate Services,HYMANS ROBERTSON,24/04/2019,750,L,84131700,Pension funds
"Ministry of Housing, Communities and Local Government",Homes England,PENSION SCHEME FEES,Finance & Corporate Services,HYMANS ROBERTSON,24/04/2019,9350,L,84131700,Pension funds
"Ministry of Housing, Communities and Local Government",Homes England,HEALTH & SAFETY REVIEW,Finance & Corporate Services,HSE,15/04/2019,12319,G,80131800,Real estate management services
"Ministry of Housing, Communities and Local Government",Homes England,MISC PROFESSIONAL FEES,Programmes,HOUSING GROWTH PARTNERSHIP LIMITED,10/04/2019,8233.05,,,Loand
"Ministry of Housing, Communities and Local Government",Homes England,BUILDINGS-VACANT RATES,Programmes,HARTLEPOOL BOROUGH COUNCIL,05/04/2019,3225.6,G,80131500,Lease and rental of property or building
"Ministry of Housing, Communities and Local Government",Homes England,BUILDINGS-VACANT RATES,Programmes,HARTLEPOOL BOROUGH COUNCIL,05/04/2019,3608.63,G,80131500,Lease and rental of property or building
"Ministry of Housing, Communities and Local Government",Homes England,BUILDINGS-VACANT RATES,Programmes,HARTLEPOOL BOROUGH COUNCIL,05/04/2019,3338.58,G,80131500,Lease and rental of property or building
"Ministry of Housing, Communities and Local Government",Homes England,LT Fund Loans (Ps) Additions,Economic Assets Hub,HILL MARSHALL LLP,11/04/2019,374334.1,,,Loans
"Ministry of Housing, Communities and Local Government",Homes England,ST Fund Loans Additions,Economic Assets Hub,HAYCROFT HOMES LIMITED,23/04/2019,63639,,,Loans
"Ministry of Housing, Communities and Local Government",Homes England,ESTATE GENERAL MAINTENANCE,Programmes,HOLLY OAK TREE SERVICES LIMITED,29/04/2019,5625,S,72101500,Building maintenance and repair services
"Ministry of Housing, Communities and Local Government",Homes England,LT Fund Loans (Ps) Additions,Economic Assets Hub,HANWOOD PARK LLP,24/04/2019,659344.36,,,Loans
"Ministry of Housing, Communities and Local Government",Homes England,ESTATE GENERAL MAINTENANCE,North West,HARDY ACCESS SERVICES LTD,15/04/2019,450,S,72101500,Building maintenance and repair services
"Ministry of Housing, Communities and Local Government",Homes England,ESTATE GENERAL MAINTENANCE,North West,HARDY ACCESS SERVICES LTD,15/04/2019,1600,S,72101500,Building maintenance and repair services
"Ministry of Housing, Communities and Local Government",Homes England,BUILDINGS-VACANT RATES,North East And Yorkshire,HUNTINGDONSHIRE DISTRICT COUNCIL,03/04/2019,3668.62,G,80131500,Lease and rental of property or building
"Ministry of Housing, Communities and Local Government",Homes England,BUILDINGS-VACANT RATES,North East And Yorkshire,HUNTINGDONSHIRE DISTRICT COUNCIL,03/04/2019,3668.62,G,80131500,Lease and rental of property or building
"Ministry of Housing, Communities and Local Government",Homes England,BUILDINGS-VACANT RATES,North East And Yorkshire,HUNTINGDONSHIRE DISTRICT COUNCIL,03/04/2019,3260.98,G,80131500,Lease and rental of property or building
"Ministry of Housing, Communities and Local Government",Homes England,LEGAL FEES,North East And Yorkshire,HEWITSONS SOLICITORS,01/04/2019,3389.84,M,80121600,Business law services
"Ministry of Housing, Communities and Local Government",Homes England,LEGAL FEES,Programmes,HEWITSONS SOLICITORS,02/04/2019,858,M,80121600,Business law services
"Ministry of Housing, Communities and Local Government",Homes England,LEGAL FEES,North West,HEWITSONS SOLICITORS,03/04/2019,1400,M,80121600,Business law services
"Ministry of Housing, Communities and Local Government",Homes England,LEGAL FEES,North West,HEWITSONS SOLICITORS,03/04/2019,1500,M,80121600,Business law services
"Ministry of Housing, Communities and Local Government",Homes England,DISPOSAL FEES - LEGAL,South West,HEWITSONS SOLICITORS,03/04/2019,1000,M,80121600,Business law services
"Ministry of Housing, Communities and Local Government",Homes England,LEGAL FEES,North West,HEWITSONS SOLICITORS,03/04/2019,1400,M,80121600,Business law services
"Ministry of Housing, Communities and Local Government",Homes England,LEGAL FEES,East And South East,HEWITSONS SOLICITORS,04/04/2019,1200,M,80121600,Business law services
"Ministry of Housing, Communities and Local Government",Homes England,LEGAL FEES,East And South East,HEWITSONS SOLICITORS,04/04/2019,429,M,80121600,Business law services
"Ministry of Housing, Communities and Local Government",Homes England,LEGAL FEES,Economic Assets Hub,HEWITSONS SOLICITORS,05/04/2019,750,M,80121600,Business law services
"Ministry of Housing, Communities and Local Government",Homes England,DISPOSAL FEES - LEGAL,Midlands,HEWITSONS SOLICITORS,05/04/2019,753,M,80121600,Business law services
"Ministry of Housing, Communities and Local Government",Homes England,DISPOSAL FEES - LEGAL,South West,HEWITSONS SOLICITORS,05/04/2019,2350,M,80121600,Business law services
"Ministry of Housing, Communities and Local Government",Homes England,LEGAL FEES,North East And Yorkshire,HEWITSONS SOLICITORS,08/04/2019,2000,M,80121600,Business law services
"Ministry of Housing, Communities and Local Government",Homes England,LEGAL FEES,North East And Yorkshire,HEWITSONS SOLICITORS,08/04/2019,2340.16,M,80121600,Business law services
"Ministry of Housing, Communities and Local Government",Homes England,LEGAL FEES,North East And Yorkshire,HEWITSONS SOLICITORS,08/04/2019,2528,M,80121600,Business law services
"Ministry of Housing, Communities and Local Government",Homes England,LEGAL FEES,North East And Yorkshire,HEWITSONS SOLICITORS,08/04/2019,910,M,80121600,Business law services
"Ministry of Housing, Communities and Local Government",Homes England,LEGAL FEES,North East And Yorkshire,HEWITSONS SOLICITORS,08/04/2019,4029,M,80121600,Business law services
"Ministry of Housing, Communities and Local Government",Homes England,LEGAL FEES,North East And Yorkshire,HEWITSONS SOLICITORS,08/04/2019,4025,M,80121600,Business law services
"Ministry of Housing, Communities and Local Government",Homes England,LEGAL FEES,North West,HEWITSONS SOLICITORS,09/04/2019,285,M,80121600,Business law services
"Ministry of Housing, Communities and Local Government",Homes England,LEGAL FEES,Programmes,HEWITSONS SOLICITORS,09/04/2019,4034.72,M,80121600,Business law services
"Ministry of Housing, Communities and Local Government",Homes England,LEGAL FEES,Midlands,HEWITSONS SOLICITORS,09/04/2019,1500,M,80121600,Business law services
"Ministry of Housing, Communities and Local Government",Homes England,Professional Fees Loans Capitalised,Economic Assets Hub,HEWITSONS SOLICITORS,10/04/2019,12837.46,M,80121600,Business law services
"Ministry of Housing, Communities and Local Government",Homes England,DISPOSAL FEES - LEGAL,East And South East,HEWITSONS SOLICITORS,10/04/2019,2024,M,80121600,Business law services
"Ministry of Housing, Communities and Local Government",Homes England,LEGAL FEES,Economic Assets Hub,HEWITSONS SOLICITORS,15/04/2019,300,M,80121600,Business law services
"Ministry of Housing, Communities and Local Government",Homes England,LEGAL FEES,Programmes,HEWITSONS SOLICITORS,15/04/2019,4000,M,80121600,Business law services
"Ministry of Housing, Communities and Local Government",Homes England,DISPOSAL FEES - LEGAL,South West,HEWITSONS SOLICITORS,18/04/2019,1414,M,80121600,Business law services
"Ministry of Housing, Communities and Local Government",Homes England,DISPOSAL FEES - LEGAL,South West,HEWITSONS SOLICITORS,18/04/2019,2500,M,80121600,Business law services
"Ministry of Housing, Communities and Local Government",Homes England,DISPOSAL FEES - LEGAL,Midlands,HEWITSONS SOLICITORS,18/04/2019,400,M,80121600,Business law services
"Ministry of Housing, Communities and Local Government",Homes England,DISPOSAL FEES - LEGAL,East And South East,HEWITSONS SOLICITORS,23/04/2019,2000,M,80121600,Business law services
"Ministry of Housing, Communities and Local Government",Homes England,LEGAL FEES,Programmes,HEWITSONS SOLICITORS,24/04/2019,750,M,80121600,Business law services
"Ministry of Housing, Communities and Local Government",Homes England,DISPOSAL FEES - LEGAL,East And South East,HEWITSONS SOLICITORS,25/04/2019,2016,M,80121600,Business law services
"Ministry of Housing, Communities and Local Government",Homes England,LEGAL FEES,Midlands,HEWITSONS SOLICITORS,25/04/2019,532,M,80121600,Business law services
"Ministry of Housing, Communities and Local Government",Homes England,LEGAL FEES,East And South East,HEWITSONS SOLICITORS,26/04/2019,760.5,M,80121600,Business law services
"Ministry of Housing, Communities and Local Government",Homes England,LEGAL FEES,North West,HEWITSONS SOLICITORS,26/04/2019,570,M,80121600,Business law services
"Ministry of Housing, Communities and Local Government",Homes England,LEGAL FEES,North East And Yorkshire,HEWITSONS SOLICITORS,29/04/2019,950,M,80121600,Business law services
"Ministry of Housing, Communities and Local Government",Homes England,LEGAL FEES,North West,HEWITSONS SOLICITORS,29/04/2019,380,M,80121600,Business law services
"Ministry of Housing, Communities and Local Government",Homes England,LEGAL FEES,Midlands,HEWITSONS SOLICITORS,29/04/2019,7264,M,80121600,Business law services
"Ministry of Housing, Communities and Local Government",Homes England,DISPOSAL FEES - LEGAL,East And South East,HEWITSONS SOLICITORS,29/04/2019,900,M,80121600,Business law services
"Ministry of Housing, Communities and Local Government",Homes England,COURSES & CONFERENCES,Executive Office,KORN FERRY HAY GROUP LIMITED,02/04/2019,265,L,86101800,In service training and manpower development
"Ministry of Housing, Communities and Local Government",Homes England,ST Fund Loans Additions,Economic Assets Hub,HIGHBROOK HOMES (KIRKSTONE) LTD,09/04/2019,86964.85,,,Loans
"Ministry of Housing, Communities and Local Government",Homes England,SERVICE CHARGES,Finance & Corporate Services,HIGHWAYS ENGLAND COMPANY LTD,25/04/2019,37006.3,G,80131500,Lease and rental of property or building
"Ministry of Housing, Communities and Local Government",Homes England,SERVICE CHARGES,Finance & Corporate Services,HIGHWAYS ENGLAND COMPANY LTD,25/04/2019,33404.61,G,80131500,Lease and rental of property or building
"Ministry of Housing, Communities and Local Government",Homes England,BUILDINGS-VACANT RATES,South West,ISLE OF WIGHT COUNCIL,15/04/2019,6566.42,G,80131500,Lease and rental of property or building
"Ministry of Housing, Communities and Local Government",Homes England,BUILDINGS-VACANT RATES,South West,ISLE OF WIGHT COUNCIL,15/04/2019,2822.4,G,80131500,Lease and rental of property or building
"Ministry of Housing, Communities and Local Government",Homes England,BUILDINGS-VACANT RATES,South West,ISLE OF WIGHT COUNCIL,15/04/2019,5425.35,G,80131500,Lease and rental of property or building
"Ministry of Housing, Communities and Local Government",Homes England,BUILDINGS-VACANT RATES,South West,ISLE OF WIGHT COUNCIL,15/04/2019,658.33,G,80131500,Lease and rental of property or building
"Ministry of Housing, Communities and Local Government",Homes England,BUILDINGS-VACANT RATES,South West,ISLE OF WIGHT COUNCIL,15/04/2019,6145.45,G,80131500,Lease and rental of property or building
"Ministry of Housing, Communities and Local Government",Homes England,LANDSCAPING & PLANTS,Finance & Corporate Services,INDUSTRIAL LANDSCAPES LIMITED,03/04/2019,293.85,S,72101500,Building maintenance and repair services
"Ministry of Housing, Communities and Local Government",Homes England,LANDSCAPING & PLANTS,Finance & Corporate Services,INDUSTRIAL LANDSCAPES LIMITED,04/04/2019,434.53,S,72101500,Building maintenance and repair services
"Ministry of Housing, Communities and Local Government",Homes England,MISC PROFESSIONAL FEES (ADMIN ONLY),Executive Office,INDEPENDENT AUDIT LIMITED,10/04/2019,29582.5,S,84111700,Corporate Finance
"Ministry of Housing, Communities and Local Government",Homes England,COURSES & CONFERENCES,North East And Yorkshire,IET SERVICES LIMITED,17/04/2019,1230,M,80131800,Real estate management services
"Ministry of Housing, Communities and Local Government",Homes England,ST Fund Loans Additions,Economic Assets Hub,IPSWICH WHARF DEVELOPMENTS LIMITED,11/04/2019,44081.41,,,Loans
"Ministry of Housing, Communities and Local Government",Homes England,ST Fund Loans Additions,Economic Assets Hub,IPSWICH WHARF DEVELOPMENTS LIMITED,16/04/2019,1582220.85,,,Loans
"Ministry of Housing, Communities and Local Government",Homes England,COURSES & CONFERENCES,South West,PROFILE RESOURCING LTD T/A IMPACT FOR SUCCESS,01/04/2019,1650,S,90111600,Meeting facilities
"Ministry of Housing, Communities and Local Government",Homes England,MISC PROFESSIONAL FEES,South West,JONES LANG LASALLE,03/04/2019,700,L,80131800,Real estate management services
"Ministry of Housing, Communities and Local Government",Homes England,RI - MONITORING SURVEYOR FEES,Economic Assets Hub,JONES LANG LASALLE,08/04/2019,950,L,80131800,Real estate management services
"Ministry of Housing, Communities and Local Government",Homes England,RI - MONITORING SURVEYOR FEES,Programmes,JONES LANG LASALLE,18/04/2019,3550,L,80131800,Real estate management services
"Ministry of Housing, Communities and Local Government",Homes England,MISC PROFESSIONAL FEES,Programmes,JONES LANG LASALLE,30/04/2019,9000,L,80131800,Real estate management services
"Ministry of Housing, Communities and Local Government",Homes England,RI - MONITORING SURVEYOR FEES,Programmes,JONES LANG LASALLE,30/04/2019,950,L,80131800,Real estate management services
"Ministry of Housing, Communities and Local Government",Homes England,COST OF ACQUISITION,South West,JONES LANG LASALLE,30/04/2019,6000,L,80131800,Real estate management services
"Ministry of Housing, Communities and Local Government",Homes England,PROPERTY MAINTENANCE,Programmes,JAPANESE KNOTWEED CONTROL LTD,26/04/2019,8475,S,72101500,Building maintenance and repair services
"Ministry of Housing, Communities and Local Government",Homes England,OPEN MARKET VALUATION FEE,Programmes,KNIGHT FRANK LLP,03/04/2019,2400,L,80131800,Real estate management services
"Ministry of Housing, Communities and Local Government",Homes England,OPEN MARKET VALUATION FEE,Programmes,KNIGHT FRANK LLP,03/04/2019,1800,L,80131800,Real estate management services
"Ministry of Housing, Communities and Local Government",Homes England,DISPOSAL FEES - PROPERTY AGENTS & ADVERTISING,South West,KNIGHT FRANK LLP,10/04/2019,1500,L,80131800,Real estate management services
"Ministry of Housing, Communities and Local Government",Homes England,MISC PROFESSIONAL FEES,South West,KNIGHT FRANK LLP,10/04/2019,1500,L,80131800,Real estate management services
"Ministry of Housing, Communities and Local Government",Homes England,PROPERTY MAINTENANCE,East And South East,KMS COMMERCIAL PROPERTY MAINTENANCE LTD,24/04/2019,3792.5,M,72101500,Building maintenance and repair services
"Ministry of Housing, Communities and Local Government",Homes England,OTHER PROFESSIONAL FEES,South West,KERNOW TREE SURGERY,25/04/2019,2495,S,72101500,Building maintenance and repair services
"Ministry of Housing, Communities and Local Government",Homes England,ESTATE GENERAL MAINTENANCE,Programmes,W J KENT TREE SURGEONS LTD,10/04/2019,840,S,72101500,Building maintenance and repair services
"Ministry of Housing, Communities and Local Government",Homes England,ST Fund Loans Additions,Economic Assets Hub,KC PROPERTY SERVICES LTD,12/04/2019,25990,,,Loans
"Ministry of Housing, Communities and Local Government",Homes England,ST Fund Loans Additions,Economic Assets Hub,KINGSWOOD HOMES (UK) LTD,23/04/2019,263540,,,Loans
"Ministry of Housing, Communities and Local Government",Homes England,LEGAL FEES,Programmes,BOROUGH COUNCIL OF KINGS LYNN & WEST NORFOLK,01/04/2019,6028.84,G,,Grants
"Ministry of Housing, Communities and Local Government",Homes England,ST Fund Loans Additions,Economic Assets Hub,KEBBELL DEVELOPMENT LIMITED,15/04/2019,375087,,,Loans
"Ministry of Housing, Communities and Local Government",Homes England,MASTERPLANNING FEES,North East And Yorkshire,KIER LIVING - CENTRAL,11/04/2019,36262.49,L,72101500,Building maintenance and repair services
"Ministry of Housing, Communities and Local Government",Homes England,LEGAL FEES (ADMIN ONLY),Finance & Corporate Services,11KBW LIMITED,04/04/2019,1765,L,80121600,Business law services
"Ministry of Housing, Communities and Local Government",Homes England,LEGAL FEES (ADMIN ONLY),Finance & Corporate Services,11KBW LIMITED,23/04/2019,1290,L,80121600,Business law services
"Ministry of Housing, Communities and Local Government",Homes England,ST Fund Loans Additions,Economic Assets Hub,KIRKCROSS DEVELOPMENTS LIMITED,18/04/2019,535330,,,Loans
"Ministry of Housing, Communities and Local Government",Homes England,Professional Fees Loans Capitalised,Economic Assets Hub,LAMBERT SMITH HAMPTON,01/04/2019,3750,L,80131800,Real estate management services
"Ministry of Housing, Communities and Local Government",Homes England,MISC PROFESSIONAL FEES,Programmes,LAMBERT SMITH HAMPTON,02/04/2019,950,L,80131800,Real estate management services
"Ministry of Housing, Communities and Local Government",Homes England,MISC PROFESSIONAL FEES,Programmes,LAMBERT SMITH HAMPTON,02/04/2019,650,L,80131800,Real estate management services
"Ministry of Housing, Communities and Local Government",Homes England,DISPOSAL FEES - PROPERTY AGENTS & ADVERTISING,Midlands,LAMBERT SMITH HAMPTON,03/04/2019,10384.5,L,80131800,Real estate management services
"Ministry of Housing, Communities and Local Government",Homes England,Professional Fees Loans Capitalised,Programmes,LAMBERT SMITH HAMPTON,04/04/2019,1100,L,80131800,Real estate management services
"Ministry of Housing, Communities and Local Government",Homes England,PROPERTY SERVICES,North East And Yorkshire,LAMBERT SMITH HAMPTON,05/04/2019,500,L,80131800,Real estate management services
"Ministry of Housing, Communities and Local Government",Homes England,DISPOSAL FEES - PROPERTY AGENTS & ADVERTISING,East And South East,LAMBERT SMITH HAMPTON,08/04/2019,5500,L,80131800,Real estate management services
"Ministry of Housing, Communities and Local Government",Homes England,DISPOSAL FEES - PROPERTY AGENTS & ADVERTISING,South West,LAMBERT SMITH HAMPTON,08/04/2019,1078.28,L,80131800,Real estate management services
"Ministry of Housing, Communities and Local Government",Homes England,OPEN MARKET VALUATION FEE,Programmes,LAMBERT SMITH HAMPTON,08/04/2019,79968,L,80131800,Real estate management services
"Ministry of Housing, Communities and Local Government",Homes England,OPEN MARKET VALUATION FEE,South West,LAMBERT SMITH HAMPTON,08/04/2019,2500,L,80131800,Real estate management services
"Ministry of Housing, Communities and Local Government",Homes England,RI - MONITORING SURVEYOR FEES,Economic Assets Hub,LAMBERT SMITH HAMPTON,10/04/2019,650,L,80131800,Real estate management services
"Ministry of Housing, Communities and Local Government",Homes England,RI - MONITORING SURVEYOR FEES,Programmes,LAMBERT SMITH HAMPTON,15/04/2019,650,L,80131800,Real estate management services
"Ministry of Housing, Communities and Local Government",Homes England,DISPOSAL FEES - PROPERTY AGENTS & ADVERTISING,North West,LAMBERT SMITH HAMPTON,15/04/2019,2827,L,80131800,Real estate management services
"Ministry of Housing, Communities and Local Government",Homes England,OPEN MARKET VALUATION FEE,Programmes,LAMBERT SMITH HAMPTON,17/04/2019,800,L,80131800,Real estate management services
"Ministry of Housing, Communities and Local Government",Homes England,RI - MONITORING SURVEYOR FEES,Programmes,LAMBERT SMITH HAMPTON,18/04/2019,1350,L,80131800,Real estate management services
"Ministry of Housing, Communities and Local Government",Homes England,RI - MONITORING SURVEYOR FEES,Programmes,LAMBERT SMITH HAMPTON,18/04/2019,1350,L,80131800,Real estate management services
"Ministry of Housing, Communities and Local Government",Homes England,MISC PROFESSIONAL FEES,Programmes,LAMBERT SMITH HAMPTON,25/04/2019,25000,L,80131800,Real estate management services
"Ministry of Housing, Communities and Local Government",Homes England,RI - MONITORING SURVEYOR FEES,Programmes,LAMBERT SMITH HAMPTON,26/04/2019,750,L,80131800,Real estate management services
"Ministry of Housing, Communities and Local Government",Homes England,CAPITAL GRANTS TO RPs (NOT LA),North West,THE RIVERSIDE GROUP,09/04/2019,86400,,,Grants
"Ministry of Housing, Communities and Local Government",Homes England,CAPITAL GRANTS TO RPs (NOT LA),North West,THE RIVERSIDE GROUP,09/04/2019,64800,,,Grants
"Ministry of Housing, Communities and Local Government",Homes England,CAPITAL GRANTS TO RPs (NOT LA),Midlands,THE RIVERSIDE GROUP,11/04/2019,82900,,,Grants
"Ministry of Housing, Communities and Local Government",Homes England,CAPITAL GRANTS TO RPs (NOT LA),Midlands,THE RIVERSIDE GROUP,11/04/2019,65700,,,Grants
"Ministry of Housing, Communities and Local Government",Homes England,CAPITAL GRANTS TO RPs (NOT LA),North West,THE RIVERSIDE GROUP,18/04/2019,9000,,,Grants
"Ministry of Housing, Communities and Local Government",Homes England,CAPITAL GRANTS TO RPs (NOT LA),North West,THE RIVERSIDE GROUP,30/04/2019,9000,,,Grants
"Ministry of Housing, Communities and Local Government",Homes England,CAPITAL GRANTS TO RPs (NOT LA),North West,THE RIVERSIDE GROUP,30/04/2019,9000,,,Grants
"Ministry of Housing, Communities and Local Government",Homes England,CAPITAL GRANTS TO RPs (NOT LA),North West,THE RIVERSIDE GROUP,,9000,,,Grants
"Ministry of Housing, Communities and Local Government",Homes England,CAPITAL GRANTS TO RPs (NOT LA),North West,THE RIVERSIDE GROUP,,56700,,,Grants
"Ministry of Housing, Communities and Local Government",Homes England,CAPITAL GRANTS TO RPs (NOT LA),North West,THE RIVERSIDE GROUP,,9000,,,Grants
"Ministry of Housing, Communities and Local Government",Homes England,CAPITAL GRANTS TO RPs (NOT LA),North West,THE RIVERSIDE GROUP,,9000,,,Grants
"Ministry of Housing, Communities and Local Government",Homes England,CAPITAL GRANTS TO RPs (NOT LA),North West,THE RIVERSIDE GROUP,,9000,,,Grants
"Ministry of Housing, Communities and Local Government",Homes England,CAPITAL GRANTS TO RPs (NOT LA),North West,THE RIVERSIDE GROUP,,9000,,,Grants
"Ministry of Housing, Communities and Local Government",Homes England,CAPITAL GRANTS TO RPs (NOT LA),North West,THE RIVERSIDE GROUP,,75600,,,Grants
"Ministry of Housing, Communities and Local Government",Homes England,CAPITAL GRANTS TO RPs (NOT LA),North West,THE RIVERSIDE GROUP,,9000,,,Grants
"Ministry of Housing, Communities and Local Government",Homes England,DRAINS & SEWERS,North West,LANES GROUP LTD,05/04/2019,1389.16,S,72101500,Building maintenance and repair services
"Ministry of Housing, Communities and Local Government",Homes England,CAPITAL GRANTS TO RPs (NOT LA),East & South East,SANCTUARY HOUSING ASSOCIATION,25/04/2019,158222,,,Grants
"Ministry of Housing, Communities and Local Government",Homes England,CAPITAL GRANTS TO RPs (NOT LA),East & South East,SANCTUARY HOUSING ASSOCIATION,25/04/2019,158221,,,Grants
"Ministry of Housing, Communities and Local Government",Homes England,CAPITAL GRANTS TO RPs (NOT LA),South West,SANCTUARY HOUSING ASSOCIATION,,10000,,,Grants
"Ministry of Housing, Communities and Local Government",Homes England,CAPITAL GRANTS TO RPs (NOT LA),Midlands,SANCTUARY HOUSING ASSOCIATION,,49000,,,Grants
"Ministry of Housing, Communities and Local Government",Homes England,CAPITAL GRANTS TO RPs (NOT LA),Midlands,STONEWATER (3) LTD,25/04/2019,82900,,,Grants
"Ministry of Housing, Communities and Local Government",Homes England,CAPITAL GRANTS TO RPs (NOT LA),South West,KNIGHTSTONE HOUSING ASSOCIATION LIMITED,25/04/2019,11000,,,Grants
"Ministry of Housing, Communities and Local Government",Homes England,ROADS & CAR PARKS,North West,LIVERPOOL CITY COUNCIL,05/04/2019,4040.4,G,72101500,Building maintenance and repair services
"Ministry of Housing, Communities and Local Government",Homes England,CAPITAL GRANTS TO RPs (NOT LA),Midlands,WEST MERCIA HOUSING GROUP,15/04/2019,13500,,,Grants
"Ministry of Housing, Communities and Local Government",Homes England,OPEN MARKET VALUATION FEE,Programmes,THOMAS LISTER LTD,03/04/2019,326.67,S,80131800,Real estate management services
"Ministry of Housing, Communities and Local Government",Homes England,PROPERTY SERVICES,South West,THOMAS LISTER LTD,09/04/2019,750,S,80131800,Real estate management services
"Ministry of Housing, Communities and Local Government",Homes England,MISC PROFESSIONAL FEES,Programmes,THOMAS LISTER LTD,12/04/2019,15993.78,S,80131800,Real estate management services
"Ministry of Housing, Communities and Local Government",Homes England,MISC PROFESSIONAL FEES,Programmes,THOMAS LISTER LTD,12/04/2019,40170.5,S,80131800,Real estate management services
"Ministry of Housing, Communities and Local Government",Homes England,OPEN MARKET VALUATION FEE,Programmes,THOMAS LISTER LTD,25/04/2019,4000,S,80131800,Real estate management services
"Ministry of Housing, Communities and Local Government",Homes England,Help To Buy Additions,South West,PLACES FOR PEOPLE,,58000,L,,Grants
"Ministry of Housing, Communities and Local Government",Homes England,Help To Buy Additions,South West,PLACES FOR PEOPLE,,43500,L,,Grants
"Ministry of Housing, Communities and Local Government",Homes England,Homebuy Agents Fees,South West,SWAYTHLING HOUSING SOCIETY LIMITED,08/04/2019,361,L,,Grants
"Ministry of Housing, Communities and Local Government",Homes England,Homebuy Agents Fees,South West,SWAYTHLING HOUSING SOCIETY LIMITED,08/04/2019,361,L,,Grants
"Ministry of Housing, Communities and Local Government",Homes England,Homebuy Agents Fees,South West,SWAYTHLING HOUSING SOCIETY LIMITED,08/04/2019,361,L,,Grants
"Ministry of Housing, Communities and Local Government",Homes England,Homebuy Agents Fees,South West,SWAYTHLING HOUSING SOCIETY LIMITED,08/04/2019,361,L,,Grants
"Ministry of Housing, Communities and Local Government",Homes England,Homebuy Agents Fees,South West,SWAYTHLING HOUSING SOCIETY LIMITED,08/04/2019,361,L,,Grants
"Ministry of Housing, Communities and Local Government",Homes England,Homebuy Agents Fees,South West,SWAYTHLING HOUSING SOCIETY LIMITED,08/04/2019,361,L,,Grants
"Ministry of Housing, Communities and Local Government",Homes England,Homebuy Agents Fees,South West,SWAYTHLING HOUSING SOCIETY LIMITED,08/04/2019,361,L,,Grants
"Ministry of Housing, Communities and Local Government",Homes England,Homebuy Agents Fees,South West,SWAYTHLING HOUSING SOCIETY LIMITED,08/04/2019,361,L,,Grants
"Ministry of Housing, Communities and Local Government",Homes England,Homebuy Agents Fees,South West,SWAYTHLING HOUSING SOCIETY LIMITED,08/04/2019,361,L,,Grants
"Ministry of Housing, Communities and Local Government",Homes England,Homebuy Agents Fees,South West,SWAYTHLING HOUSING SOCIETY LIMITED,08/04/2019,361,L,,Grants
"Ministry of Housing, Communities and Local Government",Homes England,Homebuy Agents Fees,South West,SWAYTHLING HOUSING SOCIETY LIMITED,08/04/2019,361,L,,Grants
"Ministry of Housing, Communities and Local Government",Homes England,Homebuy Agents Fees,South West,SWAYTHLING HOUSING SOCIETY LIMITED,08/04/2019,361,L,,Grants
"Ministry of Housing, Communities and Local Government",Homes England,Homebuy Agents Fees,South West,SWAYTHLING HOUSING SOCIETY LIMITED,08/04/2019,361,L,,Grants
"Ministry of Housing, Communities and Local Government",Homes England,Homebuy Agents Fees,South West,SWAYTHLING HOUSING SOCIETY LIMITED,08/04/2019,361,L,,Grants
"Ministry of Housing, Communities and Local Government",Homes England,Homebuy Agents Fees,South West,SWAYTHLING HOUSING SOCIETY LIMITED,09/04/2019,361,L,,Grants
"Ministry of Housing, Communities and Local Government",Homes England,Homebuy Agents Fees,South West,SWAYTHLING HOUSING SOCIETY LIMITED,09/04/2019,361,L,,Grants
"Ministry of Housing, Communities and Local Government",Homes England,Homebuy Agents Fees,South West,SWAYTHLING HOUSING SOCIETY LIMITED,09/04/2019,361,L,,Grants
"Ministry of Housing, Communities and Local Government",Homes England,Homebuy Agents Fees,South West,SWAYTHLING HOUSING SOCIETY LIMITED,09/04/2019,361,L,,Grants
"Ministry of Housing, Communities and Local Government",Homes England,Homebuy Agents Fees,South West,SWAYTHLING HOUSING SOCIETY LIMITED,09/04/2019,361,L,,Grants
"Ministry of Housing, Communities and Local Government",Homes England,Homebuy Agents Fees,South West,SWAYTHLING HOUSING SOCIETY LIMITED,09/04/2019,361,L,,Grants
"Ministry of Housing, Communities and Local Government",Homes England,Homebuy Agents Fees,South West,SWAYTHLING HOUSING SOCIETY LIMITED,09/04/2019,361,L,,Grants
"Ministry of Housing, Communities and Local Government",Homes England,Homebuy Agents Fees,South West,SWAYTHLING HOUSING SOCIETY LIMITED,09/04/2019,361,L,,Grants
"Ministry of Housing, Communities and Local Government",Homes England,Homebuy Agents Fees,South West,SWAYTHLING HOUSING SOCIETY LIMITED,09/04/2019,361,L,,Grants
"Ministry of Housing, Communities and Local Government",Homes England,Homebuy Agents Fees,South West,SWAYTHLING HOUSING SOCIETY LIMITED,09/04/2019,361,L,,Grants
"Ministry of Housing, Communities and Local Government",Homes England,Homebuy Agents Fees,South West,SWAYTHLING HOUSING SOCIETY LIMITED,09/04/2019,361,L,,Grants
"Ministry of Housing, Communities and Local Government",Homes England,Homebuy Agents Fees,South West,SWAYTHLING HOUSING SOCIETY LIMITED,09/04/2019,361,L,,Grants
"Ministry of Housing, Communities and Local Government",Homes England,Homebuy Agents Fees,South West,SWAYTHLING HOUSING SOCIETY LIMITED,09/04/2019,361,L,,Grants
"Ministry of Housing, Communities and Local Government",Homes England,Homebuy Agents Fees,South West,SWAYTHLING HOUSING SOCIETY LIMITED,09/04/2019,361,L,,Grants
"Ministry of Housing, Communities and Local Government",Homes England,Homebuy Agents Fees,South West,SWAYTHLING HOUSING SOCIETY LIMITED,09/04/2019,361,L,,Grants
"Ministry of Housing, Communities and Local Government",Homes England,Homebuy Agents Fees,South West,SWAYTHLING HOUSING SOCIETY LIMITED,09/04/2019,361,L,,Grants
"Ministry of Housing, Communities and Local Government",Homes England,Homebuy Agents Fees,South West,SWAYTHLING HOUSING SOCIETY LIMITED,09/04/2019,361,L,,Grants
"Ministry of Housing, Communities and Local Government",Homes England,Homebuy Agents Fees,South West,SWAYTHLING HOUSING SOCIETY LIMITED,09/04/2019,361,L,,Grants
"Ministry of Housing, Communities and Local Government",Homes England,Homebuy Agents Fees,South West,SWAYTHLING HOUSING SOCIETY LIMITED,09/04/2019,361,L,,Grants
"Ministry of Housing, Communities and Local Government",Homes England,Homebuy Agents Fees,South West,SWAYTHLING HOUSING SOCIETY LIMITED,09/04/2019,361,L,,Grants
"Ministry of Housing, Communities and Local Government",Homes England,Homebuy Agents Fees,South West,SWAYTHLING HOUSING SOCIETY LIMITED,09/04/2019,361,L,,Grants
"Ministry of Housing, Communities and Local Government",Homes England,Homebuy Agents Fees,South West,SWAYTHLING HOUSING SOCIETY LIMITED,09/04/2019,361,L,,Grants
"Ministry of Housing, Communities and Local Government",Homes England,Homebuy Agents Fees,South West,SWAYTHLING HOUSING SOCIETY LIMITED,09/04/2019,361,L,,Grants
"Ministry of Housing, Communities and Local Government",Homes England,Homebuy Agents Fees,South West,SWAYTHLING HOUSING SOCIETY LIMITED,09/04/2019,361,L,,Grants
"Ministry of Housing, Communities and Local Government",Homes England,Homebuy Agents Fees,South West,SWAYTHLING HOUSING SOCIETY LIMITED,09/04/2019,361,L,,Grants
"Ministry of Housing, Communities and Local Government",Homes England,Homebuy Agents Fees,South West,SWAYTHLING HOUSING SOCIETY LIMITED,09/04/2019,361,L,,Grants
"Ministry of Housing, Communities and Local Government",Homes England,Homebuy Agents Fees,South West,SWAYTHLING HOUSING SOCIETY LIMITED,10/04/2019,361,L,,Grants
"Ministry of Housing, Communities and Local Government",Homes England,Homebuy Agents Fees,South West,SWAYTHLING HOUSING SOCIETY LIMITED,10/04/2019,361,L,,Grants
"Ministry of Housing, Communities and Local Government",Homes England,Homebuy Agents Fees,South West,SWAYTHLING HOUSING SOCIETY LIMITED,10/04/2019,361,L,,Grants
"Ministry of Housing, Communities and Local Government",Homes England,Homebuy Agents Fees,South West,SWAYTHLING HOUSING SOCIETY LIMITED,10/04/2019,361,L,,Grants
"Ministry of Housing, Communities and Local Government",Homes England,Homebuy Agents Fees,South West,SWAYTHLING HOUSING SOCIETY LIMITED,10/04/2019,361,L,,Grants
"Ministry of Housing, Communities and Local Government",Homes England,Homebuy Agents Fees,South West,SWAYTHLING HOUSING SOCIETY LIMITED,10/04/2019,361,L,,Grants
"Ministry of Housing, Communities and Local Government",Homes England,Homebuy Agents Fees,South West,SWAYTHLING HOUSING SOCIETY LIMITED,10/04/2019,361,L,,Grants
"Ministry of Housing, Communities and Local Government",Homes England,Homebuy Agents Fees,South West,SWAYTHLING HOUSING SOCIETY LIMITED,10/04/2019,361,L,,Grants
"Ministry of Housing, Communities and Local Government",Homes England,Homebuy Agents Fees,South West,SWAYTHLING HOUSING SOCIETY LIMITED,10/04/2019,361,L,,Grants
"Ministry of Housing, Communities and Local Government",Homes England,Homebuy Agents Fees,South West,SWAYTHLING HOUSING SOCIETY LIMITED,10/04/2019,361,L,,Grants
"Ministry of Housing, Communities and Local Government",Homes England,Homebuy Agents Fees,South West,SWAYTHLING HOUSING SOCIETY LIMITED,10/04/2019,361,L,,Grants
"Ministry of Housing, Communities and Local Government",Homes England,Homebuy Agents Fees,South West,SWAYTHLING HOUSING SOCIETY LIMITED,10/04/2019,361,L,,Grants
"Ministry of Housing, Communities and Local Government",Homes England,Homebuy Agents Fees,South West,SWAYTHLING HOUSING SOCIETY LIMITED,10/04/2019,361,L,,Grants
"Ministry of Housing, Communities and Local Government",Homes England,Homebuy Agents Fees,South West,SWAYTHLING HOUSING SOCIETY LIMITED,10/04/2019,361,L,,Grants
"Ministry of Housing, Communities and Local Government",Homes England,Homebuy Agents Fees,South West,SWAYTHLING HOUSING SOCIETY LIMITED,10/04/2019,361,L,,Grants
"Ministry of Housing, Communities and Local Government",Homes England,Homebuy Agents Fees,South West,SWAYTHLING HOUSING SOCIETY LIMITED,10/04/2019,361,L,,Grants
"Ministry of Housing, Communities and Local Government",Homes England,Homebuy Agents Fees,South West,SWAYTHLING HOUSING SOCIETY LIMITED,10/04/2019,361,L,,Grants
"Ministry of Housing, Communities and Local Government",Homes England,Homebuy Agents Fees,South West,SWAYTHLING HOUSING SOCIETY LIMITED,10/04/2019,361,L,,Grants
"Ministry of Housing, Communities and Local Government",Homes England,Homebuy Agents Fees,South West,SWAYTHLING HOUSING SOCIETY LIMITED,10/04/2019,361,L,,Grants
"Ministry of Housing, Communities and Local Government",Homes England,Homebuy Agents Fees,South West,SWAYTHLING HOUSING SOCIETY LIMITED,10/04/2019,361,L,,Grants
"Ministry of Housing, Communities and Local Government",Homes England,Homebuy Agents Fees,South West,SWAYTHLING HOUSING SOCIETY LIMITED,10/04/2019,361,L,,Grants
"Ministry of Housing, Communities and Local Government",Homes England,Homebuy Agents Fees,South West,SWAYTHLING HOUSING SOCIETY LIMITED,10/04/2019,361,L,,Grants
"Ministry of Housing, Communities and Local Government",Homes England,Homebuy Agents Fees,South West,SWAYTHLING HOUSING SOCIETY LIMITED,10/04/2019,361,L,,Grants
"Ministry of Housing, Communities and Local Government",Homes England,Homebuy Agents Fees,South West,SWAYTHLING HOUSING SOCIETY LIMITED,10/04/2019,361,L,,Grants
"Ministry of Housing, Communities and Local Government",Homes England,Homebuy Agents Fees,South West,SWAYTHLING HOUSING SOCIETY LIMITED,10/04/2019,361,L,,Grants
"Ministry of Housing, Communities and Local Government",Homes England,Homebuy Agents Fees,South West,SWAYTHLING HOUSING SOCIETY LIMITED,10/04/2019,361,L,,Grants
"Ministry of Housing, Communities and Local Government",Homes England,Homebuy Agents Fees,South West,SWAYTHLING HOUSING SOCIETY LIMITED,10/04/2019,361,L,,Grants
"Ministry of Housing, Communities and Local Government",Homes England,Homebuy Agents Fees,South West,SWAYTHLING HOUSING SOCIETY LIMITED,10/04/2019,361,L,,Grants
"Ministry of Housing, Communities and Local Government",Homes England,Homebuy Agents Fees,South West,SWAYTHLING HOUSING SOCIETY LIMITED,10/04/2019,361,L,,Grants
"Ministry of Housing, Communities and Local Government",Homes England,Homebuy Agents Fees,South West,SWAYTHLING HOUSING SOCIETY LIMITED,10/04/2019,361,L,,Grants
"Ministry of Housing, Communities and Local Government",Homes England,Homebuy Agents Fees,South West,SWAYTHLING HOUSING SOCIETY LIMITED,10/04/2019,361,L,,Grants
"Ministry of Housing, Communities and Local Government",Homes England,Homebuy Agents Fees,South West,SWAYTHLING HOUSING SOCIETY LIMITED,10/04/2019,361,L,,Grants
"Ministry of Housing, Communities and Local Government",Homes England,Homebuy Agents Fees,South West,SWAYTHLING HOUSING SOCIETY LIMITED,10/04/2019,361,L,,Grants
"Ministry of Housing, Communities and Local Government",Homes England,Homebuy Agents Fees,South West,SWAYTHLING HOUSING SOCIETY LIMITED,10/04/2019,361,L,,Grants
"Ministry of Housing, Communities and Local Government",Homes England,Homebuy Agents Fees,South West,SWAYTHLING HOUSING SOCIETY LIMITED,10/04/2019,361,L,,Grants
"Ministry of Housing, Communities and Local Government",Homes England,Homebuy Agents Fees,South West,SWAYTHLING HOUSING SOCIETY LIMITED,10/04/2019,361,L,,Grants
"Ministry of Housing, Communities and Local Government",Homes England,Homebuy Agents Fees,South West,SWAYTHLING HOUSING SOCIETY LIMITED,10/04/2019,361,L,,Grants
"Ministry of Housing, Communities and Local Government",Homes England,Homebuy Agents Fees,South West,SWAYTHLING HOUSING SOCIETY LIMITED,10/04/2019,361,L,,Grants
"Ministry of Housing, Communities and Local Government",Homes England,Homebuy Agents Fees,South West,SWAYTHLING HOUSING SOCIETY LIMITED,10/04/2019,361,L,,Grants
"Ministry of Housing, Communities and Local Government",Homes England,Homebuy Agents Fees,South West,SWAYTHLING HOUSING SOCIETY LIMITED,10/04/2019,361,L,,Grants
"Ministry of Housing, Communities and Local Government",Homes England,Homebuy Agents Fees,South West,SWAYTHLING HOUSING SOCIETY LIMITED,10/04/2019,361,L,,Grants
"Ministry of Housing, Communities and Local Government",Homes England,Homebuy Agents Fees,South West,SWAYTHLING HOUSING SOCIETY LIMITED,10/04/2019,361,L,,Grants
"Ministry of Housing, Communities and Local Government",Homes England,Homebuy Agents Fees,South West,SWAYTHLING HOUSING SOCIETY LIMITED,10/04/2019,361,L,,Grants
"Ministry of Housing, Communities and Local Government",Homes England,Homebuy Agents Fees,South West,SWAYTHLING HOUSING SOCIETY LIMITED,10/04/2019,361,L,,Grants
"Ministry of Housing, Communities and Local Government",Homes England,Homebuy Agents Fees,South West,SWAYTHLING HOUSING SOCIETY LIMITED,10/04/2019,361,L,,Grants
"Ministry of Housing, Communities and Local Government",Homes England,Homebuy Agents Fees,South West,SWAYTHLING HOUSING SOCIETY LIMITED,10/04/2019,361,L,,Grants
"Ministry of Housing, Communities and Local Government",Homes England,Homebuy Agents Fees,South West,SWAYTHLING HOUSING SOCIETY LIMITED,10/04/2019,361,L,,Grants
"Ministry of Housing, Communities and Local Government",Homes England,Homebuy Agents Fees,South West,SWAYTHLING HOUSING SOCIETY LIMITED,10/04/2019,361,L,,Grants
"Ministry of Housing, Communities and Local Government",Homes England,Homebuy Agents Fees,South West,SWAYTHLING HOUSING SOCIETY LIMITED,10/04/2019,361,L,,Grants
"Ministry of Housing, Communities and Local Government",Homes England,Homebuy Agents Fees,South West,SWAYTHLING HOUSING SOCIETY LIMITED,10/04/2019,361,L,,Grants
"Ministry of Housing, Communities and Local Government",Homes England,Homebuy Agents Fees,South West,SWAYTHLING HOUSING SOCIETY LIMITED,10/04/2019,361,L,,Grants
"Ministry of Housing, Communities and Local Government",Homes England,Homebuy Agents Fees,South West,SWAYTHLING HOUSING SOCIETY LIMITED,11/04/2019,361,L,,Grants
"Ministry of Housing, Communities and Local Government",Homes England,Homebuy Agents Fees,South West,SWAYTHLING HOUSING SOCIETY LIMITED,11/04/2019,361,L,,Grants
"Ministry of Housing, Communities and Local Government",Homes England,Homebuy Agents Fees,South West,SWAYTHLING HOUSING SOCIETY LIMITED,11/04/2019,361,L,,Grants
"Ministry of Housing, Communities and Local Government",Homes England,Homebuy Agents Fees,South West,SWAYTHLING HOUSING SOCIETY LIMITED,11/04/2019,361,L,,Grants
"Ministry of Housing, Communities and Local Government",Homes England,Homebuy Agents Fees,South West,SWAYTHLING HOUSING SOCIETY LIMITED,11/04/2019,361,L,,Grants
"Ministry of Housing, Communities and Local Government",Homes England,Homebuy Agents Fees,South West,SWAYTHLING HOUSING SOCIETY LIMITED,11/04/2019,361,L,,Grants
"Ministry of Housing, Communities and Local Government",Homes England,Homebuy Agents Fees,South West,SWAYTHLING HOUSING SOCIETY LIMITED,11/04/2019,361,L,,Grants
"Ministry of Housing, Communities and Local Government",Homes England,Homebuy Agents Fees,South West,SWAYTHLING HOUSING SOCIETY LIMITED,11/04/2019,361,L,,Grants
"Ministry of Housing, Communities and Local Government",Homes England,Homebuy Agents Fees,South West,SWAYTHLING HOUSING SOCIETY LIMITED,11/04/2019,361,L,,Grants
"Ministry of Housing, Communities and Local Government",Homes England,Homebuy Agents Fees,South West,SWAYTHLING HOUSING SOCIETY LIMITED,11/04/2019,361,L,,Grants
"Ministry of Housing, Communities and Local Government",Homes England,Homebuy Agents Fees,South West,SWAYTHLING HOUSING SOCIETY LIMITED,11/04/2019,361,L,,Grants
"Ministry of Housing, Communities and Local Government",Homes England,Homebuy Agents Fees,South West,SWAYTHLING HOUSING SOCIETY LIMITED,11/04/2019,361,L,,Grants
"Ministry of Housing, Communities and Local Government",Homes England,Homebuy Agents Fees,South West,SWAYTHLING HOUSING SOCIETY LIMITED,11/04/2019,361,L,,Grants
"Ministry of Housing, Communities and Local Government",Homes England,Homebuy Agents Fees,South West,SWAYTHLING HOUSING SOCIETY LIMITED,11/04/2019,361,L,,Grants
"Ministry of Housing, Communities and Local Government",Homes England,Homebuy Agents Fees,South West,SWAYTHLING HOUSING SOCIETY LIMITED,11/04/2019,361,L,,Grants
"Ministry of Housing, Communities and Local Government",Homes England,Homebuy Agents Fees,South West,SWAYTHLING HOUSING SOCIETY LIMITED,11/04/2019,361,L,,Grants
"Ministry of Housing, Communities and Local Government",Homes England,Homebuy Agents Fees,South West,SWAYTHLING HOUSING SOCIETY LIMITED,12/04/2019,361,L,,Grants
"Ministry of Housing, Communities and Local Government",Homes England,Homebuy Agents Fees,South West,SWAYTHLING HOUSING SOCIETY LIMITED,12/04/2019,361,L,,Grants
"Ministry of Housing, Communities and Local Government",Homes England,Homebuy Agents Fees,South West,SWAYTHLING HOUSING SOCIETY LIMITED,12/04/2019,361,L,,Grants
"Ministry of Housing, Communities and Local Government",Homes England,Homebuy Agents Fees,South West,SWAYTHLING HOUSING SOCIETY LIMITED,12/04/2019,361,L,,Grants
"Ministry of Housing, Communities and Local Government",Homes England,Homebuy Agents Fees,South West,SWAYTHLING HOUSING SOCIETY LIMITED,12/04/2019,361,L,,Grants
"Ministry of Housing, Communities and Local Government",Homes England,Homebuy Agents Fees,South West,SWAYTHLING HOUSING SOCIETY LIMITED,12/04/2019,361,L,,Grants
"Ministry of Housing, Communities and Local Government",Homes England,Homebuy Agents Fees,South West,SWAYTHLING HOUSING SOCIETY LIMITED,12/04/2019,361,L,,Grants
"Ministry of Housing, Communities and Local Government",Homes England,Homebuy Agents Fees,South West,SWAYTHLING HOUSING SOCIETY LIMITED,12/04/2019,361,L,,Grants
"Ministry of Housing, Communities and Local Government",Homes England,Homebuy Agents Fees,South West,SWAYTHLING HOUSING SOCIETY LIMITED,12/04/2019,361,L,,Grants
"Ministry of Housing, Communities and Local Government",Homes England,Homebuy Agents Fees,South West,SWAYTHLING HOUSING SOCIETY LIMITED,12/04/2019,361,L,,Grants
"Ministry of Housing, Communities and Local Government",Homes England,Homebuy Agents Fees,South West,SWAYTHLING HOUSING SOCIETY LIMITED,12/04/2019,361,L,,Grants
"Ministry of Housing, Communities and Local Government",Homes England,Homebuy Agents Fees,South West,SWAYTHLING HOUSING SOCIETY LIMITED,12/04/2019,361,L,,Grants
"Ministry of Housing, Communities and Local Government",Homes England,Homebuy Agents Fees,South West,SWAYTHLING HOUSING SOCIETY LIMITED,12/04/2019,361,L,,Grants
"Ministry of Housing, Communities and Local Government",Homes England,Homebuy Agents Fees,South West,SWAYTHLING HOUSING SOCIETY LIMITED,12/04/2019,361,L,,Grants
"Ministry of Housing, Communities and Local Government",Homes England,Homebuy Agents Fees,South West,SWAYTHLING HOUSING SOCIETY LIMITED,12/04/2019,361,L,,Grants
"Ministry of Housing, Communities and Local Government",Homes England,Homebuy Agents Fees,South West,SWAYTHLING HOUSING SOCIETY LIMITED,12/04/2019,361,L,,Grants
"Ministry of Housing, Communities and Local Government",Homes England,Homebuy Agents Fees,South West,SWAYTHLING HOUSING SOCIETY LIMITED,12/04/2019,361,L,,Grants
"Ministry of Housing, Communities and Local Government",Homes England,Homebuy Agents Fees,South West,SWAYTHLING HOUSING SOCIETY LIMITED,12/04/2019,361,L,,Grants
"Ministry of Housing, Communities and Local Government",Homes England,Homebuy Agents Fees,South West,SWAYTHLING HOUSING SOCIETY LIMITED,12/04/2019,361,L,,Grants
"Ministry of Housing, Communities and Local Government",Homes England,Homebuy Agents Fees,South West,SWAYTHLING HOUSING SOCIETY LIMITED,12/04/2019,361,L,,Grants
"Ministry of Housing, Communities and Local Government",Homes England,Homebuy Agents Fees,South West,SWAYTHLING HOUSING SOCIETY LIMITED,12/04/2019,361,L,,Grants
"Ministry of Housing, Communities and Local Government",Homes England,Homebuy Agents Fees,South West,SWAYTHLING HOUSING SOCIETY LIMITED,12/04/2019,361,L,,Grants
"Ministry of Housing, Communities and Local Government",Homes England,Homebuy Agents Fees,South West,SWAYTHLING HOUSING SOCIETY LIMITED,15/04/2019,361,L,,Grants
"Ministry of Housing, Communities and Local Government",Homes England,Homebuy Agents Fees,South West,SWAYTHLING HOUSING SOCIETY LIMITED,15/04/2019,361,L,,Grants
"Ministry of Housing, Communities and Local Government",Homes England,Homebuy Agents Fees,South West,SWAYTHLING HOUSING SOCIETY LIMITED,15/04/2019,361,L,,Grants
"Ministry of Housing, Communities and Local Government",Homes England,Homebuy Agents Fees,South West,SWAYTHLING HOUSING SOCIETY LIMITED,15/04/2019,361,L,,Grants
"Ministry of Housing, Communities and Local Government",Homes England,Homebuy Agents Fees,South West,SWAYTHLING HOUSING SOCIETY LIMITED,15/04/2019,361,L,,Grants
"Ministry of Housing, Communities and Local Government",Homes England,Homebuy Agents Fees,South West,SWAYTHLING HOUSING SOCIETY LIMITED,15/04/2019,361,L,,Grants
"Ministry of Housing, Communities and Local Government",Homes England,Homebuy Agents Fees,South West,SWAYTHLING HOUSING SOCIETY LIMITED,15/04/2019,361,L,,Grants
"Ministry of Housing, Communities and Local Government",Homes England,Homebuy Agents Fees,South West,SWAYTHLING HOUSING SOCIETY LIMITED,15/04/2019,361,L,,Grants
"Ministry of Housing, Communities and Local Government",Homes England,Homebuy Agents Fees,South West,SWAYTHLING HOUSING SOCIETY LIMITED,15/04/2019,361,L,,Grants
"Ministry of Housing, Communities and Local Government",Homes England,Homebuy Agents Fees,South West,SWAYTHLING HOUSING SOCIETY LIMITED,15/04/2019,361,L,,Grants
"Ministry of Housing, Communities and Local Government",Homes England,Homebuy Agents Fees,South West,SWAYTHLING HOUSING SOCIETY LIMITED,15/04/2019,361,L,,Grants
"Ministry of Housing, Communities and Local Government",Homes England,Homebuy Agents Fees,South West,SWAYTHLING HOUSING SOCIETY LIMITED,15/04/2019,361,L,,Grants
"Ministry of Housing, Communities and Local Government",Homes England,Homebuy Agents Fees,South West,SWAYTHLING HOUSING SOCIETY LIMITED,15/04/2019,361,L,,Grants
"Ministry of Housing, Communities and Local Government",Homes England,Homebuy Agents Fees,South West,SWAYTHLING HOUSING SOCIETY LIMITED,15/04/2019,361,L,,Grants
"Ministry of Housing, Communities and Local Government",Homes England,Homebuy Agents Fees,South West,SWAYTHLING HOUSING SOCIETY LIMITED,15/04/2019,361,L,,Grants
"Ministry of Housing, Communities and Local Government",Homes England,Homebuy Agents Fees,South West,SWAYTHLING HOUSING SOCIETY LIMITED,15/04/2019,361,L,,Grants
"Ministry of Housing, Communities and Local Government",Homes England,Homebuy Agents Fees,South West,SWAYTHLING HOUSING SOCIETY LIMITED,15/04/2019,361,L,,Grants
"Ministry of Housing, Communities and Local Government",Homes England,Homebuy Agents Fees,South West,SWAYTHLING HOUSING SOCIETY LIMITED,15/04/2019,361,L,,Grants
"Ministry of Housing, Communities and Local Government",Homes England,Homebuy Agents Fees,South West,SWAYTHLING HOUSING SOCIETY LIMITED,15/04/2019,361,L,,Grants
"Ministry of Housing, Communities and Local Government",Homes England,Homebuy Agents Fees,South West,SWAYTHLING HOUSING SOCIETY LIMITED,15/04/2019,361,L,,Grants
"Ministry of Housing, Communities and Local Government",Homes England,Homebuy Agents Fees,South West,SWAYTHLING HOUSING SOCIETY LIMITED,15/04/2019,361,L,,Grants
"Ministry of Housing, Communities and Local Government",Homes England,Homebuy Agents Fees,South West,SWAYTHLING HOUSING SOCIETY LIMITED,15/04/2019,361,L,,Grants
"Ministry of Housing, Communities and Local Government",Homes England,Homebuy Agents Fees,South West,SWAYTHLING HOUSING SOCIETY LIMITED,15/04/2019,361,L,,Grants
"Ministry of Housing, Communities and Local Government",Homes England,Homebuy Agents Fees,South West,SWAYTHLING HOUSING SOCIETY LIMITED,15/04/2019,361,L,,Grants
"Ministry of Housing, Communities and Local Government",Homes England,Homebuy Agents Fees,South West,SWAYTHLING HOUSING SOCIETY LIMITED,15/04/2019,361,L,,Grants
"Ministry of Housing, Communities and Local Government",Homes England,Homebuy Agents Fees,South West,SWAYTHLING HOUSING SOCIETY LIMITED,15/04/2019,361,L,,Grants
"Ministry of Housing, Communities and Local Government",Homes England,Homebuy Agents Fees,South West,SWAYTHLING HOUSING SOCIETY LIMITED,15/04/2019,361,L,,Grants
"Ministry of Housing, Communities and Local Government",Homes England,Homebuy Agents Fees,South West,SWAYTHLING HOUSING SOCIETY LIMITED,15/04/2019,361,L,,Grants
"Ministry of Housing, Communities and Local Government",Homes England,Homebuy Agents Fees,South West,SWAYTHLING HOUSING SOCIETY LIMITED,15/04/2019,361,L,,Grants
"Ministry of Housing, Communities and Local Government",Homes England,Homebuy Agents Fees,South West,SWAYTHLING HOUSING SOCIETY LIMITED,16/04/2019,361,L,,Grants
"Ministry of Housing, Communities and Local Government",Homes England,Homebuy Agents Fees,South West,SWAYTHLING HOUSING SOCIETY LIMITED,16/04/2019,361,L,,Grants
"Ministry of Housing, Communities and Local Government",Homes England,Homebuy Agents Fees,South West,SWAYTHLING HOUSING SOCIETY LIMITED,16/04/2019,361,L,,Grants
"Ministry of Housing, Communities and Local Government",Homes England,Homebuy Agents Fees,South West,SWAYTHLING HOUSING SOCIETY LIMITED,16/04/2019,361,L,,Grants
"Ministry of Housing, Communities and Local Government",Homes England,Homebuy Agents Fees,South West,SWAYTHLING HOUSING SOCIETY LIMITED,16/04/2019,361,L,,Grants
"Ministry of Housing, Communities and Local Government",Homes England,Homebuy Agents Fees,South West,SWAYTHLING HOUSING SOCIETY LIMITED,16/04/2019,361,L,,Grants
"Ministry of Housing, Communities and Local Government",Homes England,Homebuy Agents Fees,South West,SWAYTHLING HOUSING SOCIETY LIMITED,16/04/2019,361,L,,Grants
"Ministry of Housing, Communities and Local Government",Homes England,Homebuy Agents Fees,South West,SWAYTHLING HOUSING SOCIETY LIMITED,16/04/2019,361,L,,Grants
"Ministry of Housing, Communities and Local Government",Homes England,Homebuy Agents Fees,South West,SWAYTHLING HOUSING SOCIETY LIMITED,16/04/2019,361,L,,Grants
"Ministry of Housing, Communities and Local Government",Homes England,Homebuy Agents Fees,South West,SWAYTHLING HOUSING SOCIETY LIMITED,16/04/2019,361,L,,Grants
"Ministry of Housing, Communities and Local Government",Homes England,Homebuy Agents Fees,South West,SWAYTHLING HOUSING SOCIETY LIMITED,16/04/2019,361,L,,Grants
"Ministry of Housing, Communities and Local Government",Homes England,Homebuy Agents Fees,South West,SWAYTHLING HOUSING SOCIETY LIMITED,16/04/2019,361,L,,Grants
"Ministry of Housing, Communities and Local Government",Homes England,Homebuy Agents Fees,South West,SWAYTHLING HOUSING SOCIETY LIMITED,16/04/2019,361,L,,Grants
"Ministry of Housing, Communities and Local Government",Homes England,Homebuy Agents Fees,South West,SWAYTHLING HOUSING SOCIETY LIMITED,17/04/2019,361,L,,Grants
"Ministry of Housing, Communities and Local Government",Homes England,Homebuy Agents Fees,South West,SWAYTHLING HOUSING SOCIETY LIMITED,17/04/2019,361,L,,Grants
"Ministry of Housing, Communities and Local Government",Homes England,Homebuy Agents Fees,South West,SWAYTHLING HOUSING SOCIETY LIMITED,17/04/2019,361,L,,Grants
"Ministry of Housing, Communities and Local Government",Homes England,Homebuy Agents Fees,South West,SWAYTHLING HOUSING SOCIETY LIMITED,17/04/2019,361,L,,Grants
"Ministry of Housing, Communities and Local Government",Homes England,Homebuy Agents Fees,South West,SWAYTHLING HOUSING SOCIETY LIMITED,17/04/2019,361,L,,Grants
"Ministry of Housing, Communities and Local Government",Homes England,Homebuy Agents Fees,South West,SWAYTHLING HOUSING SOCIETY LIMITED,17/04/2019,361,L,,Grants
"Ministry of Housing, Communities and Local Government",Homes England,Homebuy Agents Fees,South West,SWAYTHLING HOUSING SOCIETY LIMITED,17/04/2019,361,L,,Grants
"Ministry of Housing, Communities and Local Government",Homes England,Homebuy Agents Fees,South West,SWAYTHLING HOUSING SOCIETY LIMITED,17/04/2019,361,L,,Grants
"Ministry of Housing, Communities and Local Government",Homes England,Homebuy Agents Fees,South West,SWAYTHLING HOUSING SOCIETY LIMITED,17/04/2019,361,L,,Grants
"Ministry of Housing, Communities and Local Government",Homes England,Homebuy Agents Fees,South West,SWAYTHLING HOUSING SOCIETY LIMITED,17/04/2019,361,L,,Grants
"Ministry of Housing, Communities and Local Government",Homes England,Homebuy Agents Fees,South West,SWAYTHLING HOUSING SOCIETY LIMITED,17/04/2019,361,L,,Grants
"Ministry of Housing, Communities and Local Government",Homes England,Homebuy Agents Fees,South West,SWAYTHLING HOUSING SOCIETY LIMITED,17/04/2019,361,L,,Grants
"Ministry of Housing, Communities and Local Government",Homes England,Homebuy Agents Fees,South West,SWAYTHLING HOUSING SOCIETY LIMITED,17/04/2019,361,L,,Grants
"Ministry of Housing, Communities and Local Government",Homes England,Homebuy Agents Fees,South West,SWAYTHLING HOUSING SOCIETY LIMITED,18/04/2019,361,L,,Grants
"Ministry of Housing, Communities and Local Government",Homes England,Homebuy Agents Fees,South West,SWAYTHLING HOUSING SOCIETY LIMITED,18/04/2019,361,L,,Grants
"Ministry of Housing, Communities and Local Government",Homes England,Homebuy Agents Fees,South West,SWAYTHLING HOUSING SOCIETY LIMITED,18/04/2019,361,L,,Grants
"Ministry of Housing, Communities and Local Government",Homes England,Homebuy Agents Fees,South West,SWAYTHLING HOUSING SOCIETY LIMITED,18/04/2019,361,L,,Grants
"Ministry of Housing, Communities and Local Government",Homes England,Homebuy Agents Fees,South West,SWAYTHLING HOUSING SOCIETY LIMITED,18/04/2019,361,L,,Grants
"Ministry of Housing, Communities and Local Government",Homes England,Homebuy Agents Fees,South West,SWAYTHLING HOUSING SOCIETY LIMITED,18/04/2019,361,L,,Grants
"Ministry of Housing, Communities and Local Government",Homes England,Homebuy Agents Fees,South West,SWAYTHLING HOUSING SOCIETY LIMITED,18/04/2019,361,L,,Grants
"Ministry of Housing, Communities and Local Government",Homes England,Homebuy Agents Fees,South West,SWAYTHLING HOUSING SOCIETY LIMITED,18/04/2019,361,L,,Grants
"Ministry of Housing, Communities and Local Government",Homes England,Homebuy Agents Fees,South West,SWAYTHLING HOUSING SOCIETY LIMITED,18/04/2019,361,L,,Grants
"Ministry of Housing, Communities and Local Government",Homes England,Homebuy Agents Fees,South West,SWAYTHLING HOUSING SOCIETY LIMITED,18/04/2019,361,L,,Grants
"Ministry of Housing, Communities and Local Government",Homes England,Homebuy Agents Fees,South West,SWAYTHLING HOUSING SOCIETY LIMITED,18/04/2019,361,L,,Grants
"Ministry of Housing, Communities and Local Government",Homes England,Homebuy Agents Fees,South West,SWAYTHLING HOUSING SOCIETY LIMITED,23/04/2019,361,L,,Grants
"Ministry of Housing, Communities and Local Government",Homes England,Homebuy Agents Fees,South West,SWAYTHLING HOUSING SOCIETY LIMITED,23/04/2019,361,L,,Grants
"Ministry of Housing, Communities and Local Government",Homes England,Homebuy Agents Fees,South West,SWAYTHLING HOUSING SOCIETY LIMITED,23/04/2019,361,L,,Grants
"Ministry of Housing, Communities and Local Government",Homes England,Homebuy Agents Fees,South West,SWAYTHLING HOUSING SOCIETY LIMITED,23/04/2019,361,L,,Grants
"Ministry of Housing, Communities and Local Government",Homes England,Homebuy Agents Fees,South West,SWAYTHLING HOUSING SOCIETY LIMITED,23/04/2019,361,L,,Grants
"Ministry of Housing, Communities and Local Government",Homes England,Homebuy Agents Fees,South West,SWAYTHLING HOUSING SOCIETY LIMITED,23/04/2019,361,L,,Grants
"Ministry of Housing, Communities and Local Government",Homes England,Homebuy Agents Fees,South West,SWAYTHLING HOUSING SOCIETY LIMITED,23/04/2019,361,L,,Grants
"Ministry of Housing, Communities and Local Government",Homes England,Homebuy Agents Fees,South West,SWAYTHLING HOUSING SOCIETY LIMITED,23/04/2019,361,L,,Grants
"Ministry of Housing, Communities and Local Government",Homes England,Homebuy Agents Fees,South West,SWAYTHLING HOUSING SOCIETY LIMITED,23/04/2019,361,L,,Grants
"Ministry of Housing, Communities and Local Government",Homes England,Homebuy Agents Fees,South West,SWAYTHLING HOUSING SOCIETY LIMITED,23/04/2019,361,L,,Grants
"Ministry of Housing, Communities and Local Government",Homes England,Homebuy Agents Fees,South West,SWAYTHLING HOUSING SOCIETY LIMITED,23/04/2019,361,L,,Grants
"Ministry of Housing, Communities and Local Government",Homes England,Homebuy Agents Fees,South West,SWAYTHLING HOUSING SOCIETY LIMITED,23/04/2019,361,L,,Grants
"Ministry of Housing, Communities and Local Government",Homes England,Homebuy Agents Fees,South West,SWAYTHLING HOUSING SOCIETY LIMITED,23/04/2019,361,L,,Grants
"Ministry of Housing, Communities and Local Government",Homes England,Homebuy Agents Fees,South West,SWAYTHLING HOUSING SOCIETY LIMITED,23/04/2019,361,L,,Grants
"Ministry of Housing, Communities and Local Government",Homes England,Homebuy Agents Fees,South West,SWAYTHLING HOUSING SOCIETY LIMITED,23/04/2019,361,L,,Grants
"Ministry of Housing, Communities and Local Government",Homes England,Homebuy Agents Fees,South West,SWAYTHLING HOUSING SOCIETY LIMITED,23/04/2019,361,L,,Grants
"Ministry of Housing, Communities and Local Government",Homes England,Homebuy Agents Fees,South West,SWAYTHLING HOUSING SOCIETY LIMITED,23/04/2019,361,L,,Grants
"Ministry of Housing, Communities and Local Government",Homes England,Homebuy Agents Fees,South West,SWAYTHLING HOUSING SOCIETY LIMITED,23/04/2019,361,L,,Grants
"Ministry of Housing, Communities and Local Government",Homes England,Homebuy Agents Fees,South West,SWAYTHLING HOUSING SOCIETY LIMITED,23/04/2019,361,L,,Grants
"Ministry of Housing, Communities and Local Government",Homes England,Homebuy Agents Fees,South West,SWAYTHLING HOUSING SOCIETY LIMITED,23/04/2019,361,L,,Grants
"Ministry of Housing, Communities and Local Government",Homes England,Homebuy Agents Fees,South West,SWAYTHLING HOUSING SOCIETY LIMITED,23/04/2019,361,L,,Grants
"Ministry of Housing, Communities and Local Government",Homes England,Homebuy Agents Fees,South West,SWAYTHLING HOUSING SOCIETY LIMITED,23/04/2019,361,L,,Grants
"Ministry of Housing, Communities and Local Government",Homes England,Homebuy Agents Fees,South West,SWAYTHLING HOUSING SOCIETY LIMITED,23/04/2019,361,L,,Grants
"Ministry of Housing, Communities and Local Government",Homes England,Homebuy Agents Fees,South West,SWAYTHLING HOUSING SOCIETY LIMITED,23/04/2019,361,L,,Grants
"Ministry of Housing, Communities and Local Government",Homes England,Homebuy Agents Fees,South West,SWAYTHLING HOUSING SOCIETY LIMITED,23/04/2019,361,L,,Grants
"Ministry of Housing, Communities and Local Government",Homes England,Homebuy Agents Fees,South West,SWAYTHLING HOUSING SOCIETY LIMITED,23/04/2019,361,L,,Grants
"Ministry of Housing, Communities and Local Government",Homes England,Homebuy Agents Fees,South West,SWAYTHLING HOUSING SOCIETY LIMITED,23/04/2019,361,L,,Grants
"Ministry of Housing, Communities and Local Government",Homes England,Homebuy Agents Fees,South West,SWAYTHLING HOUSING SOCIETY LIMITED,23/04/2019,361,L,,Grants
"Ministry of Housing, Communities and Local Government",Homes England,Homebuy Agents Fees,South West,SWAYTHLING HOUSING SOCIETY LIMITED,23/04/2019,361,L,,Grants
"Ministry of Housing, Communities and Local Government",Homes England,Homebuy Agents Fees,South West,SWAYTHLING HOUSING SOCIETY LIMITED,23/04/2019,361,L,,Grants
"Ministry of Housing, Communities and Local Government",Homes England,Homebuy Agents Fees,South West,SWAYTHLING HOUSING SOCIETY LIMITED,23/04/2019,361,L,,Grants
"Ministry of Housing, Communities and Local Government",Homes England,Homebuy Agents Fees,South West,SWAYTHLING HOUSING SOCIETY LIMITED,23/04/2019,361,L,,Grants
"Ministry of Housing, Communities and Local Government",Homes England,Homebuy Agents Fees,South West,SWAYTHLING HOUSING SOCIETY LIMITED,23/04/2019,361,L,,Grants
"Ministry of Housing, Communities and Local Government",Homes England,Homebuy Agents Fees,South West,SWAYTHLING HOUSING SOCIETY LIMITED,23/04/2019,361,L,,Grants
"Ministry of Housing, Communities and Local Government",Homes England,Homebuy Agents Fees,South West,SWAYTHLING HOUSING SOCIETY LIMITED,23/04/2019,361,L,,Grants
"Ministry of Housing, Communities and Local Government",Homes England,Homebuy Agents Fees,South West,SWAYTHLING HOUSING SOCIETY LIMITED,23/04/2019,361,L,,Grants
"Ministry of Housing, Communities and Local Government",Homes England,Homebuy Agents Fees,South West,SWAYTHLING HOUSING SOCIETY LIMITED,23/04/2019,361,L,,Grants
"Ministry of Housing, Communities and Local Government",Homes England,Homebuy Agents Fees,South West,SWAYTHLING HOUSING SOCIETY LIMITED,23/04/2019,361,L,,Grants
"Ministry of Housing, Communities and Local Government",Homes England,Homebuy Agents Fees,South West,SWAYTHLING HOUSING SOCIETY LIMITED,23/04/2019,361,L,,Grants
"Ministry of Housing, Communities and Local Government",Homes England,Homebuy Agents Fees,South West,SWAYTHLING HOUSING SOCIETY LIMITED,23/04/2019,361,L,,Grants
"Ministry of Housing, Communities and Local Government",Homes England,Homebuy Agents Fees,South West,SWAYTHLING HOUSING SOCIETY LIMITED,23/04/2019,361,L,,Grants
"Ministry of Housing, Communities and Local Government",Homes England,Homebuy Agents Fees,South West,SWAYTHLING HOUSING SOCIETY LIMITED,23/04/2019,361,L,,Grants
"Ministry of Housing, Communities and Local Government",Homes England,Homebuy Agents Fees,South West,SWAYTHLING HOUSING SOCIETY LIMITED,23/04/2019,361,L,,Grants
"Ministry of Housing, Communities and Local Government",Homes England,Homebuy Agents Fees,South West,SWAYTHLING HOUSING SOCIETY LIMITED,23/04/2019,361,L,,Grants
"Ministry of Housing, Communities and Local Government",Homes England,Homebuy Agents Fees,South West,SWAYTHLING HOUSING SOCIETY LIMITED,23/04/2019,361,L,,Grants
"Ministry of Housing, Communities and Local Government",Homes England,Homebuy Agents Fees,South West,SWAYTHLING HOUSING SOCIETY LIMITED,23/04/2019,361,L,,Grants
"Ministry of Housing, Communities and Local Government",Homes England,Homebuy Agents Fees,South West,SWAYTHLING HOUSING SOCIETY LIMITED,23/04/2019,361,L,,Grants
"Ministry of Housing, Communities and Local Government",Homes England,Homebuy Agents Fees,South West,SWAYTHLING HOUSING SOCIETY LIMITED,23/04/2019,361,L,,Grants
"Ministry of Housing, Communities and Local Government",Homes England,Homebuy Agents Fees,South West,SWAYTHLING HOUSING SOCIETY LIMITED,23/04/2019,361,L,,Grants
"Ministry of Housing, Communities and Local Government",Homes England,Homebuy Agents Fees,South West,SWAYTHLING HOUSING SOCIETY LIMITED,23/04/2019,361,L,,Grants
"Ministry of Housing, Communities and Local Government",Homes England,Homebuy Agents Fees,South West,SWAYTHLING HOUSING SOCIETY LIMITED,23/04/2019,361,L,,Grants
"Ministry of Housing, Communities and Local Government",Homes England,Homebuy Agents Fees,South West,SWAYTHLING HOUSING SOCIETY LIMITED,23/04/2019,361,L,,Grants
"Ministry of Housing, Communities and Local Government",Homes England,Homebuy Agents Fees,South West,SWAYTHLING HOUSING SOCIETY LIMITED,23/04/2019,361,L,,Grants
"Ministry of Housing, Communities and Local Government",Homes England,Homebuy Agents Fees,South West,SWAYTHLING HOUSING SOCIETY LIMITED,23/04/2019,361,L,,Grants
"Ministry of Housing, Communities and Local Government",Homes England,Homebuy Agents Fees,South West,SWAYTHLING HOUSING SOCIETY LIMITED,23/04/2019,361,L,,Grants
"Ministry of Housing, Communities and Local Government",Homes England,Homebuy Agents Fees,South West,SWAYTHLING HOUSING SOCIETY LIMITED,23/04/2019,361,L,,Grants
"Ministry of Housing, Communities and Local Government",Homes England,Homebuy Agents Fees,South West,SWAYTHLING HOUSING SOCIETY LIMITED,23/04/2019,361,L,,Grants
"Ministry of Housing, Communities and Local Government",Homes England,Homebuy Agents Fees,South West,SWAYTHLING HOUSING SOCIETY LIMITED,23/04/2019,361,L,,Grants
"Ministry of Housing, Communities and Local Government",Homes England,Homebuy Agents Fees,South West,SWAYTHLING HOUSING SOCIETY LIMITED,24/04/2019,361,L,,Grants
"Ministry of Housing, Communities and Local Government",Homes England,Homebuy Agents Fees,South West,SWAYTHLING HOUSING SOCIETY LIMITED,24/04/2019,361,L,,Grants
"Ministry of Housing, Communities and Local Government",Homes England,Homebuy Agents Fees,South West,SWAYTHLING HOUSING SOCIETY LIMITED,24/04/2019,361,L,,Grants
"Ministry of Housing, Communities and Local Government",Homes England,Homebuy Agents Fees,South West,SWAYTHLING HOUSING SOCIETY LIMITED,24/04/2019,361,L,,Grants
"Ministry of Housing, Communities and Local Government",Homes England,Homebuy Agents Fees,South West,SWAYTHLING HOUSING SOCIETY LIMITED,24/04/2019,361,L,,Grants
"Ministry of Housing, Communities and Local Government",Homes England,Homebuy Agents Fees,South West,SWAYTHLING HOUSING SOCIETY LIMITED,24/04/2019,361,L,,Grants
"Ministry of Housing, Communities and Local Government",Homes England,Homebuy Agents Fees,South West,SWAYTHLING HOUSING SOCIETY LIMITED,24/04/2019,361,L,,Grants
"Ministry of Housing, Communities and Local Government",Homes England,Homebuy Agents Fees,South West,SWAYTHLING HOUSING SOCIETY LIMITED,24/04/2019,361,L,,Grants
"Ministry of Housing, Communities and Local Government",Homes England,Homebuy Agents Fees,South West,SWAYTHLING HOUSING SOCIETY LIMITED,24/04/2019,361,L,,Grants
"Ministry of Housing, Communities and Local Government",Homes England,Homebuy Agents Fees,South West,SWAYTHLING HOUSING SOCIETY LIMITED,24/04/2019,361,L,,Grants
"Ministry of Housing, Communities and Local Government",Homes England,Homebuy Agents Fees,South West,SWAYTHLING HOUSING SOCIETY LIMITED,24/04/2019,361,L,,Grants
"Ministry of Housing, Communities and Local Government",Homes England,Homebuy Agents Fees,South West,SWAYTHLING HOUSING SOCIETY LIMITED,24/04/2019,361,L,,Grants
"Ministry of Housing, Communities and Local Government",Homes England,Homebuy Agents Fees,South West,SWAYTHLING HOUSING SOCIETY LIMITED,24/04/2019,361,L,,Grants
"Ministry of Housing, Communities and Local Government",Homes England,Homebuy Agents Fees,South West,SWAYTHLING HOUSING SOCIETY LIMITED,24/04/2019,361,L,,Grants
"Ministry of Housing, Communities and Local Government",Homes England,Homebuy Agents Fees,South West,SWAYTHLING HOUSING SOCIETY LIMITED,24/04/2019,361,L,,Grants
"Ministry of Housing, Communities and Local Government",Homes England,Homebuy Agents Fees,South West,SWAYTHLING HOUSING SOCIETY LIMITED,24/04/2019,361,L,,Grants
"Ministry of Housing, Communities and Local Government",Homes England,Homebuy Agents Fees,South West,SWAYTHLING HOUSING SOCIETY LIMITED,24/04/2019,361,L,,Grants
